{"text_format":"1","workbook":"xlsx","n_sheets":4,"sheets":["Анкета","Госты","Применительно","ОКВЭД"],"not_rendered":{"charts":0,"images":1,"macros":1,"external_links":0,"defined_names":13,"comments":0,"pivot_tables":0},"unopened":[],"bounds":{"document_bytes":16777216,"sheet_cells":100000,"rows_first":2000,"rows_last":500,"rows_between":2000,"halvings":0,"cell_chars":16384,"cell_head_chars":4096},"cells_cut":0,"cells_raw":0,"read":"whole","date_system":"1900"}

{"sheet":"Анкета","index":0,"n_rows":84,"n_cols":13,"rows_kept":84,"cut":false,"hidden":false,"merged":[[33,12,41,15],[51,12,59,15],[44,12,45,15],[32,1,32,10],[44,1,44,10],[50,1,50,10],[47,1,47,10],[51,2,51,10],[53,2,53,10],[55,2,55,10],[33,3,33,10],[35,3,35,10],[45,1,45,10],[49,1,49,10],[39,1,39,2],[39,3,39,10],[0,1,1,10],[19,1,20,2],[19,3,20,10],[21,1,21,2],[21,3,21,4],[21,6,21,7],[14,1,15,2],[16,1,18,2],[14,3,15,10],[16,3,18,10],[2,1,8,10],[9,1,13,10],[21,9,21,10],[24,1,24,10],[25,1,25,2],[26,1,26,2],[22,1,23,2],[22,3,23,4],[22,5,23,5],[22,6,23,7],[25,3,25,10],[26,3,26,10],[22,8,23,8],[22,9,23,10],[35,1,35,2],[37,1,37,2],[62,1,62,10],[64,6,64,10],[82,1,82,7],[65,6,65,10],[37,3,37,10],[57,2,57,10],[59,2,59,10],[68,2,68,5],[68,6,68,10],[69,2,69,5],[69,6,69,10],[61,1,61,10],[67,6,67,10],[66,6,66,10],[27,3,27,10],[28,3,28,10],[29,3,29,10],[31,1,31,10],[33,1,33,2],[27,1,27,2],[28,1,28,2],[29,1,29,2],[43,1,43,10],[41,1,41,2],[41,3,41,10],[71,1,80,10],[82,9,82,10],[64,2,64,5],[65,2,65,5],[66,2,66,5],[67,2,67,5]]}
[null,"Форма заявки на проведение добровольной сертификации"]
[]
[null,"Орган по сертификации:\nОбщество с ограниченной ответственностью \n«Единый стандарт качества\"   \nРЕГ № SMK STANDART.RU.0006\nАдрес: 190103, г. Санкт-Петербург, вн. тер. г. Муниципальный округ  Екатерингофский,       \nпр-кт Лермонтовский, д. 43/1 литера А, офис 2049\nТел.: +7 (812) 409-42-02 standart@iso-smk.ru http://www.iso-smk.ru"]
[]
[]
[]
[]
[]
[]
[null,"ЗАЯВКА\nна проведение добровольной сертификации\nв Системе добровольной сертификации «СМК СТАНДАРТ»"]
[]
[]
[]
[]
[null,"Наименование заявителя"]
[]
[null,"Наименование заявителя  на английском языке"]
[]
[]
[null,"Юридический адрес"]
[]
[null,"ИНН",null,null,null,"КПП",null,null,"ОГРН"]
[null,"Контакт. Лицо (ФИО)",null,null,null,"Тел.",null,null,"e-mail"]
[]
[null,"Банковские реквизиты:"]
[null,"Банк"]
[null,"БИК"]
[null,"Корр. Счет"]
[null,"Р.счет"]
[null,"ОКПО"]
[]
[null,"Просит провести сертификацию на соответствие стандарту (выбрать от 1 до 5 стандартов):"]
[null,"нажать на поле выбора"]
[null,"Стандарт 1:",null,null,null,null,null,null,null,null,null,null,"Для быстрого поиска: нажать на поле выбора, ввести для поиска слова или цифры, затем нажать Enter"]
[]
[null,"Стандарт 2:"]
[]
[null,"Стандарт 3:"]
[]
[null,"Стандарт 4:"]
[]
[null,"Стандарт 5:"]
[]
[null,"применительно (виды работ): (выбрать из списка)"]
[null,"нажать на поле выбора",null,null,null,null,null,null,null,null,null,null,"Для быстрого поиска: нажать на поле выбора, ввести для поиска слова или цифры, затем нажать Enter"]
[]
[]
[]
[]
[null,"Отрасль деятельности, согласно коду ОКВЭД (выберите от 1 до 5): "]
[null,"нажать на поле выбора"]
[null,"Отрасль 1:",null,null,null,null,null,null,null,null,null,null,"Для быстрого поиска: нажать на поле выбора, ввести для поиска слова или цифры, затем нажать Enter"]
[]
[null,"Отрасль 2:"]
[]
[null,"Отрасль 3:"]
[]
[null,"Отрасль 4:"]
[]
[null,"Отрасль 5:"]
[]
[null,"сертификацию персонала по категории: внутренний аудитор"]
[null,"в следующем составе:"]
[]
[null,"№","ФИО",null,null,null,"Должность"]
[null,1]
[null,2]
[null,3]
[null,4]
[null,5]
[]
[null,"на соответствие требованиям Системы добровольной сертификации «СМК СТАНДАРТ».\nЗаявитель обязуется выполнять правила сертификации СДС «СМК СТАНДАРТ» и оплатить все расходы по проведению сертификации. \nЗаявитель обязуется предоставлять информацию, необходимую для проведения аудита\nПодписанием настоящей заявки Заявитель соглашается на размещение информации о нем, как о прошедшем Добровольную Сертификацию «СМК СТАНДАРТ», на официальном сайте Органа по Сертификации - http://www.iso-smk.ru.\n\n"]
[]
[]
[]
[]
[]
[]
[]
[]
[]
[]
[null,"Должность     ______________________ ФИО",null,null,null,null,null,null,null,"__.__.2025"]
[null,null,null,"М.П."]

{"sheet":"Госты","index":1,"n_rows":36,"n_cols":25,"rows_kept":36,"cut":false,"hidden":true,"merged":[[0,0,0,4],[0,5,0,9],[0,10,0,14],[0,15,0,19],[0,20,0,24]]}
["Список Стандарт 3",null,null,null,null," список Стандарт 2",null,null,null,null,"Список Стандарт 1",null,null,null,null,"Список Стандарт 4",null,null,null,null,"Список Стандарт 5"]
[{"$f":"IFERROR(IF(EXACT(Анкета!$D$38,E2),1,0),0)","v":0},{"$f":"IF(ISNUMBER(SEARCH(LEFT(Анкета!$D$38,255),C2)),MAX(B$1:$B1)+1,0)","v":1},"1. ГОСТ Р ИСО 9001-2015 (ISO 9001:2015) Системы менеджмента качества. Требования",1,{"$f":"VLOOKUP(D2,B:C,2,0)","v":"1. ГОСТ Р ИСО 9001-2015 (ISO 9001:2015) Системы менеджмента качества. Требования"},{"$f":"IFERROR(IF(EXACT(Анкета!$D$36,J2),1,0),0)","v":0},{"$f":"IF(ISNUMBER(SEARCH(LEFT(Анкета!$D$36,255),H2)),MAX($G$1:G1)+1,0)","v":1},"1. ГОСТ Р ИСО 9001-2015 (ISO 9001:2015) Системы менеджмента качества. Требования",1,{"$f":"VLOOKUP(I2,G:H,2,0)","v":"1. ГОСТ Р ИСО 9001-2015 (ISO 9001:2015) Системы менеджмента качества. Требования"},{"$f":"IFERROR(IF(EXACT(Анкета!$D$34,O2),1,0),0)","v":0},{"$f":"IF(ISNUMBER(SEARCH(LEFT(Анкета!$D$34,255),M2)),MAX($L$1:L1)+1,0)","v":1},"1. ГОСТ Р ИСО 9001-2015 (ISO 9001:2015) Системы менеджмента качества. Требования",1,{"$f":"VLOOKUP(N2,L:M,2,0)","v":"1. ГОСТ Р ИСО 9001-2015 (ISO 9001:2015) Системы менеджмента качества. Требования"},{"$f":"IFERROR(IF(EXACT(Анкета!$D$40,T2),1,0),0)","v":0},{"$f":"IF(ISNUMBER(SEARCH(LEFT(Анкета!$D$40,255),R2)),MAX($Q$1:Q1)+1,0)","v":1},"1. ГОСТ Р ИСО 9001-2015 (ISO 9001:2015) Системы менеджмента качества. Требования",1,{"$f":"VLOOKUP(S2,Q:R,2,0)","v":"1. ГОСТ Р ИСО 9001-2015 (ISO 9001:2015) Системы менеджмента качества. Требования"},{"$f":"IFERROR(IF(EXACT(Анкета!$D$42,Y2),1,0),0)","v":0},{"$f":"IF(ISNUMBER(SEARCH(LEFT(Анкета!$D$42,255),W2)),MAX($V$1:V1)+1,0)","v":1},"1. ГОСТ Р ИСО 9001-2015 (ISO 9001:2015) Системы менеджмента качества. Требования",1,{"$f":"VLOOKUP(X2,V:W,2,0)","v":"1. ГОСТ Р ИСО 9001-2015 (ISO 9001:2015) Системы менеджмента качества. Требования"}]
[{"$f":"IFERROR(IF(EXACT(Анкета!$D$38,E3),1,0),0)","v":0},{"$f":"IF(ISNUMBER(SEARCH(LEFT(Анкета!$D$38,255),C3)),MAX(B$1:$B2)+1,0)","v":2},"2. ГОСТ Р ИСО 14001-2016 (ISO 14001:2015) Системы экологического менеджмента. Требования и руководство по применению",2,"2. ГОСТ Р ИСО 14001-2016 (ISO 14001:2015) Системы экологического менеджмента. Требования и руководство по применению",{"$f":"IFERROR(IF(EXACT(Анкета!$D$36,J3),1,0),0)","v":0},{"$f":"IF(ISNUMBER(SEARCH(LEFT(Анкета!$D$36,255),H3)),MAX($G$1:G2)+1,0)","v":2},"2. ГОСТ Р ИСО 14001-2016 (ISO 14001:2015) Системы экологического менеджмента. Требования и руководство по применению",2,"2. ГОСТ Р ИСО 14001-2016 (ISO 14001:2015) Системы экологического менеджмента. Требования и руководство по применению",{"$f":"IFERROR(IF(EXACT(Анкета!$D$34,O3),1,0),0)","v":0},{"$f":"IF(ISNUMBER(SEARCH(LEFT(Анкета!$D$34,255),M3)),MAX($L$1:L2)+1,0)","v":2},"2. ГОСТ Р ИСО 14001-2016 (ISO 14001:2015) Системы экологического менеджмента. Требования и руководство по применению",2,"2. ГОСТ Р ИСО 14001-2016 (ISO 14001:2015) Системы экологического менеджмента. Требования и руководство по применению",{"$f":"IFERROR(IF(EXACT(Анкета!$D$40,T3),1,0),0)","v":0},{"$f":"IF(ISNUMBER(SEARCH(LEFT(Анкета!$D$40,255),R3)),MAX($Q$1:Q2)+1,0)","v":2},"2. ГОСТ Р ИСО 14001-2016 (ISO 14001:2015) Системы экологического менеджмента. Требования и руководство по применению",2,"2. ГОСТ Р ИСО 14001-2016 (ISO 14001:2015) Системы экологического менеджмента. Требования и руководство по применению",{"$f":"IFERROR(IF(EXACT(Анкета!$D$42,Y3),1,0),0)","v":0},{"$f":"IF(ISNUMBER(SEARCH(LEFT(Анкета!$D$42,255),W3)),MAX($V$1:V2)+1,0)","v":2},"2. ГОСТ Р ИСО 14001-2016 (ISO 14001:2015) Системы экологического менеджмента. Требования и руководство по применению",2,"2. ГОСТ Р ИСО 14001-2016 (ISO 14001:2015) Системы экологического менеджмента. Требования и руководство по применению"]
[{"$f":"IFERROR(IF(EXACT(Анкета!$D$38,E4),1,0),0)","v":0},{"$f":"IF(ISNUMBER(SEARCH(LEFT(Анкета!$D$38,255),C4)),MAX(B$1:$B3)+1,0)","v":3},"3. ГОСТ Р ИСО 45001-2020 (ISO 45001:2018) Системы менеджмента безопасности труда и охраны здоровья. Требования",3,"3. ГОСТ Р ИСО 45001-2020 (ISO 45001:2018) Системы менеджмента безопасности труда и охраны здоровья. Требования",{"$f":"IFERROR(IF(EXACT(Анкета!$D$36,J4),1,0),0)","v":0},{"$f":"IF(ISNUMBER(SEARCH(LEFT(Анкета!$D$36,255),H4)),MAX($G$1:G3)+1,0)","v":3},"3. ГОСТ Р ИСО 45001-2020 (ISO 45001:2018) Системы менеджмента безопасности труда и охраны здоровья. Требования",3,"3. ГОСТ Р ИСО 45001-2020 (ISO 45001:2018) Системы менеджмента безопасности труда и охраны здоровья. Требования",{"$f":"IFERROR(IF(EXACT(Анкета!$D$34,O4),1,0),0)","v":0},{"$f":"IF(ISNUMBER(SEARCH(LEFT(Анкета!$D$34,255),M4)),MAX($L$1:L3)+1,0)","v":3},"3. ГОСТ Р ИСО 45001-2020 (ISO 45001:2018) Системы менеджмента безопасности труда и охраны здоровья. Требования",3,"3. ГОСТ Р ИСО 45001-2020 (ISO 45001:2018) Системы менеджмента безопасности труда и охраны здоровья. Требования",{"$f":"IFERROR(IF(EXACT(Анкета!$D$40,T4),1,0),0)","v":0},{"$f":"IF(ISNUMBER(SEARCH(LEFT(Анкета!$D$40,255),R4)),MAX($Q$1:Q3)+1,0)","v":3},"3. ГОСТ Р ИСО 45001-2020 (ISO 45001:2018) Системы менеджмента безопасности труда и охраны здоровья. Требования",3,"3. ГОСТ Р ИСО 45001-2020 (ISO 45001:2018) Системы менеджмента безопасности труда и охраны здоровья. Требования",{"$f":"IFERROR(IF(EXACT(Анкета!$D$42,Y4),1,0),0)","v":0},{"$f":"IF(ISNUMBER(SEARCH(LEFT(Анкета!$D$42,255),W4)),MAX($V$1:V3)+1,0)","v":3},"3. ГОСТ Р ИСО 45001-2020 (ISO 45001:2018) Системы менеджмента безопасности труда и охраны здоровья. Требования",3,"3. ГОСТ Р ИСО 45001-2020 (ISO 45001:2018) Системы менеджмента безопасности труда и охраны здоровья. Требования"]
[{"$f":"IFERROR(IF(EXACT(Анкета!$D$38,E5),1,0),0)","v":0},{"$f":"IF(ISNUMBER(SEARCH(LEFT(Анкета!$D$38,255),C5)),MAX(B$1:$B4)+1,0)","v":4},"4. ГОСТ 12.0.230-2007 (ILO-OSH 2001) Система стандартов безопасности труда (ССБТ). Системы управления охраной труда. Общие требования",4,"4. ГОСТ 12.0.230-2007 (ILO-OSH 2001) Система стандартов безопасности труда (ССБТ). Системы управления охраной труда. Общие требования",{"$f":"IFERROR(IF(EXACT(Анкета!$D$36,J5),1,0),0)","v":0},{"$f":"IF(ISNUMBER(SEARCH(LEFT(Анкета!$D$36,255),H5)),MAX($G$1:G4)+1,0)","v":4},"4. ГОСТ 12.0.230-2007 (ILO-OSH 2001) Система стандартов безопасности труда (ССБТ). Системы управления охраной труда. Общие требования",4,"4. ГОСТ 12.0.230-2007 (ILO-OSH 2001) Система стандартов безопасности труда (ССБТ). Системы управления охраной труда. Общие требования",{"$f":"IFERROR(IF(EXACT(Анкета!$D$34,O5),1,0),0)","v":0},{"$f":"IF(ISNUMBER(SEARCH(LEFT(Анкета!$D$34,255),M5)),MAX($L$1:L4)+1,0)","v":4},"4. ГОСТ 12.0.230-2007 (ILO-OSH 2001) Система стандартов безопасности труда (ССБТ). Системы управления охраной труда. Общие требования",4,"4. ГОСТ 12.0.230-2007 (ILO-OSH 2001) Система стандартов безопасности труда (ССБТ). Системы управления охраной труда. Общие требования",{"$f":"IFERROR(IF(EXACT(Анкета!$D$40,T5),1,0),0)","v":0},{"$f":"IF(ISNUMBER(SEARCH(LEFT(Анкета!$D$40,255),R5)),MAX($Q$1:Q4)+1,0)","v":4},"4. ГОСТ 12.0.230-2007 (ILO-OSH 2001) Система стандартов безопасности труда (ССБТ). Системы управления охраной труда. Общие требования",4,"4. ГОСТ 12.0.230-2007 (ILO-OSH 2001) Система стандартов безопасности труда (ССБТ). Системы управления охраной труда. Общие требования",{"$f":"IFERROR(IF(EXACT(Анкета!$D$42,Y5),1,0),0)","v":0},{"$f":"IF(ISNUMBER(SEARCH(LEFT(Анкета!$D$42,255),W5)),MAX($V$1:V4)+1,0)","v":4},"4. ГОСТ 12.0.230-2007 (ILO-OSH 2001) Система стандартов безопасности труда (ССБТ). Системы управления охраной труда. Общие требования",4,"4. ГОСТ 12.0.230-2007 (ILO-OSH 2001) Система стандартов безопасности труда (ССБТ). Системы управления охраной труда. Общие требования"]
[{"$f":"IFERROR(IF(EXACT(Анкета!$D$38,E6),1,0),0)","v":0},{"$f":"IF(ISNUMBER(SEARCH(LEFT(Анкета!$D$38,255),C6)),MAX(B$1:$B5)+1,0)","v":5},"5. ГОСТ Р 12.0.009-2009 Система стандартов безопасности труда (ССБТ). Система управления охраной труда на малых предприятиях. Требования и рекомендации по применению",5,"5. ГОСТ Р 12.0.009-2009 Система стандартов безопасности труда (ССБТ). Система управления охраной труда на малых предприятиях. Требования и рекомендации по применению",{"$f":"IFERROR(IF(EXACT(Анкета!$D$36,J6),1,0),0)","v":0},{"$f":"IF(ISNUMBER(SEARCH(LEFT(Анкета!$D$36,255),H6)),MAX($G$1:G5)+1,0)","v":5},"5. ГОСТ Р 12.0.009-2009 Система стандартов безопасности труда (ССБТ). Система управления охраной труда на малых предприятиях. Требования и рекомендации по применению",5,"5. ГОСТ Р 12.0.009-2009 Система стандартов безопасности труда (ССБТ). Система управления охраной труда на малых предприятиях. Требования и рекомендации по применению",{"$f":"IFERROR(IF(EXACT(Анкета!$D$34,O6),1,0),0)","v":0},{"$f":"IF(ISNUMBER(SEARCH(LEFT(Анкета!$D$34,255),M6)),MAX($L$1:L5)+1,0)","v":5},"5. ГОСТ Р 12.0.009-2009 Система стандартов безопасности труда (ССБТ). Система управления охраной труда на малых предприятиях. Требования и рекомендации по применению",5,"5. ГОСТ Р 12.0.009-2009 Система стандартов безопасности труда (ССБТ). Система управления охраной труда на малых предприятиях. Требования и рекомендации по применению",{"$f":"IFERROR(IF(EXACT(Анкета!$D$40,T6),1,0),0)","v":0},{"$f":"IF(ISNUMBER(SEARCH(LEFT(Анкета!$D$40,255),R6)),MAX($Q$1:Q5)+1,0)","v":5},"5. ГОСТ Р 12.0.009-2009 Система стандартов безопасности труда (ССБТ). Система управления охраной труда на малых предприятиях. Требования и рекомендации по применению",5,"5. ГОСТ Р 12.0.009-2009 Система стандартов безопасности труда (ССБТ). Система управления охраной труда на малых предприятиях. Требования и рекомендации по применению",{"$f":"IFERROR(IF(EXACT(Анкета!$D$42,Y6),1,0),0)","v":0},{"$f":"IF(ISNUMBER(SEARCH(LEFT(Анкета!$D$42,255),W6)),MAX($V$1:V5)+1,0)","v":5},"5. ГОСТ Р 12.0.009-2009 Система стандартов безопасности труда (ССБТ). Система управления охраной труда на малых предприятиях. Требования и рекомендации по применению",5,"5. ГОСТ Р 12.0.009-2009 Система стандартов безопасности труда (ССБТ). Система управления охраной труда на малых предприятиях. Требования и рекомендации по применению"]
[{"$f":"IFERROR(IF(EXACT(Анкета!$D$38,E7),1,0),0)","v":0},{"$f":"IF(ISNUMBER(SEARCH(LEFT(Анкета!$D$38,255),C7)),MAX(B$1:$B6)+1,0)","v":6},"6. ГОСТ Р 52614.2-2006. (IWA 2:2003) Системы менеджмента качества. Руководящие указания по применению ГОСТ Р ИСО 9001-2001 в сфере образования",6,"6. ГОСТ Р 52614.2-2006. (IWA 2:2003) Системы менеджмента качества. Руководящие указания по применению ГОСТ Р ИСО 9001-2001 в сфере образования",{"$f":"IFERROR(IF(EXACT(Анкета!$D$36,J7),1,0),0)","v":0},{"$f":"IF(ISNUMBER(SEARCH(LEFT(Анкета!$D$36,255),H7)),MAX($G$1:G6)+1,0)","v":6},"6. ГОСТ Р 52614.2-2006. (IWA 2:2003) Системы менеджмента качества. Руководящие указания по применению ГОСТ Р ИСО 9001-2001 в сфере образования",6,"6. ГОСТ Р 52614.2-2006. (IWA 2:2003) Системы менеджмента качества. Руководящие указания по применению ГОСТ Р ИСО 9001-2001 в сфере образования",{"$f":"IFERROR(IF(EXACT(Анкета!$D$34,O7),1,0),0)","v":0},{"$f":"IF(ISNUMBER(SEARCH(LEFT(Анкета!$D$34,255),M7)),MAX($L$1:L6)+1,0)","v":6},"6. ГОСТ Р 52614.2-2006. (IWA 2:2003) Системы менеджмента качества. Руководящие указания по применению ГОСТ Р ИСО 9001-2001 в сфере образования",6,"6. ГОСТ Р 52614.2-2006. (IWA 2:2003) Системы менеджмента качества. Руководящие указания по применению ГОСТ Р ИСО 9001-2001 в сфере образования",{"$f":"IFERROR(IF(EXACT(Анкета!$D$40,T7),1,0),0)","v":0},{"$f":"IF(ISNUMBER(SEARCH(LEFT(Анкета!$D$40,255),R7)),MAX($Q$1:Q6)+1,0)","v":6},"6. ГОСТ Р 52614.2-2006. (IWA 2:2003) Системы менеджмента качества. Руководящие указания по применению ГОСТ Р ИСО 9001-2001 в сфере образования",6,"6. ГОСТ Р 52614.2-2006. (IWA 2:2003) Системы менеджмента качества. Руководящие указания по применению ГОСТ Р ИСО 9001-2001 в сфере образования",{"$f":"IFERROR(IF(EXACT(Анкета!$D$42,Y7),1,0),0)","v":0},{"$f":"IF(ISNUMBER(SEARCH(LEFT(Анкета!$D$42,255),W7)),MAX($V$1:V6)+1,0)","v":6},"6. ГОСТ Р 52614.2-2006. (IWA 2:2003) Системы менеджмента качества. Руководящие указания по применению ГОСТ Р ИСО 9001-2001 в сфере образования",6,"6. ГОСТ Р 52614.2-2006. (IWA 2:2003) Системы менеджмента качества. Руководящие указания по применению ГОСТ Р ИСО 9001-2001 в сфере образования"]
[{"$f":"IFERROR(IF(EXACT(Анкета!$D$38,E8),1,0),0)","v":0},{"$f":"IF(ISNUMBER(SEARCH(LEFT(Анкета!$D$38,255),C8)),MAX(B$1:$B7)+1,0)","v":7},"7.  ГОСТ Р ИСО 22000-2019 (ISO 22000:2018) Системы менеджмента безопасности пищевой продукции. Требования к организациям, участвующим в цепи создания пищевой продукции",7,"7.  ГОСТ Р ИСО 22000-2019 (ISO 22000:2018) Системы менеджмента безопасности пищевой продукции. Требования к организациям, участвующим в цепи создания пищевой продукции",{"$f":"IFERROR(IF(EXACT(Анкета!$D$36,J8),1,0),0)","v":0},{"$f":"IF(ISNUMBER(SEARCH(LEFT(Анкета!$D$36,255),H8)),MAX($G$1:G7)+1,0)","v":7},"7.  ГОСТ Р ИСО 22000-2019 (ISO 22000:2018) Системы менеджмента безопасности пищевой продукции. Требования к организациям, участвующим в цепи создания пищевой продукции",7,"7.  ГОСТ Р ИСО 22000-2019 (ISO 22000:2018) Системы менеджмента безопасности пищевой продукции. Требования к организациям, участвующим в цепи создания пищевой продукции",{"$f":"IFERROR(IF(EXACT(Анкета!$D$34,O8),1,0),0)","v":0},{"$f":"IF(ISNUMBER(SEARCH(LEFT(Анкета!$D$34,255),M8)),MAX($L$1:L7)+1,0)","v":7},"7.  ГОСТ Р ИСО 22000-2019 (ISO 22000:2018) Системы менеджмента безопасности пищевой продукции. Требования к организациям, участвующим в цепи создания пищевой продукции",7,"7.  ГОСТ Р ИСО 22000-2019 (ISO 22000:2018) Системы менеджмента безопасности пищевой продукции. Требования к организациям, участвующим в цепи создания пищевой продукции",{"$f":"IFERROR(IF(EXACT(Анкета!$D$40,T8),1,0),0)","v":0},{"$f":"IF(ISNUMBER(SEARCH(LEFT(Анкета!$D$40,255),R8)),MAX($Q$1:Q7)+1,0)","v":7},"7.  ГОСТ Р ИСО 22000-2019 (ISO 22000:2018) Системы менеджмента безопасности пищевой продукции. Требования к организациям, участвующим в цепи создания пищевой продукции",7,"7.  ГОСТ Р ИСО 22000-2019 (ISO 22000:2018) Системы менеджмента безопасности пищевой продукции. Требования к организациям, участвующим в цепи создания пищевой продукции",{"$f":"IFERROR(IF(EXACT(Анкета!$D$42,Y8),1,0),0)","v":0},{"$f":"IF(ISNUMBER(SEARCH(LEFT(Анкета!$D$42,255),W8)),MAX($V$1:V7)+1,0)","v":7},"7.  ГОСТ Р ИСО 22000-2019 (ISO 22000:2018) Системы менеджмента безопасности пищевой продукции. Требования к организациям, участвующим в цепи создания пищевой продукции",7,"7.  ГОСТ Р ИСО 22000-2019 (ISO 22000:2018) Системы менеджмента безопасности пищевой продукции. Требования к организациям, участвующим в цепи создания пищевой продукции"]
[{"$f":"IFERROR(IF(EXACT(Анкета!$D$38,E9),1,0),0)","v":0},{"$f":"IF(ISNUMBER(SEARCH(LEFT(Анкета!$D$38,255),C9)),MAX(B$1:$B8)+1,0)","v":8},"8. ГОСТ ISO 13485-2017 (ISO 13485:2016) Изделия медицинские. Системы менеджмента качества. Системные требования для целей регулирования",8,"8. ГОСТ ISO 13485-2017 (ISO 13485:2016) Изделия медицинские. Системы менеджмента качества. Системные требования для целей регулирования",{"$f":"IFERROR(IF(EXACT(Анкета!$D$36,J9),1,0),0)","v":0},{"$f":"IF(ISNUMBER(SEARCH(LEFT(Анкета!$D$36,255),H9)),MAX($G$1:G8)+1,0)","v":8},"8. ГОСТ ISO 13485-2017 (ISO 13485:2016) Изделия медицинские. Системы менеджмента качества. Системные требования для целей регулирования",8,"8. ГОСТ ISO 13485-2017 (ISO 13485:2016) Изделия медицинские. Системы менеджмента качества. Системные требования для целей регулирования",{"$f":"IFERROR(IF(EXACT(Анкета!$D$34,O9),1,0),0)","v":0},{"$f":"IF(ISNUMBER(SEARCH(LEFT(Анкета!$D$34,255),M9)),MAX($L$1:L8)+1,0)","v":8},"8. ГОСТ ISO 13485-2017 (ISO 13485:2016) Изделия медицинские. Системы менеджмента качества. Системные требования для целей регулирования",8,"8. ГОСТ ISO 13485-2017 (ISO 13485:2016) Изделия медицинские. Системы менеджмента качества. Системные требования для целей регулирования",{"$f":"IFERROR(IF(EXACT(Анкета!$D$40,T9),1,0),0)","v":0},{"$f":"IF(ISNUMBER(SEARCH(LEFT(Анкета!$D$40,255),R9)),MAX($Q$1:Q8)+1,0)","v":8},"8. ГОСТ ISO 13485-2017 (ISO 13485:2016) Изделия медицинские. Системы менеджмента качества. Системные требования для целей регулирования",8,"8. ГОСТ ISO 13485-2017 (ISO 13485:2016) Изделия медицинские. Системы менеджмента качества. Системные требования для целей регулирования",{"$f":"IFERROR(IF(EXACT(Анкета!$D$42,Y9),1,0),0)","v":0},{"$f":"IF(ISNUMBER(SEARCH(LEFT(Анкета!$D$42,255),W9)),MAX($V$1:V8)+1,0)","v":8},"8. ГОСТ ISO 13485-2017 (ISO 13485:2016) Изделия медицинские. Системы менеджмента качества. Системные требования для целей регулирования",8,"8. ГОСТ ISO 13485-2017 (ISO 13485:2016) Изделия медицинские. Системы менеджмента качества. Системные требования для целей регулирования"]
[{"$f":"IFERROR(IF(EXACT(Анкета!$D$38,E10),1,0),0)","v":0},{"$f":"IF(ISNUMBER(SEARCH(LEFT(Анкета!$D$38,255),C10)),MAX(B$1:$B9)+1,0)","v":9},"9. ГОСТ Р ИСО/МЭК 20000-1-2021 (ISO/ IEC 20000-1:2018) Информационные технологии. Менеджмент сервисов. Часть 1: Требования к системе менеджмента сервисов",9,"9. ГОСТ Р ИСО/МЭК 20000-1-2021 (ISO/ IEC 20000-1:2018) Информационные технологии. Менеджмент сервисов. Часть 1: Требования к системе менеджмента сервисов",{"$f":"IFERROR(IF(EXACT(Анкета!$D$36,J10),1,0),0)","v":0},{"$f":"IF(ISNUMBER(SEARCH(LEFT(Анкета!$D$36,255),H10)),MAX($G$1:G9)+1,0)","v":9},"9. ГОСТ Р ИСО/МЭК 20000-1-2021 (ISO/ IEC 20000-1:2018) Информационные технологии. Менеджмент сервисов. Часть 1: Требования к системе менеджмента сервисов",9,"9. ГОСТ Р ИСО/МЭК 20000-1-2021 (ISO/ IEC 20000-1:2018) Информационные технологии. Менеджмент сервисов. Часть 1: Требования к системе менеджмента сервисов",{"$f":"IFERROR(IF(EXACT(Анкета!$D$34,O10),1,0),0)","v":0},{"$f":"IF(ISNUMBER(SEARCH(LEFT(Анкета!$D$34,255),M10)),MAX($L$1:L9)+1,0)","v":9},"9. ГОСТ Р ИСО/МЭК 20000-1-2021 (ISO/ IEC 20000-1:2018) Информационные технологии. Менеджмент сервисов. Часть 1: Требования к системе менеджмента сервисов",9,"9. ГОСТ Р ИСО/МЭК 20000-1-2021 (ISO/ IEC 20000-1:2018) Информационные технологии. Менеджмент сервисов. Часть 1: Требования к системе менеджмента сервисов",{"$f":"IFERROR(IF(EXACT(Анкета!$D$40,T10),1,0),0)","v":0},{"$f":"IF(ISNUMBER(SEARCH(LEFT(Анкета!$D$40,255),R10)),MAX($Q$1:Q9)+1,0)","v":9},"9. ГОСТ Р ИСО/МЭК 20000-1-2021 (ISO/ IEC 20000-1:2018) Информационные технологии. Менеджмент сервисов. Часть 1: Требования к системе менеджмента сервисов",9,"9. ГОСТ Р ИСО/МЭК 20000-1-2021 (ISO/ IEC 20000-1:2018) Информационные технологии. Менеджмент сервисов. Часть 1: Требования к системе менеджмента сервисов",{"$f":"IFERROR(IF(EXACT(Анкета!$D$42,Y10),1,0),0)","v":0},{"$f":"IF(ISNUMBER(SEARCH(LEFT(Анкета!$D$42,255),W10)),MAX($V$1:V9)+1,0)","v":9},"9. ГОСТ Р ИСО/МЭК 20000-1-2021 (ISO/ IEC 20000-1:2018) Информационные технологии. Менеджмент сервисов. Часть 1: Требования к системе менеджмента сервисов",9,"9. ГОСТ Р ИСО/МЭК 20000-1-2021 (ISO/ IEC 20000-1:2018) Информационные технологии. Менеджмент сервисов. Часть 1: Требования к системе менеджмента сервисов"]
[{"$f":"IFERROR(IF(EXACT(Анкета!$D$38,E11),1,0),0)","v":0},{"$f":"IF(ISNUMBER(SEARCH(LEFT(Анкета!$D$38,255),C11)),MAX(B$1:$B10)+1,0)","v":10},"10.   Сертификат на услуги",10,"10.   Сертификат на услуги",{"$f":"IFERROR(IF(EXACT(Анкета!$D$36,J11),1,0),0)","v":0},{"$f":"IF(ISNUMBER(SEARCH(LEFT(Анкета!$D$36,255),H11)),MAX($G$1:G10)+1,0)","v":10},"10.   Сертификат на услуги",10,"10.   Сертификат на услуги",{"$f":"IFERROR(IF(EXACT(Анкета!$D$34,O11),1,0),0)","v":0},{"$f":"IF(ISNUMBER(SEARCH(LEFT(Анкета!$D$34,255),M11)),MAX($L$1:L10)+1,0)","v":10},"10.   Сертификат на услуги",10,"10.   Сертификат на услуги",{"$f":"IFERROR(IF(EXACT(Анкета!$D$40,T11),1,0),0)","v":0},{"$f":"IF(ISNUMBER(SEARCH(LEFT(Анкета!$D$40,255),R11)),MAX($Q$1:Q10)+1,0)","v":10},"10.   Сертификат на услуги",10,"10.   Сертификат на услуги",{"$f":"IFERROR(IF(EXACT(Анкета!$D$42,Y11),1,0),0)","v":0},{"$f":"IF(ISNUMBER(SEARCH(LEFT(Анкета!$D$42,255),W11)),MAX($V$1:V10)+1,0)","v":10},"10.   Сертификат на услуги",10,"10.   Сертификат на услуги"]
[{"$f":"IFERROR(IF(EXACT(Анкета!$D$38,E12),1,0),0)","v":0},11,"11.   ГОСТ Р ИСО/МЭК 27001-2021 (ISO/ IEC 27001:2013) Информационная технология. Методы и средства обеспечения безопасности. Системы менеджмента информационной безопасности требования. Система менеджмента информационной безопасности",11,"11.   ГОСТ Р ИСО/МЭК 27001-2021 (ISO/ IEC 27001:2013) Информационная технология. Методы и средства обеспечения безопасности. Системы менеджмента информационной безопасности требования. Система менеджмента информационной безопасности",{"$f":"IFERROR(IF(EXACT(Анкета!$D$36,J12),1,0),0)","v":0},11,"11.   ГОСТ Р ИСО/МЭК 27001-2021 (ISO/ IEC 27001:2013) Информационная технология. Методы и средства обеспечения безопасности. Системы менеджмента информационной безопасности требования. Система менеджмента информационной безопасности",11,"11.   ГОСТ Р ИСО/МЭК 27001-2021 (ISO/ IEC 27001:2013) Информационная технология. Методы и средства обеспечения безопасности. Системы менеджмента информационной безопасности требования. Система менеджмента информационной безопасности",{"$f":"IFERROR(IF(EXACT(Анкета!$D$34,O12),1,0),0)","v":0},11,"11.   ГОСТ Р ИСО/МЭК 27001-2021 (ISO/ IEC 27001:2013) Информационная технология. Методы и средства обеспечения безопасности. Системы менеджмента информационной безопасности требования. Система менеджмента информационной безопасности",11,"11.   ГОСТ Р ИСО/МЭК 27001-2021 (ISO/ IEC 27001:2013) Информационная технология. Методы и средства обеспечения безопасности. Системы менеджмента информационной безопасности требования. Система менеджмента информационной безопасности",{"$f":"IFERROR(IF(EXACT(Анкета!$D$40,T12),1,0),0)","v":0},11,"11.   ГОСТ Р ИСО/МЭК 27001-2021 (ISO/ IEC 27001:2013) Информационная технология. Методы и средства обеспечения безопасности. Системы менеджмента информационной безопасности требования. Система менеджмента информационной безопасности",11,"11.   ГОСТ Р ИСО/МЭК 27001-2021 (ISO/ IEC 27001:2013) Информационная технология. Методы и средства обеспечения безопасности. Системы менеджмента информационной безопасности требования. Система менеджмента информационной безопасности",{"$f":"IFERROR(IF(EXACT(Анкета!$D$42,Y12),1,0),0)","v":0},11,"11.   ГОСТ Р ИСО/МЭК 27001-2021 (ISO/ IEC 27001:2013) Информационная технология. Методы и средства обеспечения безопасности. Системы менеджмента информационной безопасности требования. Система менеджмента информационной безопасности",11,"11.   ГОСТ Р ИСО/МЭК 27001-2021 (ISO/ IEC 27001:2013) Информационная технология. Методы и средства обеспечения безопасности. Системы менеджмента информационной безопасности требования. Система менеджмента информационной безопасности"]
[{"$f":"IFERROR(IF(EXACT(Анкета!$D$38,E13),1,0),0)","v":0},{"$f":"IF(ISNUMBER(SEARCH(LEFT(Анкета!$D$38,255),C13)),MAX(B$1:$B12)+1,0)","v":12},"12.   ГОСТ Р ИСО 50001-2023 (ISO 50001:2018) Системы энергетического менеджмента. Требования и руководство по применению",12,"12.   ГОСТ Р ИСО 50001-2023 (ISO 50001:2018) Системы энергетического менеджмента. Требования и руководство по применению",{"$f":"IFERROR(IF(EXACT(Анкета!$D$36,J13),1,0),0)","v":0},{"$f":"IF(ISNUMBER(SEARCH(LEFT(Анкета!$D$36,255),H13)),MAX($G$1:G12)+1,0)","v":12},"12.   ГОСТ Р ИСО 50001-2023 (ISO 50001:2018) Системы энергетического менеджмента. Требования и руководство по применению",12,"12.   ГОСТ Р ИСО 50001-2023 (ISO 50001:2018) Системы энергетического менеджмента. Требования и руководство по применению",{"$f":"IFERROR(IF(EXACT(Анкета!$D$34,O13),1,0),0)","v":0},{"$f":"IF(ISNUMBER(SEARCH(LEFT(Анкета!$D$34,255),M13)),MAX($L$1:L12)+1,0)","v":12},"12.   ГОСТ Р ИСО 50001-2023 (ISO 50001:2018) Системы энергетического менеджмента. Требования и руководство по применению",12,"12.   ГОСТ Р ИСО 50001-2023 (ISO 50001:2018) Системы энергетического менеджмента. Требования и руководство по применению",{"$f":"IFERROR(IF(EXACT(Анкета!$D$40,T13),1,0),0)","v":0},{"$f":"IF(ISNUMBER(SEARCH(LEFT(Анкета!$D$40,255),R13)),MAX($Q$1:Q12)+1,0)","v":12},"12.   ГОСТ Р ИСО 50001-2023 (ISO 50001:2018) Системы энергетического менеджмента. Требования и руководство по применению",12,"12.   ГОСТ Р ИСО 50001-2023 (ISO 50001:2018) Системы энергетического менеджмента. Требования и руководство по применению",{"$f":"IFERROR(IF(EXACT(Анкета!$D$42,Y13),1,0),0)","v":0},{"$f":"IF(ISNUMBER(SEARCH(LEFT(Анкета!$D$42,255),W13)),MAX($V$1:V12)+1,0)","v":12},"12.   ГОСТ Р ИСО 50001-2023 (ISO 50001:2018) Системы энергетического менеджмента. Требования и руководство по применению",12,"12.   ГОСТ Р ИСО 50001-2023 (ISO 50001:2018) Системы энергетического менеджмента. Требования и руководство по применению"]
[{"$f":"IFERROR(IF(EXACT(Анкета!$D$38,E14),1,0),0)","v":0},{"$f":"IF(ISNUMBER(SEARCH(LEFT(Анкета!$D$38,255),C14)),MAX(B$1:$B13)+1,0)","v":13},"13.   ГОСТ Р 53663-2009 (ISO 28000:2007) Система менеджмента безопасности цепи поставок. Требования",13,"13.   ГОСТ Р 53663-2009 (ISO 28000:2007) Система менеджмента безопасности цепи поставок. Требования",{"$f":"IFERROR(IF(EXACT(Анкета!$D$36,J14),1,0),0)","v":0},{"$f":"IF(ISNUMBER(SEARCH(LEFT(Анкета!$D$36,255),H14)),MAX($G$1:G13)+1,0)","v":13},"13.   ГОСТ Р 53663-2009 (ISO 28000:2007) Система менеджмента безопасности цепи поставок. Требования",13,"13.   ГОСТ Р 53663-2009 (ISO 28000:2007) Система менеджмента безопасности цепи поставок. Требования",{"$f":"IFERROR(IF(EXACT(Анкета!$D$34,O14),1,0),0)","v":0},{"$f":"IF(ISNUMBER(SEARCH(LEFT(Анкета!$D$34,255),M14)),MAX($L$1:L13)+1,0)","v":13},"13.   ГОСТ Р 53663-2009 (ISO 28000:2007) Система менеджмента безопасности цепи поставок. Требования",13,"13.   ГОСТ Р 53663-2009 (ISO 28000:2007) Система менеджмента безопасности цепи поставок. Требования",{"$f":"IFERROR(IF(EXACT(Анкета!$D$40,T14),1,0),0)","v":0},{"$f":"IF(ISNUMBER(SEARCH(LEFT(Анкета!$D$40,255),R14)),MAX($Q$1:Q13)+1,0)","v":13},"13.   ГОСТ Р 53663-2009 (ISO 28000:2007) Система менеджмента безопасности цепи поставок. Требования",13,"13.   ГОСТ Р 53663-2009 (ISO 28000:2007) Система менеджмента безопасности цепи поставок. Требования",{"$f":"IFERROR(IF(EXACT(Анкета!$D$42,Y14),1,0),0)","v":0},{"$f":"IF(ISNUMBER(SEARCH(LEFT(Анкета!$D$42,255),W14)),MAX($V$1:V13)+1,0)","v":13},"13.   ГОСТ Р 53663-2009 (ISO 28000:2007) Система менеджмента безопасности цепи поставок. Требования",13,"13.   ГОСТ Р 53663-2009 (ISO 28000:2007) Система менеджмента безопасности цепи поставок. Требования"]
[{"$f":"IFERROR(IF(EXACT(Анкета!$D$38,E15),1,0),0)","v":0},{"$f":"IF(ISNUMBER(SEARCH(LEFT(Анкета!$D$38,255),C15)),MAX(B$1:$B14)+1,0)","v":14},"14.   ГОСТ Р ИСО 22301-2021 (ISO 22301:2019) Система управления непрерывностью бизнеса. Общие требования",14,"14.   ГОСТ Р ИСО 22301-2021 (ISO 22301:2019) Система управления непрерывностью бизнеса. Общие требования",{"$f":"IFERROR(IF(EXACT(Анкета!$D$36,J15),1,0),0)","v":0},{"$f":"IF(ISNUMBER(SEARCH(LEFT(Анкета!$D$36,255),H15)),MAX($G$1:G14)+1,0)","v":14},"14.   ГОСТ Р ИСО 22301-2021 (ISO 22301:2019) Система управления непрерывностью бизнеса. Общие требования",14,"14.   ГОСТ Р ИСО 22301-2021 (ISO 22301:2019) Система управления непрерывностью бизнеса. Общие требования",{"$f":"IFERROR(IF(EXACT(Анкета!$D$34,O15),1,0),0)","v":0},{"$f":"IF(ISNUMBER(SEARCH(LEFT(Анкета!$D$34,255),M15)),MAX($L$1:L14)+1,0)","v":14},"14.   ГОСТ Р ИСО 22301-2021 (ISO 22301:2019) Система управления непрерывностью бизнеса. Общие требования",14,"14.   ГОСТ Р ИСО 22301-2021 (ISO 22301:2019) Система управления непрерывностью бизнеса. Общие требования",{"$f":"IFERROR(IF(EXACT(Анкета!$D$40,T15),1,0),0)","v":0},{"$f":"IF(ISNUMBER(SEARCH(LEFT(Анкета!$D$40,255),R15)),MAX($Q$1:Q14)+1,0)","v":14},"14.   ГОСТ Р ИСО 22301-2021 (ISO 22301:2019) Система управления непрерывностью бизнеса. Общие требования",14,"14.   ГОСТ Р ИСО 22301-2021 (ISO 22301:2019) Система управления непрерывностью бизнеса. Общие требования",{"$f":"IFERROR(IF(EXACT(Анкета!$D$42,Y15),1,0),0)","v":0},{"$f":"IF(ISNUMBER(SEARCH(LEFT(Анкета!$D$42,255),W15)),MAX($V$1:V14)+1,0)","v":14},"14.   ГОСТ Р ИСО 22301-2021 (ISO 22301:2019) Система управления непрерывностью бизнеса. Общие требования",14,"14.   ГОСТ Р ИСО 22301-2021 (ISO 22301:2019) Система управления непрерывностью бизнеса. Общие требования"]
[{"$f":"IFERROR(IF(EXACT(Анкета!$D$38,E16),1,0),0)","v":0},{"$f":"IF(ISNUMBER(SEARCH(LEFT(Анкета!$D$38,255),C16)),MAX(B$1:$B15)+1,0)","v":15},"15.   ГОСТ Р ИСО 39001-2014 (ISO 39001:2012) Система менеджмента безопасности дорожного движения. Требования и руководство по применению.",15,"15.   ГОСТ Р ИСО 39001-2014 (ISO 39001:2012) Система менеджмента безопасности дорожного движения. Требования и руководство по применению.",{"$f":"IFERROR(IF(EXACT(Анкета!$D$36,J16),1,0),0)","v":0},{"$f":"IF(ISNUMBER(SEARCH(LEFT(Анкета!$D$36,255),H16)),MAX($G$1:G15)+1,0)","v":15},"15.   ГОСТ Р ИСО 39001-2014 (ISO 39001:2012) Система менеджмента безопасности дорожного движения. Требования и руководство по применению.",15,"15.   ГОСТ Р ИСО 39001-2014 (ISO 39001:2012) Система менеджмента безопасности дорожного движения. Требования и руководство по применению.",{"$f":"IFERROR(IF(EXACT(Анкета!$D$34,O16),1,0),0)","v":0},{"$f":"IF(ISNUMBER(SEARCH(LEFT(Анкета!$D$34,255),M16)),MAX($L$1:L15)+1,0)","v":15},"15.   ГОСТ Р ИСО 39001-2014 (ISO 39001:2012) Система менеджмента безопасности дорожного движения. Требования и руководство по применению.",15,"15.   ГОСТ Р ИСО 39001-2014 (ISO 39001:2012) Система менеджмента безопасности дорожного движения. Требования и руководство по применению.",{"$f":"IFERROR(IF(EXACT(Анкета!$D$40,T16),1,0),0)","v":0},{"$f":"IF(ISNUMBER(SEARCH(LEFT(Анкета!$D$40,255),R16)),MAX($Q$1:Q15)+1,0)","v":15},"15.   ГОСТ Р ИСО 39001-2014 (ISO 39001:2012) Система менеджмента безопасности дорожного движения. Требования и руководство по применению.",16,"16.   ГОСТ РВ 0015-002-2020 Система разработки и постановки продукции на производство военной техники. Системы менеджмента качества. Общие требования",{"$f":"IFERROR(IF(EXACT(Анкета!$D$42,Y16),1,0),0)","v":0},{"$f":"IF(ISNUMBER(SEARCH(LEFT(Анкета!$D$42,255),W16)),MAX($V$1:V15)+1,0)","v":15},"15.   ГОСТ Р ИСО 39001-2014 (ISO 39001:2012) Система менеджмента безопасности дорожного движения. Требования и руководство по применению.",15,"15.   ГОСТ Р ИСО 39001-2014 (ISO 39001:2012) Система менеджмента безопасности дорожного движения. Требования и руководство по применению."]
[{"$f":"IFERROR(IF(EXACT(Анкета!$D$38,E17),1,0),0)","v":0},{"$f":"IF(ISNUMBER(SEARCH(LEFT(Анкета!$D$38,255),C17)),MAX(B$1:$B16)+1,0)","v":16},"16.   ГОСТ РВ 0015-002-2020 Система разработки и постановки продукции на производство военной техники. Системы менеджмента качества. Общие требования",16,"16.   ГОСТ РВ 0015-002-2020 Система разработки и постановки продукции на производство военной техники. Системы менеджмента качества. Общие требования",{"$f":"IFERROR(IF(EXACT(Анкета!$D$36,J17),1,0),0)","v":0},{"$f":"IF(ISNUMBER(SEARCH(LEFT(Анкета!$D$36,255),H17)),MAX($G$1:G16)+1,0)","v":16},"16.   ГОСТ РВ 0015-002-2020 Система разработки и постановки продукции на производство военной техники. Системы менеджмента качества. Общие требования",16,"16.   ГОСТ РВ 0015-002-2020 Система разработки и постановки продукции на производство военной техники. Системы менеджмента качества. Общие требования",{"$f":"IFERROR(IF(EXACT(Анкета!$D$34,O17),1,0),0)","v":0},{"$f":"IF(ISNUMBER(SEARCH(LEFT(Анкета!$D$34,255),M17)),MAX($L$1:L16)+1,0)","v":16},"16.   ГОСТ РВ 0015-002-2020 Система разработки и постановки продукции на производство военной техники. Системы менеджмента качества. Общие требования",16,"16.   ГОСТ РВ 0015-002-2020 Система разработки и постановки продукции на производство военной техники. Системы менеджмента качества. Общие требования",{"$f":"IFERROR(IF(EXACT(Анкета!$D$40,T17),1,0),0)","v":0},{"$f":"IF(ISNUMBER(SEARCH(LEFT(Анкета!$D$40,255),R17)),MAX($Q$1:Q16)+1,0)","v":16},"16.   ГОСТ РВ 0015-002-2020 Система разработки и постановки продукции на производство военной техники. Системы менеджмента качества. Общие требования",17,"17.   ГОСТ Р ИСО/ТУ 29001-2007 (ISO/TS 29001:2003) Менеджмент организации. Требования к системам менеджмента качества организации, поставляющих продукцию и предоставляющих услуги нефтяной, нефтехимической и газовой промышленности",{"$f":"IFERROR(IF(EXACT(Анкета!$D$42,Y17),1,0),0)","v":0},{"$f":"IF(ISNUMBER(SEARCH(LEFT(Анкета!$D$42,255),W17)),MAX($V$1:V16)+1,0)","v":16},"16.   ГОСТ РВ 0015-002-2020 Система разработки и постановки продукции на производство военной техники. Системы менеджмента качества. Общие требования",16,"16.   ГОСТ РВ 0015-002-2020 Система разработки и постановки продукции на производство военной техники. Системы менеджмента качества. Общие требования"]
[{"$f":"IFERROR(IF(EXACT(Анкета!$D$38,E18),1,0),0)","v":0},{"$f":"IF(ISNUMBER(SEARCH(LEFT(Анкета!$D$38,255),C18)),MAX(B$1:$B17)+1,0)","v":17},"17.   ГОСТ Р ИСО/ТУ 29001-2007 (ISO/TS 29001:2003) Менеджмент организации. Требования к системам менеджмента качества организации, поставляющих продукцию и предоставляющих услуги нефтяной, нефтехимической и газовой промышленности",17,"17.   ГОСТ Р ИСО/ТУ 29001-2007 (ISO/TS 29001:2003) Менеджмент организации. Требования к системам менеджмента качества организации, поставляющих продукцию и предоставляющих услуги нефтяной, нефтехимической и газовой промышленности",{"$f":"IFERROR(IF(EXACT(Анкета!$D$36,J18),1,0),0)","v":0},{"$f":"IF(ISNUMBER(SEARCH(LEFT(Анкета!$D$36,255),H18)),MAX($G$1:G17)+1,0)","v":17},"17.   ГОСТ Р ИСО/ТУ 29001-2007 (ISO/TS 29001:2003) Менеджмент организации. Требования к системам менеджмента качества организации, поставляющих продукцию и предоставляющих услуги нефтяной, нефтехимической и газовой промышленности",17,"17.   ГОСТ Р ИСО/ТУ 29001-2007 (ISO/TS 29001:2003) Менеджмент организации. Требования к системам менеджмента качества организации, поставляющих продукцию и предоставляющих услуги нефтяной, нефтехимической и газовой промышленности",{"$f":"IFERROR(IF(EXACT(Анкета!$D$34,O18),1,0),0)","v":0},{"$f":"IF(ISNUMBER(SEARCH(LEFT(Анкета!$D$34,255),M18)),MAX($L$1:L17)+1,0)","v":17},"17.   ГОСТ Р ИСО/ТУ 29001-2007 (ISO/TS 29001:2003) Менеджмент организации. Требования к системам менеджмента качества организации, поставляющих продукцию и предоставляющих услуги нефтяной, нефтехимической и газовой промышленности",17,"17.   ГОСТ Р ИСО/ТУ 29001-2007 (ISO/TS 29001:2003) Менеджмент организации. Требования к системам менеджмента качества организации, поставляющих продукцию и предоставляющих услуги нефтяной, нефтехимической и газовой промышленности",{"$f":"IFERROR(IF(EXACT(Анкета!$D$40,T18),1,0),0)","v":0},{"$f":"IF(ISNUMBER(SEARCH(LEFT(Анкета!$D$40,255),R18)),MAX($Q$1:Q17)+1,0)","v":17},"17.   ГОСТ Р ИСО/ТУ 29001-2007 (ISO/TS 29001:2003) Менеджмент организации. Требования к системам менеджмента качества организации, поставляющих продукцию и предоставляющих услуги нефтяной, нефтехимической и газовой промышленности",18,"18.   SA 8000:2014 Система менеджмента качества в сфере социальной ответственности",{"$f":"IFERROR(IF(EXACT(Анкета!$D$42,Y18),1,0),0)","v":0},{"$f":"IF(ISNUMBER(SEARCH(LEFT(Анкета!$D$42,255),W18)),MAX($V$1:V17)+1,0)","v":17},"17.   ГОСТ Р ИСО/ТУ 29001-2007 (ISO/TS 29001:2003) Менеджмент организации. Требования к системам менеджмента качества организации, поставляющих продукцию и предоставляющих услуги нефтяной, нефтехимической и газовой промышленности",17,"17.   ГОСТ Р ИСО/ТУ 29001-2007 (ISO/TS 29001:2003) Менеджмент организации. Требования к системам менеджмента качества организации, поставляющих продукцию и предоставляющих услуги нефтяной, нефтехимической и газовой промышленности"]
[{"$f":"IFERROR(IF(EXACT(Анкета!$D$38,E19),1,0),0)","v":0},{"$f":"IF(ISNUMBER(SEARCH(LEFT(Анкета!$D$38,255),C19)),MAX(B$1:$B18)+1,0)","v":18},"18.   SA 8000:2014 Система менеджмента качества в сфере социальной ответственности",18,"18.   SA 8000:2014 Система менеджмента качества в сфере социальной ответственности",{"$f":"IFERROR(IF(EXACT(Анкета!$D$36,J19),1,0),0)","v":0},{"$f":"IF(ISNUMBER(SEARCH(LEFT(Анкета!$D$36,255),H19)),MAX($G$1:G18)+1,0)","v":18},"18.   SA 8000:2014 Система менеджмента качества в сфере социальной ответственности",18,"18.   SA 8000:2014 Система менеджмента качества в сфере социальной ответственности",{"$f":"IFERROR(IF(EXACT(Анкета!$D$34,O19),1,0),0)","v":0},{"$f":"IF(ISNUMBER(SEARCH(LEFT(Анкета!$D$34,255),M19)),MAX($L$1:L18)+1,0)","v":18},"18.   SA 8000:2014 Система менеджмента качества в сфере социальной ответственности",18,"18.   SA 8000:2014 Система менеджмента качества в сфере социальной ответственности",{"$f":"IFERROR(IF(EXACT(Анкета!$D$40,T19),1,0),0)","v":0},{"$f":"IF(ISNUMBER(SEARCH(LEFT(Анкета!$D$40,255),R19)),MAX($Q$1:Q18)+1,0)","v":18},"18.   SA 8000:2014 Система менеджмента качества в сфере социальной ответственности",19,"19.   Система менеджмента бизнеса предприятий железнодорожной промышленности (IRIS)",{"$f":"IFERROR(IF(EXACT(Анкета!$D$42,Y19),1,0),0)","v":0},{"$f":"IF(ISNUMBER(SEARCH(LEFT(Анкета!$D$42,255),W19)),MAX($V$1:V18)+1,0)","v":18},"18.   SA 8000:2014 Система менеджмента качества в сфере социальной ответственности",18,"18.   SA 8000:2014 Система менеджмента качества в сфере социальной ответственности"]
[{"$f":"IFERROR(IF(EXACT(Анкета!$D$38,E20),1,0),0)","v":0},{"$f":"IF(ISNUMBER(SEARCH(LEFT(Анкета!$D$38,255),C20)),MAX(B$1:$B19)+1,0)","v":19},"19.   Система менеджмента бизнеса предприятий железнодорожной промышленности (IRIS)",19,"19.   Система менеджмента бизнеса предприятий железнодорожной промышленности (IRIS)",{"$f":"IFERROR(IF(EXACT(Анкета!$D$36,J20),1,0),0)","v":0},{"$f":"IF(ISNUMBER(SEARCH(LEFT(Анкета!$D$36,255),H20)),MAX($G$1:G19)+1,0)","v":19},"19.   Система менеджмента бизнеса предприятий железнодорожной промышленности (IRIS)",19,"19.   Система менеджмента бизнеса предприятий железнодорожной промышленности (IRIS)",{"$f":"IFERROR(IF(EXACT(Анкета!$D$34,O20),1,0),0)","v":0},{"$f":"IF(ISNUMBER(SEARCH(LEFT(Анкета!$D$34,255),M20)),MAX($L$1:L19)+1,0)","v":19},"19.   Система менеджмента бизнеса предприятий железнодорожной промышленности (IRIS)",19,"19.   Система менеджмента бизнеса предприятий железнодорожной промышленности (IRIS)",{"$f":"IFERROR(IF(EXACT(Анкета!$D$40,T20),1,0),0)","v":0},{"$f":"IF(ISNUMBER(SEARCH(LEFT(Анкета!$D$40,255),R20)),MAX($Q$1:Q19)+1,0)","v":19},"19.   Система менеджмента бизнеса предприятий железнодорожной промышленности (IRIS)",20,{"$error":"#N/A"},{"$f":"IFERROR(IF(EXACT(Анкета!$D$42,Y20),1,0),0)","v":0},{"$f":"IF(ISNUMBER(SEARCH(LEFT(Анкета!$D$42,255),W20)),MAX($V$1:V19)+1,0)","v":19},"19.   Система менеджмента бизнеса предприятий железнодорожной промышленности (IRIS)",19,"19.   Система менеджмента бизнеса предприятий железнодорожной промышленности (IRIS)"]
[{"$f":"IFERROR(IF(EXACT(Анкета!$D$38,E21),1,0),0)","v":1},{"$f":"IF(ISNUMBER(SEARCH(Анкета!$D$38,C21)),MAX(B$1:$B20)+1,0)","v":0},null,49]
[{"$f":"IFERROR(IF(EXACT(Анкета!$D$38,E22),1,0),0)","v":1},{"$f":"IF(ISNUMBER(SEARCH(Анкета!$D$38,C22)),MAX(B$1:$B21)+1,0)","v":0},null,50]
[{"$f":"IFERROR(IF(EXACT(Анкета!$D$38,E23),1,0),0)","v":1},{"$f":"IF(ISNUMBER(SEARCH(Анкета!$D$38,C23)),MAX(B$1:$B22)+1,0)","v":0},null,51]
[{"$f":"IFERROR(IF(EXACT(Анкета!$D$38,E24),1,0),0)","v":1},{"$f":"IF(ISNUMBER(SEARCH(Анкета!$D$38,C24)),MAX(B$1:$B23)+1,0)","v":0},null,52]
[{"$f":"IFERROR(IF(EXACT(Анкета!$D$38,E25),1,0),0)","v":1},{"$f":"IF(ISNUMBER(SEARCH(Анкета!$D$38,C25)),MAX(B$1:$B24)+1,0)","v":0},null,53]
[{"$f":"IFERROR(IF(EXACT(Анкета!$D$38,E26),1,0),0)","v":1},{"$f":"IF(ISNUMBER(SEARCH(Анкета!$D$38,C26)),MAX(B$1:$B25)+1,0)","v":0},null,54]
[{"$f":"IFERROR(IF(EXACT(Анкета!$D$38,E27),1,0),0)","v":1},{"$f":"IF(ISNUMBER(SEARCH(Анкета!$D$38,C27)),MAX(B$1:$B26)+1,0)","v":0},null,55]
[{"$f":"IFERROR(IF(EXACT(Анкета!$D$38,E28),1,0),0)","v":1},{"$f":"IF(ISNUMBER(SEARCH(Анкета!$D$38,C28)),MAX(B$1:$B27)+1,0)","v":0},null,56]
[{"$f":"IFERROR(IF(EXACT(Анкета!$D$38,E29),1,0),0)","v":1},{"$f":"IF(ISNUMBER(SEARCH(Анкета!$D$38,C29)),MAX(B$1:$B28)+1,0)","v":0},null,57]
[{"$f":"IFERROR(IF(EXACT(Анкета!$D$38,E30),1,0),0)","v":1},{"$f":"IF(ISNUMBER(SEARCH(Анкета!$D$38,C30)),MAX(B$1:$B29)+1,0)","v":0},null,58]
[{"$f":"IFERROR(IF(EXACT(Анкета!$D$38,E31),1,0),0)","v":1},{"$f":"IF(ISNUMBER(SEARCH(Анкета!$D$38,C31)),MAX(B$1:$B30)+1,0)","v":0},null,59]
[null,null,null,60]
[null,null,null,61]
[null,null,null,62]
[null,null,null,63]
[null,null,null,64]

{"sheet":"Применительно","index":2,"n_rows":9,"n_cols":5,"rows_kept":9,"cut":false,"hidden":true,"merged":[]}
[]
[{"$f":"IFERROR(IF(EXACT(Анкета!$B$46,E2),1,0),0)","v":0},{"$f":"IF(ISNUMBER(SEARCH(Анкета!$B$46,C2)),MAX(B$1:$B1)+1,0)","v":1},"полный перечень строительство (по Приказу № 624  «Об утверждении перечня видов работ»)",1,{"$f":"VLOOKUP(D2,B:C,2,0)","v":"полный перечень строительство (по Приказу № 624  «Об утверждении перечня видов работ»)"}]
[{"$f":"IFERROR(IF(EXACT(Анкета!$B$46,E3),1,0),0)","v":0},{"$f":"IF(ISNUMBER(SEARCH(Анкета!$B$46,C3)),MAX(B$1:$B2)+1,0)","v":2},"полный перечень проектирование (по Приказу № 624 «Об утверждении перечня видов работ»)",2,{"$f":"VLOOKUP(D3,B:C,2,0)","v":"полный перечень проектирование (по Приказу № 624 «Об утверждении перечня видов работ»)"}]
[{"$f":"IFERROR(IF(EXACT(Анкета!$B$46,E4),1,0),0)","v":0},{"$f":"IF(ISNUMBER(SEARCH(Анкета!$B$46,C4)),MAX(B$1:$B3)+1,0)","v":3},"полный перечень изыскания (по Приказу № 624 «Об утверждении перечня видов работ»)",3,"полный перечень изыскания (по Приказу № 624 «Об утверждении перечня видов работ»)"]
[{"$f":"IFERROR(IF(EXACT(Анкета!$B$46,E5),1,0),0)","v":0},{"$f":"IF(ISNUMBER(SEARCH(Анкета!$B$46,C5)),MAX(B$1:$B4)+1,0)","v":4},"полный перечень строительство, проектирование (по Приказу № 624 «Об утверждении перечня видов работ»)",4,"полный перечень строительство, проектирование (по Приказу № 624 «Об утверждении перечня видов работ»)"]
[{"$f":"IFERROR(IF(EXACT(Анкета!$B$46,E6),1,0),0)","v":0},{"$f":"IF(ISNUMBER(SEARCH(Анкета!$B$46,C6)),MAX(B$1:$B5)+1,0)","v":5},"полный перечень строительство, изыскание (по Приказу № 624 «Об утверждении перечня видов работ»)",5,"полный перечень строительство, изыскание (по Приказу № 624 «Об утверждении перечня видов работ»)"]
[{"$f":"IFERROR(IF(EXACT(Анкета!$B$46,E7),1,0),0)","v":0},{"$f":"IF(ISNUMBER(SEARCH(Анкета!$B$46,C7)),MAX(B$1:$B6)+1,0)","v":6},"полный перечень проектирование, изыскание (по Приказу № 624 «Об утверждении перечня видов работ»)",6,"полный перечень проектирование, изыскание (по Приказу № 624 «Об утверждении перечня видов работ»)"]
[{"$f":"IFERROR(IF(EXACT(Анкета!$B$46,E8),1,0),0)","v":0},{"$f":"IF(ISNUMBER(SEARCH(Анкета!$B$46,C8)),MAX(B$1:$B7)+1,0)","v":7},"полный перечень строительство, проектирование, изыскание (по Приказу № 624 «Об утверждении перечня видов работ»)",7,"полный перечень строительство, проектирование, изыскание (по Приказу № 624 «Об утверждении перечня видов работ»)"]
[{"$f":"IFERROR(IF(EXACT(Анкета!$B$46,E9),1,0),0)","v":0},{"$f":"IF(ISNUMBER(SEARCH(Анкета!$B$46,C9)),MAX(B$1:$B8)+1,0)","v":8},"или иная область сертификации (заполняется в свободной форме)",8,"или иная область сертификации (заполняется в свободной форме)"]

{"sheet":"ОКВЭД","index":3,"n_rows":89,"n_cols":25,"rows_kept":89,"cut":false,"hidden":true,"merged":[[0,0,0,4],[0,5,0,9],[0,10,0,14],[0,15,0,19],[0,20,0,24]]}
["список ОКВЭД 1",null,null,null,null,"список ОКВЭД 2",null,null,null,null,"список ОКВЭД 3",null,null,null,null,"список ОКВЭД 4",null,null,null,null,"список ОКВЭД 5"]
[{"$f":"IFERROR(IF(EXACT(Анкета!$C$52,E2),1,0),0)","v":0},{"$f":"IF(ISNUMBER(SEARCH(Анкета!$C$52,C2)),MAX(B$1:$B1)+1,0)","v":1},"01 - Растениеводство и животноводство, охота и предоставление соответствующих услуг в этих областях",1,{"$f":"VLOOKUP(D2,B:C,2,0)","v":"01 - Растениеводство и животноводство, охота и предоставление соответствующих услуг в этих областях"},{"$f":"IFERROR(IF(EXACT(Анкета!$C$54,J2),1,0),0)","v":0},{"$f":"IF(ISNUMBER(SEARCH(Анкета!$C$54,H2)),MAX($G$1:G1)+1,0)","v":1},"01 - Растениеводство и животноводство, охота и предоставление соответствующих услуг в этих областях",1,{"$f":"VLOOKUP(I2,G:H,2,0)","v":"01 - Растениеводство и животноводство, охота и предоставление соответствующих услуг в этих областях"},{"$f":"IFERROR(IF(EXACT(Анкета!$C$56,O2),1,0),0)","v":0},{"$f":"IF(ISNUMBER(SEARCH(Анкета!$C$56,M2)),MAX($L$1:L1)+1,0)","v":1},"01 - Растениеводство и животноводство, охота и предоставление соответствующих услуг в этих областях",1,{"$f":"VLOOKUP(N2,L:M,2,0)","v":"01 - Растениеводство и животноводство, охота и предоставление соответствующих услуг в этих областях"},{"$f":"IFERROR(IF(EXACT(Анкета!$C$58,T2),1,0),0)","v":0},{"$f":"IF(ISNUMBER(SEARCH(Анкета!$C$58,R2)),MAX($Q$1:Q1)+1,0)","v":1},"01 - Растениеводство и животноводство, охота и предоставление соответствующих услуг в этих областях",1,{"$f":"VLOOKUP(S2,Q:R,2,0)","v":"01 - Растениеводство и животноводство, охота и предоставление соответствующих услуг в этих областях"},{"$f":"IFERROR(IF(EXACT(Анкета!$C$60,Y2),1,0),0)","v":0},{"$f":"IF(ISNUMBER(SEARCH(Анкета!$C$60,W2)),MAX($V$1:V1)+1,0)","v":1},"01 - Растениеводство и животноводство, охота и предоставление соответствующих услуг в этих областях",1,{"$f":"VLOOKUP(X2,V:W,2,0)","v":"01 - Растениеводство и животноводство, охота и предоставление соответствующих услуг в этих областях"}]
[{"$f":"IFERROR(IF(EXACT(Анкета!$C$52,E3),1,0),0)","v":0},{"$f":"IF(ISNUMBER(SEARCH(Анкета!$C$52,C3)),MAX(B$1:$B2)+1,0)","v":2},"02 - Лесоводство и лесозаготовки",2,"02 - Лесоводство и лесозаготовки",{"$f":"IFERROR(IF(EXACT(Анкета!$C$54,J3),1,0),0)","v":0},{"$f":"IF(ISNUMBER(SEARCH(Анкета!$C$54,H3)),MAX($G$1:G2)+1,0)","v":2},"02 - Лесоводство и лесозаготовки",2,"02 - Лесоводство и лесозаготовки",{"$f":"IFERROR(IF(EXACT(Анкета!$C$56,O3),1,0),0)","v":0},{"$f":"IF(ISNUMBER(SEARCH(Анкета!$C$56,M3)),MAX($L$1:L2)+1,0)","v":2},"02 - Лесоводство и лесозаготовки",2,"02 - Лесоводство и лесозаготовки",{"$f":"IFERROR(IF(EXACT(Анкета!$C$58,T3),1,0),0)","v":0},{"$f":"IF(ISNUMBER(SEARCH(Анкета!$C$58,R3)),MAX($Q$1:Q2)+1,0)","v":2},"02 - Лесоводство и лесозаготовки",2,"02 - Лесоводство и лесозаготовки",{"$f":"IFERROR(IF(EXACT(Анкета!$C$60,Y3),1,0),0)","v":0},{"$f":"IF(ISNUMBER(SEARCH(Анкета!$C$60,W3)),MAX($V$1:V2)+1,0)","v":2},"02 - Лесоводство и лесозаготовки",2,"02 - Лесоводство и лесозаготовки"]
[{"$f":"IFERROR(IF(EXACT(Анкета!$C$52,E4),1,0),0)","v":0},{"$f":"IF(ISNUMBER(SEARCH(Анкета!$C$52,C4)),MAX(B$1:$B3)+1,0)","v":3},"03 - Рыболовство и рыбоводство",3,"03 - Рыболовство и рыбоводство",{"$f":"IFERROR(IF(EXACT(Анкета!$C$54,J4),1,0),0)","v":0},{"$f":"IF(ISNUMBER(SEARCH(Анкета!$C$54,H4)),MAX($G$1:G3)+1,0)","v":3},"03 - Рыболовство и рыбоводство",3,"03 - Рыболовство и рыбоводство",{"$f":"IFERROR(IF(EXACT(Анкета!$C$56,O4),1,0),0)","v":0},{"$f":"IF(ISNUMBER(SEARCH(Анкета!$C$56,M4)),MAX($L$1:L3)+1,0)","v":3},"03 - Рыболовство и рыбоводство",3,"03 - Рыболовство и рыбоводство",{"$f":"IFERROR(IF(EXACT(Анкета!$C$58,T4),1,0),0)","v":0},{"$f":"IF(ISNUMBER(SEARCH(Анкета!$C$58,R4)),MAX($Q$1:Q3)+1,0)","v":3},"03 - Рыболовство и рыбоводство",3,"03 - Рыболовство и рыбоводство",{"$f":"IFERROR(IF(EXACT(Анкета!$C$60,Y4),1,0),0)","v":0},{"$f":"IF(ISNUMBER(SEARCH(Анкета!$C$60,W4)),MAX($V$1:V3)+1,0)","v":3},"03 - Рыболовство и рыбоводство",3,"03 - Рыболовство и рыбоводство"]
[{"$f":"IFERROR(IF(EXACT(Анкета!$C$52,E5),1,0),0)","v":0},{"$f":"IF(ISNUMBER(SEARCH(Анкета!$C$52,C5)),MAX(B$1:$B4)+1,0)","v":4},"05 - Добыча угля",4,"05 - Добыча угля",{"$f":"IFERROR(IF(EXACT(Анкета!$C$54,J5),1,0),0)","v":0},{"$f":"IF(ISNUMBER(SEARCH(Анкета!$C$54,H5)),MAX($G$1:G4)+1,0)","v":4},"05 - Добыча угля",4,"05 - Добыча угля",{"$f":"IFERROR(IF(EXACT(Анкета!$C$56,O5),1,0),0)","v":0},{"$f":"IF(ISNUMBER(SEARCH(Анкета!$C$56,M5)),MAX($L$1:L4)+1,0)","v":4},"05 - Добыча угля",4,"05 - Добыча угля",{"$f":"IFERROR(IF(EXACT(Анкета!$C$58,T5),1,0),0)","v":0},{"$f":"IF(ISNUMBER(SEARCH(Анкета!$C$58,R5)),MAX($Q$1:Q4)+1,0)","v":4},"05 - Добыча угля",4,"05 - Добыча угля",{"$f":"IFERROR(IF(EXACT(Анкета!$C$60,Y5),1,0),0)","v":0},{"$f":"IF(ISNUMBER(SEARCH(Анкета!$C$60,W5)),MAX($V$1:V4)+1,0)","v":4},"05 - Добыча угля",4,"05 - Добыча угля"]
[{"$f":"IFERROR(IF(EXACT(Анкета!$C$52,E6),1,0),0)","v":0},{"$f":"IF(ISNUMBER(SEARCH(Анкета!$C$52,C6)),MAX(B$1:$B5)+1,0)","v":5},"06 - Добыча сырой нефти и природного газа",5,"06 - Добыча сырой нефти и природного газа",{"$f":"IFERROR(IF(EXACT(Анкета!$C$54,J6),1,0),0)","v":0},{"$f":"IF(ISNUMBER(SEARCH(Анкета!$C$54,H6)),MAX($G$1:G5)+1,0)","v":5},"06 - Добыча сырой нефти и природного газа",5,"06 - Добыча сырой нефти и природного газа",{"$f":"IFERROR(IF(EXACT(Анкета!$C$56,O6),1,0),0)","v":0},{"$f":"IF(ISNUMBER(SEARCH(Анкета!$C$56,M6)),MAX($L$1:L5)+1,0)","v":5},"06 - Добыча сырой нефти и природного газа",5,"06 - Добыча сырой нефти и природного газа",{"$f":"IFERROR(IF(EXACT(Анкета!$C$58,T6),1,0),0)","v":0},{"$f":"IF(ISNUMBER(SEARCH(Анкета!$C$58,R6)),MAX($Q$1:Q5)+1,0)","v":5},"06 - Добыча сырой нефти и природного газа",5,"06 - Добыча сырой нефти и природного газа",{"$f":"IFERROR(IF(EXACT(Анкета!$C$60,Y6),1,0),0)","v":0},{"$f":"IF(ISNUMBER(SEARCH(Анкета!$C$60,W6)),MAX($V$1:V5)+1,0)","v":5},"06 - Добыча сырой нефти и природного газа",5,"06 - Добыча сырой нефти и природного газа"]
[{"$f":"IFERROR(IF(EXACT(Анкета!$C$52,E7),1,0),0)","v":0},{"$f":"IF(ISNUMBER(SEARCH(Анкета!$C$52,C7)),MAX(B$1:$B6)+1,0)","v":6},"07 - Добыча металлических руд",6,"07 - Добыча металлических руд",{"$f":"IFERROR(IF(EXACT(Анкета!$C$54,J7),1,0),0)","v":0},{"$f":"IF(ISNUMBER(SEARCH(Анкета!$C$54,H7)),MAX($G$1:G6)+1,0)","v":6},"07 - Добыча металлических руд",6,"07 - Добыча металлических руд",{"$f":"IFERROR(IF(EXACT(Анкета!$C$56,O7),1,0),0)","v":0},{"$f":"IF(ISNUMBER(SEARCH(Анкета!$C$56,M7)),MAX($L$1:L6)+1,0)","v":6},"07 - Добыча металлических руд",6,"07 - Добыча металлических руд",{"$f":"IFERROR(IF(EXACT(Анкета!$C$58,T7),1,0),0)","v":0},{"$f":"IF(ISNUMBER(SEARCH(Анкета!$C$58,R7)),MAX($Q$1:Q6)+1,0)","v":6},"07 - Добыча металлических руд",6,"07 - Добыча металлических руд",{"$f":"IFERROR(IF(EXACT(Анкета!$C$60,Y7),1,0),0)","v":0},{"$f":"IF(ISNUMBER(SEARCH(Анкета!$C$60,W7)),MAX($V$1:V6)+1,0)","v":6},"07 - Добыча металлических руд",6,"07 - Добыча металлических руд"]
[{"$f":"IFERROR(IF(EXACT(Анкета!$C$52,E8),1,0),0)","v":0},{"$f":"IF(ISNUMBER(SEARCH(Анкета!$C$52,C8)),MAX(B$1:$B7)+1,0)","v":7},"08 - Добыча прочих полезных ископаемых",7,"08 - Добыча прочих полезных ископаемых",{"$f":"IFERROR(IF(EXACT(Анкета!$C$54,J8),1,0),0)","v":0},{"$f":"IF(ISNUMBER(SEARCH(Анкета!$C$54,H8)),MAX($G$1:G7)+1,0)","v":7},"08 - Добыча прочих полезных ископаемых",7,"08 - Добыча прочих полезных ископаемых",{"$f":"IFERROR(IF(EXACT(Анкета!$C$56,O8),1,0),0)","v":0},{"$f":"IF(ISNUMBER(SEARCH(Анкета!$C$56,M8)),MAX($L$1:L7)+1,0)","v":7},"08 - Добыча прочих полезных ископаемых",7,"08 - Добыча прочих полезных ископаемых",{"$f":"IFERROR(IF(EXACT(Анкета!$C$58,T8),1,0),0)","v":0},{"$f":"IF(ISNUMBER(SEARCH(Анкета!$C$58,R8)),MAX($Q$1:Q7)+1,0)","v":7},"08 - Добыча прочих полезных ископаемых",7,"08 - Добыча прочих полезных ископаемых",{"$f":"IFERROR(IF(EXACT(Анкета!$C$60,Y8),1,0),0)","v":0},{"$f":"IF(ISNUMBER(SEARCH(Анкета!$C$60,W8)),MAX($V$1:V7)+1,0)","v":7},"08 - Добыча прочих полезных ископаемых",7,"08 - Добыча прочих полезных ископаемых"]
[{"$f":"IFERROR(IF(EXACT(Анкета!$C$52,E9),1,0),0)","v":0},{"$f":"IF(ISNUMBER(SEARCH(Анкета!$C$52,C9)),MAX(B$1:$B8)+1,0)","v":8},"09 - Предоставление услуг в области добычи полезных ископаемых",8,"09 - Предоставление услуг в области добычи полезных ископаемых",{"$f":"IFERROR(IF(EXACT(Анкета!$C$54,J9),1,0),0)","v":0},{"$f":"IF(ISNUMBER(SEARCH(Анкета!$C$54,H9)),MAX($G$1:G8)+1,0)","v":8},"09 - Предоставление услуг в области добычи полезных ископаемых",8,"09 - Предоставление услуг в области добычи полезных ископаемых",{"$f":"IFERROR(IF(EXACT(Анкета!$C$56,O9),1,0),0)","v":0},{"$f":"IF(ISNUMBER(SEARCH(Анкета!$C$56,M9)),MAX($L$1:L8)+1,0)","v":8},"09 - Предоставление услуг в области добычи полезных ископаемых",8,"09 - Предоставление услуг в области добычи полезных ископаемых",{"$f":"IFERROR(IF(EXACT(Анкета!$C$58,T9),1,0),0)","v":0},{"$f":"IF(ISNUMBER(SEARCH(Анкета!$C$58,R9)),MAX($Q$1:Q8)+1,0)","v":8},"09 - Предоставление услуг в области добычи полезных ископаемых",8,"09 - Предоставление услуг в области добычи полезных ископаемых",{"$f":"IFERROR(IF(EXACT(Анкета!$C$60,Y9),1,0),0)","v":0},{"$f":"IF(ISNUMBER(SEARCH(Анкета!$C$60,W9)),MAX($V$1:V8)+1,0)","v":8},"09 - Предоставление услуг в области добычи полезных ископаемых",8,"09 - Предоставление услуг в области добычи полезных ископаемых"]
[{"$f":"IFERROR(IF(EXACT(Анкета!$C$52,E10),1,0),0)","v":0},{"$f":"IF(ISNUMBER(SEARCH(Анкета!$C$52,C10)),MAX(B$1:$B9)+1,0)","v":9},"10 - Производство пищевых продуктов",9,"10 - Производство пищевых продуктов",{"$f":"IFERROR(IF(EXACT(Анкета!$C$54,J10),1,0),0)","v":0},{"$f":"IF(ISNUMBER(SEARCH(Анкета!$C$54,H10)),MAX($G$1:G9)+1,0)","v":9},"10 - Производство пищевых продуктов",9,"10 - Производство пищевых продуктов",{"$f":"IFERROR(IF(EXACT(Анкета!$C$56,O10),1,0),0)","v":0},{"$f":"IF(ISNUMBER(SEARCH(Анкета!$C$56,M10)),MAX($L$1:L9)+1,0)","v":9},"10 - Производство пищевых продуктов",9,"10 - Производство пищевых продуктов",{"$f":"IFERROR(IF(EXACT(Анкета!$C$58,T10),1,0),0)","v":0},{"$f":"IF(ISNUMBER(SEARCH(Анкета!$C$58,R10)),MAX($Q$1:Q9)+1,0)","v":9},"10 - Производство пищевых продуктов",9,"10 - Производство пищевых продуктов",{"$f":"IFERROR(IF(EXACT(Анкета!$C$60,Y10),1,0),0)","v":0},{"$f":"IF(ISNUMBER(SEARCH(Анкета!$C$60,W10)),MAX($V$1:V9)+1,0)","v":9},"10 - Производство пищевых продуктов",9,"10 - Производство пищевых продуктов"]
[{"$f":"IFERROR(IF(EXACT(Анкета!$C$52,E11),1,0),0)","v":0},{"$f":"IF(ISNUMBER(SEARCH(Анкета!$C$52,C11)),MAX(B$1:$B10)+1,0)","v":10},"11 - Производство напитков",10,"11 - Производство напитков",{"$f":"IFERROR(IF(EXACT(Анкета!$C$54,J11),1,0),0)","v":0},{"$f":"IF(ISNUMBER(SEARCH(Анкета!$C$54,H11)),MAX($G$1:G10)+1,0)","v":10},"11 - Производство напитков",10,"11 - Производство напитков",{"$f":"IFERROR(IF(EXACT(Анкета!$C$56,O11),1,0),0)","v":0},{"$f":"IF(ISNUMBER(SEARCH(Анкета!$C$56,M11)),MAX($L$1:L10)+1,0)","v":10},"11 - Производство напитков",10,"11 - Производство напитков",{"$f":"IFERROR(IF(EXACT(Анкета!$C$58,T11),1,0),0)","v":0},{"$f":"IF(ISNUMBER(SEARCH(Анкета!$C$58,R11)),MAX($Q$1:Q10)+1,0)","v":10},"11 - Производство напитков",10,"11 - Производство напитков",{"$f":"IFERROR(IF(EXACT(Анкета!$C$60,Y11),1,0),0)","v":0},{"$f":"IF(ISNUMBER(SEARCH(Анкета!$C$60,W11)),MAX($V$1:V10)+1,0)","v":10},"11 - Производство напитков",10,"11 - Производство напитков"]
[{"$f":"IFERROR(IF(EXACT(Анкета!$C$52,E12),1,0),0)","v":0},{"$f":"IF(ISNUMBER(SEARCH(Анкета!$C$52,C12)),MAX(B$1:$B11)+1,0)","v":11},"12 - Производство табачных изделий",11,"12 - Производство табачных изделий",{"$f":"IFERROR(IF(EXACT(Анкета!$C$54,J12),1,0),0)","v":0},{"$f":"IF(ISNUMBER(SEARCH(Анкета!$C$54,H12)),MAX($G$1:G11)+1,0)","v":11},"12 - Производство табачных изделий",11,"12 - Производство табачных изделий",{"$f":"IFERROR(IF(EXACT(Анкета!$C$56,O12),1,0),0)","v":0},{"$f":"IF(ISNUMBER(SEARCH(Анкета!$C$56,M12)),MAX($L$1:L11)+1,0)","v":11},"12 - Производство табачных изделий",11,"12 - Производство табачных изделий",{"$f":"IFERROR(IF(EXACT(Анкета!$C$58,T12),1,0),0)","v":0},{"$f":"IF(ISNUMBER(SEARCH(Анкета!$C$58,R12)),MAX($Q$1:Q11)+1,0)","v":11},"12 - Производство табачных изделий",11,"12 - Производство табачных изделий",{"$f":"IFERROR(IF(EXACT(Анкета!$C$60,Y12),1,0),0)","v":0},{"$f":"IF(ISNUMBER(SEARCH(Анкета!$C$60,W12)),MAX($V$1:V11)+1,0)","v":11},"12 - Производство табачных изделий",11,"12 - Производство табачных изделий"]
[{"$f":"IFERROR(IF(EXACT(Анкета!$C$52,E13),1,0),0)","v":0},{"$f":"IF(ISNUMBER(SEARCH(Анкета!$C$52,C13)),MAX(B$1:$B12)+1,0)","v":12},"13 - Производство текстильных изделий",12,"13 - Производство текстильных изделий",{"$f":"IFERROR(IF(EXACT(Анкета!$C$54,J13),1,0),0)","v":0},{"$f":"IF(ISNUMBER(SEARCH(Анкета!$C$54,H13)),MAX($G$1:G12)+1,0)","v":12},"13 - Производство текстильных изделий",12,"13 - Производство текстильных изделий",{"$f":"IFERROR(IF(EXACT(Анкета!$C$56,O13),1,0),0)","v":0},{"$f":"IF(ISNUMBER(SEARCH(Анкета!$C$56,M13)),MAX($L$1:L12)+1,0)","v":12},"13 - Производство текстильных изделий",12,"13 - Производство текстильных изделий",{"$f":"IFERROR(IF(EXACT(Анкета!$C$58,T13),1,0),0)","v":0},{"$f":"IF(ISNUMBER(SEARCH(Анкета!$C$58,R13)),MAX($Q$1:Q12)+1,0)","v":12},"13 - Производство текстильных изделий",12,"13 - Производство текстильных изделий",{"$f":"IFERROR(IF(EXACT(Анкета!$C$60,Y13),1,0),0)","v":0},{"$f":"IF(ISNUMBER(SEARCH(Анкета!$C$60,W13)),MAX($V$1:V12)+1,0)","v":12},"13 - Производство текстильных изделий",12,"13 - Производство текстильных изделий"]
[{"$f":"IFERROR(IF(EXACT(Анкета!$C$52,E14),1,0),0)","v":0},{"$f":"IF(ISNUMBER(SEARCH(Анкета!$C$52,C14)),MAX(B$1:$B13)+1,0)","v":13},"14 - Производство одежды",13,"14 - Производство одежды",{"$f":"IFERROR(IF(EXACT(Анкета!$C$54,J14),1,0),0)","v":0},{"$f":"IF(ISNUMBER(SEARCH(Анкета!$C$54,H14)),MAX($G$1:G13)+1,0)","v":13},"14 - Производство одежды",13,"14 - Производство одежды",{"$f":"IFERROR(IF(EXACT(Анкета!$C$56,O14),1,0),0)","v":0},{"$f":"IF(ISNUMBER(SEARCH(Анкета!$C$56,M14)),MAX($L$1:L13)+1,0)","v":13},"14 - Производство одежды",13,"14 - Производство одежды",{"$f":"IFERROR(IF(EXACT(Анкета!$C$58,T14),1,0),0)","v":0},{"$f":"IF(ISNUMBER(SEARCH(Анкета!$C$58,R14)),MAX($Q$1:Q13)+1,0)","v":13},"14 - Производство одежды",13,"14 - Производство одежды",{"$f":"IFERROR(IF(EXACT(Анкета!$C$60,Y14),1,0),0)","v":0},{"$f":"IF(ISNUMBER(SEARCH(Анкета!$C$60,W14)),MAX($V$1:V13)+1,0)","v":13},"14 - Производство одежды",13,"14 - Производство одежды"]
[{"$f":"IFERROR(IF(EXACT(Анкета!$C$52,E15),1,0),0)","v":0},{"$f":"IF(ISNUMBER(SEARCH(Анкета!$C$52,C15)),MAX(B$1:$B14)+1,0)","v":14},"15 - Производство кожи и изделий из кожи",14,"15 - Производство кожи и изделий из кожи",{"$f":"IFERROR(IF(EXACT(Анкета!$C$54,J15),1,0),0)","v":0},{"$f":"IF(ISNUMBER(SEARCH(Анкета!$C$54,H15)),MAX($G$1:G14)+1,0)","v":14},"15 - Производство кожи и изделий из кожи",14,"15 - Производство кожи и изделий из кожи",{"$f":"IFERROR(IF(EXACT(Анкета!$C$56,O15),1,0),0)","v":0},{"$f":"IF(ISNUMBER(SEARCH(Анкета!$C$56,M15)),MAX($L$1:L14)+1,0)","v":14},"15 - Производство кожи и изделий из кожи",14,"15 - Производство кожи и изделий из кожи",{"$f":"IFERROR(IF(EXACT(Анкета!$C$58,T15),1,0),0)","v":0},{"$f":"IF(ISNUMBER(SEARCH(Анкета!$C$58,R15)),MAX($Q$1:Q14)+1,0)","v":14},"15 - Производство кожи и изделий из кожи",14,"15 - Производство кожи и изделий из кожи",{"$f":"IFERROR(IF(EXACT(Анкета!$C$60,Y15),1,0),0)","v":0},{"$f":"IF(ISNUMBER(SEARCH(Анкета!$C$60,W15)),MAX($V$1:V14)+1,0)","v":14},"15 - Производство кожи и изделий из кожи",14,"15 - Производство кожи и изделий из кожи"]
[{"$f":"IFERROR(IF(EXACT(Анкета!$C$52,E16),1,0),0)","v":0},{"$f":"IF(ISNUMBER(SEARCH(Анкета!$C$52,C16)),MAX(B$1:$B15)+1,0)","v":15},"16 - Обработка древесины и производство изделий из дерева и пробки, кроме мебели, производство изделий из соломки и материалов для плетения",15,"16 - Обработка древесины и производство изделий из дерева и пробки, кроме мебели, производство изделий из соломки и материалов для плетения",{"$f":"IFERROR(IF(EXACT(Анкета!$C$54,J16),1,0),0)","v":0},{"$f":"IF(ISNUMBER(SEARCH(Анкета!$C$54,H16)),MAX($G$1:G15)+1,0)","v":15},"16 - Обработка древесины и производство изделий из дерева и пробки, кроме мебели, производство изделий из соломки и материалов для плетения",15,"16 - Обработка древесины и производство изделий из дерева и пробки, кроме мебели, производство изделий из соломки и материалов для плетения",{"$f":"IFERROR(IF(EXACT(Анкета!$C$56,O16),1,0),0)","v":0},{"$f":"IF(ISNUMBER(SEARCH(Анкета!$C$56,M16)),MAX($L$1:L15)+1,0)","v":15},"16 - Обработка древесины и производство изделий из дерева и пробки, кроме мебели, производство изделий из соломки и материалов для плетения",15,"16 - Обработка древесины и производство изделий из дерева и пробки, кроме мебели, производство изделий из соломки и материалов для плетения",{"$f":"IFERROR(IF(EXACT(Анкета!$C$58,T16),1,0),0)","v":0},{"$f":"IF(ISNUMBER(SEARCH(Анкета!$C$58,R16)),MAX($Q$1:Q15)+1,0)","v":15},"16 - Обработка древесины и производство изделий из дерева и пробки, кроме мебели, производство изделий из соломки и материалов для плетения",15,"16 - Обработка древесины и производство изделий из дерева и пробки, кроме мебели, производство изделий из соломки и материалов для плетения",{"$f":"IFERROR(IF(EXACT(Анкета!$C$60,Y16),1,0),0)","v":0},{"$f":"IF(ISNUMBER(SEARCH(Анкета!$C$60,W16)),MAX($V$1:V15)+1,0)","v":15},"16 - Обработка древесины и производство изделий из дерева и пробки, кроме мебели, производство изделий из соломки и материалов для плетения",15,"16 - Обработка древесины и производство изделий из дерева и пробки, кроме мебели, производство изделий из соломки и материалов для плетения"]
[{"$f":"IFERROR(IF(EXACT(Анкета!$C$52,E17),1,0),0)","v":0},{"$f":"IF(ISNUMBER(SEARCH(Анкета!$C$52,C17)),MAX(B$1:$B16)+1,0)","v":16},"17 - Производство бумаги и бумажных изделий",16,"17 - Производство бумаги и бумажных изделий",{"$f":"IFERROR(IF(EXACT(Анкета!$C$54,J17),1,0),0)","v":0},{"$f":"IF(ISNUMBER(SEARCH(Анкета!$C$54,H17)),MAX($G$1:G16)+1,0)","v":16},"17 - Производство бумаги и бумажных изделий",16,"17 - Производство бумаги и бумажных изделий",{"$f":"IFERROR(IF(EXACT(Анкета!$C$56,O17),1,0),0)","v":0},{"$f":"IF(ISNUMBER(SEARCH(Анкета!$C$56,M17)),MAX($L$1:L16)+1,0)","v":16},"17 - Производство бумаги и бумажных изделий",16,"17 - Производство бумаги и бумажных изделий",{"$f":"IFERROR(IF(EXACT(Анкета!$C$58,T17),1,0),0)","v":0},{"$f":"IF(ISNUMBER(SEARCH(Анкета!$C$58,R17)),MAX($Q$1:Q16)+1,0)","v":16},"17 - Производство бумаги и бумажных изделий",16,"17 - Производство бумаги и бумажных изделий",{"$f":"IFERROR(IF(EXACT(Анкета!$C$60,Y17),1,0),0)","v":0},{"$f":"IF(ISNUMBER(SEARCH(Анкета!$C$60,W17)),MAX($V$1:V16)+1,0)","v":16},"17 - Производство бумаги и бумажных изделий",16,"17 - Производство бумаги и бумажных изделий"]
[{"$f":"IFERROR(IF(EXACT(Анкета!$C$52,E18),1,0),0)","v":0},{"$f":"IF(ISNUMBER(SEARCH(Анкета!$C$52,C18)),MAX(B$1:$B17)+1,0)","v":17},"18 - Деятельность полиграфическая и копирование носителей информации",17,"18 - Деятельность полиграфическая и копирование носителей информации",{"$f":"IFERROR(IF(EXACT(Анкета!$C$54,J18),1,0),0)","v":0},{"$f":"IF(ISNUMBER(SEARCH(Анкета!$C$54,H18)),MAX($G$1:G17)+1,0)","v":17},"18 - Деятельность полиграфическая и копирование носителей информации",17,"18 - Деятельность полиграфическая и копирование носителей информации",{"$f":"IFERROR(IF(EXACT(Анкета!$C$56,O18),1,0),0)","v":0},{"$f":"IF(ISNUMBER(SEARCH(Анкета!$C$56,M18)),MAX($L$1:L17)+1,0)","v":17},"18 - Деятельность полиграфическая и копирование носителей информации",17,"18 - Деятельность полиграфическая и копирование носителей информации",{"$f":"IFERROR(IF(EXACT(Анкета!$C$58,T18),1,0),0)","v":0},{"$f":"IF(ISNUMBER(SEARCH(Анкета!$C$58,R18)),MAX($Q$1:Q17)+1,0)","v":17},"18 - Деятельность полиграфическая и копирование носителей информации",17,"18 - Деятельность полиграфическая и копирование носителей информации",{"$f":"IFERROR(IF(EXACT(Анкета!$C$60,Y18),1,0),0)","v":0},{"$f":"IF(ISNUMBER(SEARCH(Анкета!$C$60,W18)),MAX($V$1:V17)+1,0)","v":17},"18 - Деятельность полиграфическая и копирование носителей информации",17,"18 - Деятельность полиграфическая и копирование носителей информации"]
[{"$f":"IFERROR(IF(EXACT(Анкета!$C$52,E19),1,0),0)","v":0},{"$f":"IF(ISNUMBER(SEARCH(Анкета!$C$52,C19)),MAX(B$1:$B18)+1,0)","v":18},"19 - Производство кокса и нефтепродуктов",18,"19 - Производство кокса и нефтепродуктов",{"$f":"IFERROR(IF(EXACT(Анкета!$C$54,J19),1,0),0)","v":0},{"$f":"IF(ISNUMBER(SEARCH(Анкета!$C$54,H19)),MAX($G$1:G18)+1,0)","v":18},"19 - Производство кокса и нефтепродуктов",18,"19 - Производство кокса и нефтепродуктов",{"$f":"IFERROR(IF(EXACT(Анкета!$C$56,O19),1,0),0)","v":0},{"$f":"IF(ISNUMBER(SEARCH(Анкета!$C$56,M19)),MAX($L$1:L18)+1,0)","v":18},"19 - Производство кокса и нефтепродуктов",18,"19 - Производство кокса и нефтепродуктов",{"$f":"IFERROR(IF(EXACT(Анкета!$C$58,T19),1,0),0)","v":0},{"$f":"IF(ISNUMBER(SEARCH(Анкета!$C$58,R19)),MAX($Q$1:Q18)+1,0)","v":18},"19 - Производство кокса и нефтепродуктов",18,"19 - Производство кокса и нефтепродуктов",{"$f":"IFERROR(IF(EXACT(Анкета!$C$60,Y19),1,0),0)","v":0},{"$f":"IF(ISNUMBER(SEARCH(Анкета!$C$60,W19)),MAX($V$1:V18)+1,0)","v":18},"19 - Производство кокса и нефтепродуктов",18,"19 - Производство кокса и нефтепродуктов"]
[{"$f":"IFERROR(IF(EXACT(Анкета!$C$52,E20),1,0),0)","v":0},{"$f":"IF(ISNUMBER(SEARCH(Анкета!$C$52,C20)),MAX(B$1:$B19)+1,0)","v":19},"20 - Производство химических веществ и химических продуктов",19,"20 - Производство химических веществ и химических продуктов",{"$f":"IFERROR(IF(EXACT(Анкета!$C$54,J20),1,0),0)","v":0},{"$f":"IF(ISNUMBER(SEARCH(Анкета!$C$54,H20)),MAX($G$1:G19)+1,0)","v":19},"20 - Производство химических веществ и химических продуктов",19,"20 - Производство химических веществ и химических продуктов",{"$f":"IFERROR(IF(EXACT(Анкета!$C$56,O20),1,0),0)","v":0},{"$f":"IF(ISNUMBER(SEARCH(Анкета!$C$56,M20)),MAX($L$1:L19)+1,0)","v":19},"20 - Производство химических веществ и химических продуктов",19,"20 - Производство химических веществ и химических продуктов",{"$f":"IFERROR(IF(EXACT(Анкета!$C$58,T20),1,0),0)","v":0},{"$f":"IF(ISNUMBER(SEARCH(Анкета!$C$58,R20)),MAX($Q$1:Q19)+1,0)","v":19},"20 - Производство химических веществ и химических продуктов",19,"20 - Производство химических веществ и химических продуктов",{"$f":"IFERROR(IF(EXACT(Анкета!$C$60,Y20),1,0),0)","v":0},{"$f":"IF(ISNUMBER(SEARCH(Анкета!$C$60,W20)),MAX($V$1:V19)+1,0)","v":19},"20 - Производство химических веществ и химических продуктов",19,"20 - Производство химических веществ и химических продуктов"]
[{"$f":"IFERROR(IF(EXACT(Анкета!$C$52,E21),1,0),0)","v":0},{"$f":"IF(ISNUMBER(SEARCH(Анкета!$C$52,C21)),MAX(B$1:$B20)+1,0)","v":20},"21 - Производство лекарственных средств и материалов, применяемых в медицинских целях",20,"21 - Производство лекарственных средств и материалов, применяемых в медицинских целях",{"$f":"IFERROR(IF(EXACT(Анкета!$C$54,J21),1,0),0)","v":0},{"$f":"IF(ISNUMBER(SEARCH(Анкета!$C$54,H21)),MAX($G$1:G20)+1,0)","v":20},"21 - Производство лекарственных средств и материалов, применяемых в медицинских целях",20,"21 - Производство лекарственных средств и материалов, применяемых в медицинских целях",{"$f":"IFERROR(IF(EXACT(Анкета!$C$56,O21),1,0),0)","v":0},{"$f":"IF(ISNUMBER(SEARCH(Анкета!$C$56,M21)),MAX($L$1:L20)+1,0)","v":20},"21 - Производство лекарственных средств и материалов, применяемых в медицинских целях",20,"21 - Производство лекарственных средств и материалов, применяемых в медицинских целях",{"$f":"IFERROR(IF(EXACT(Анкета!$C$58,T21),1,0),0)","v":0},{"$f":"IF(ISNUMBER(SEARCH(Анкета!$C$58,R21)),MAX($Q$1:Q20)+1,0)","v":20},"21 - Производство лекарственных средств и материалов, применяемых в медицинских целях",20,"21 - Производство лекарственных средств и материалов, применяемых в медицинских целях",{"$f":"IFERROR(IF(EXACT(Анкета!$C$60,Y21),1,0),0)","v":0},{"$f":"IF(ISNUMBER(SEARCH(Анкета!$C$60,W21)),MAX($V$1:V20)+1,0)","v":20},"21 - Производство лекарственных средств и материалов, применяемых в медицинских целях",20,"21 - Производство лекарственных средств и материалов, применяемых в медицинских целях"]
[{"$f":"IFERROR(IF(EXACT(Анкета!$C$52,E22),1,0),0)","v":0},{"$f":"IF(ISNUMBER(SEARCH(Анкета!$C$52,C22)),MAX(B$1:$B21)+1,0)","v":21},"22 - Производство резиновых и пластмассовых изделий",21,"22 - Производство резиновых и пластмассовых изделий",{"$f":"IFERROR(IF(EXACT(Анкета!$C$54,J22),1,0),0)","v":0},{"$f":"IF(ISNUMBER(SEARCH(Анкета!$C$54,H22)),MAX($G$1:G21)+1,0)","v":21},"22 - Производство резиновых и пластмассовых изделий",21,"22 - Производство резиновых и пластмассовых изделий",{"$f":"IFERROR(IF(EXACT(Анкета!$C$56,O22),1,0),0)","v":0},{"$f":"IF(ISNUMBER(SEARCH(Анкета!$C$56,M22)),MAX($L$1:L21)+1,0)","v":21},"22 - Производство резиновых и пластмассовых изделий",21,"22 - Производство резиновых и пластмассовых изделий",{"$f":"IFERROR(IF(EXACT(Анкета!$C$58,T22),1,0),0)","v":0},{"$f":"IF(ISNUMBER(SEARCH(Анкета!$C$58,R22)),MAX($Q$1:Q21)+1,0)","v":21},"22 - Производство резиновых и пластмассовых изделий",21,"22 - Производство резиновых и пластмассовых изделий",{"$f":"IFERROR(IF(EXACT(Анкета!$C$60,Y22),1,0),0)","v":0},{"$f":"IF(ISNUMBER(SEARCH(Анкета!$C$60,W22)),MAX($V$1:V21)+1,0)","v":21},"22 - Производство резиновых и пластмассовых изделий",21,"22 - Производство резиновых и пластмассовых изделий"]
[{"$f":"IFERROR(IF(EXACT(Анкета!$C$52,E23),1,0),0)","v":0},{"$f":"IF(ISNUMBER(SEARCH(Анкета!$C$52,C23)),MAX(B$1:$B22)+1,0)","v":22},"23 - Производство прочей неметаллической минеральной продукции",22,"23 - Производство прочей неметаллической минеральной продукции",{"$f":"IFERROR(IF(EXACT(Анкета!$C$54,J23),1,0),0)","v":0},{"$f":"IF(ISNUMBER(SEARCH(Анкета!$C$54,H23)),MAX($G$1:G22)+1,0)","v":22},"23 - Производство прочей неметаллической минеральной продукции",22,"23 - Производство прочей неметаллической минеральной продукции",{"$f":"IFERROR(IF(EXACT(Анкета!$C$56,O23),1,0),0)","v":0},{"$f":"IF(ISNUMBER(SEARCH(Анкета!$C$56,M23)),MAX($L$1:L22)+1,0)","v":22},"23 - Производство прочей неметаллической минеральной продукции",22,"23 - Производство прочей неметаллической минеральной продукции",{"$f":"IFERROR(IF(EXACT(Анкета!$C$58,T23),1,0),0)","v":0},{"$f":"IF(ISNUMBER(SEARCH(Анкета!$C$58,R23)),MAX($Q$1:Q22)+1,0)","v":22},"23 - Производство прочей неметаллической минеральной продукции",22,"23 - Производство прочей неметаллической минеральной продукции",{"$f":"IFERROR(IF(EXACT(Анкета!$C$60,Y23),1,0),0)","v":0},{"$f":"IF(ISNUMBER(SEARCH(Анкета!$C$60,W23)),MAX($V$1:V22)+1,0)","v":22},"23 - Производство прочей неметаллической минеральной продукции",22,"23 - Производство прочей неметаллической минеральной продукции"]
[{"$f":"IFERROR(IF(EXACT(Анкета!$C$52,E24),1,0),0)","v":0},{"$f":"IF(ISNUMBER(SEARCH(Анкета!$C$52,C24)),MAX(B$1:$B23)+1,0)","v":23},"24 - Производство металлургическое",23,"24 - Производство металлургическое",{"$f":"IFERROR(IF(EXACT(Анкета!$C$54,J24),1,0),0)","v":0},{"$f":"IF(ISNUMBER(SEARCH(Анкета!$C$54,H24)),MAX($G$1:G23)+1,0)","v":23},"24 - Производство металлургическое",23,"24 - Производство металлургическое",{"$f":"IFERROR(IF(EXACT(Анкета!$C$56,O24),1,0),0)","v":0},{"$f":"IF(ISNUMBER(SEARCH(Анкета!$C$56,M24)),MAX($L$1:L23)+1,0)","v":23},"24 - Производство металлургическое",23,"24 - Производство металлургическое",{"$f":"IFERROR(IF(EXACT(Анкета!$C$58,T24),1,0),0)","v":0},{"$f":"IF(ISNUMBER(SEARCH(Анкета!$C$58,R24)),MAX($Q$1:Q23)+1,0)","v":23},"24 - Производство металлургическое",23,"24 - Производство металлургическое",{"$f":"IFERROR(IF(EXACT(Анкета!$C$60,Y24),1,0),0)","v":0},{"$f":"IF(ISNUMBER(SEARCH(Анкета!$C$60,W24)),MAX($V$1:V23)+1,0)","v":23},"24 - Производство металлургическое",23,"24 - Производство металлургическое"]
[{"$f":"IFERROR(IF(EXACT(Анкета!$C$52,E25),1,0),0)","v":0},{"$f":"IF(ISNUMBER(SEARCH(Анкета!$C$52,C25)),MAX(B$1:$B24)+1,0)","v":24},"25 - Производство готовых металлических изделий, кроме машин и оборудования",24,"25 - Производство готовых металлических изделий, кроме машин и оборудования",{"$f":"IFERROR(IF(EXACT(Анкета!$C$54,J25),1,0),0)","v":0},{"$f":"IF(ISNUMBER(SEARCH(Анкета!$C$54,H25)),MAX($G$1:G24)+1,0)","v":24},"25 - Производство готовых металлических изделий, кроме машин и оборудования",24,"25 - Производство готовых металлических изделий, кроме машин и оборудования",{"$f":"IFERROR(IF(EXACT(Анкета!$C$56,O25),1,0),0)","v":0},{"$f":"IF(ISNUMBER(SEARCH(Анкета!$C$56,M25)),MAX($L$1:L24)+1,0)","v":24},"25 - Производство готовых металлических изделий, кроме машин и оборудования",24,"25 - Производство готовых металлических изделий, кроме машин и оборудования",{"$f":"IFERROR(IF(EXACT(Анкета!$C$58,T25),1,0),0)","v":0},{"$f":"IF(ISNUMBER(SEARCH(Анкета!$C$58,R25)),MAX($Q$1:Q24)+1,0)","v":24},"25 - Производство готовых металлических изделий, кроме машин и оборудования",24,"25 - Производство готовых металлических изделий, кроме машин и оборудования",{"$f":"IFERROR(IF(EXACT(Анкета!$C$60,Y25),1,0),0)","v":0},{"$f":"IF(ISNUMBER(SEARCH(Анкета!$C$60,W25)),MAX($V$1:V24)+1,0)","v":24},"25 - Производство готовых металлических изделий, кроме машин и оборудования",24,"25 - Производство готовых металлических изделий, кроме машин и оборудования"]
[{"$f":"IFERROR(IF(EXACT(Анкета!$C$52,E26),1,0),0)","v":0},{"$f":"IF(ISNUMBER(SEARCH(Анкета!$C$52,C26)),MAX(B$1:$B25)+1,0)","v":25},"26 - Производство компьютеров, электронных и оптических изделий",25,"26 - Производство компьютеров, электронных и оптических изделий",{"$f":"IFERROR(IF(EXACT(Анкета!$C$54,J26),1,0),0)","v":0},{"$f":"IF(ISNUMBER(SEARCH(Анкета!$C$54,H26)),MAX($G$1:G25)+1,0)","v":25},"26 - Производство компьютеров, электронных и оптических изделий",25,"26 - Производство компьютеров, электронных и оптических изделий",{"$f":"IFERROR(IF(EXACT(Анкета!$C$56,O26),1,0),0)","v":0},{"$f":"IF(ISNUMBER(SEARCH(Анкета!$C$56,M26)),MAX($L$1:L25)+1,0)","v":25},"26 - Производство компьютеров, электронных и оптических изделий",25,"26 - Производство компьютеров, электронных и оптических изделий",{"$f":"IFERROR(IF(EXACT(Анкета!$C$58,T26),1,0),0)","v":0},{"$f":"IF(ISNUMBER(SEARCH(Анкета!$C$58,R26)),MAX($Q$1:Q25)+1,0)","v":25},"26 - Производство компьютеров, электронных и оптических изделий",25,"26 - Производство компьютеров, электронных и оптических изделий",{"$f":"IFERROR(IF(EXACT(Анкета!$C$60,Y26),1,0),0)","v":0},{"$f":"IF(ISNUMBER(SEARCH(Анкета!$C$60,W26)),MAX($V$1:V25)+1,0)","v":25},"26 - Производство компьютеров, электронных и оптических изделий",25,"26 - Производство компьютеров, электронных и оптических изделий"]
[{"$f":"IFERROR(IF(EXACT(Анкета!$C$52,E27),1,0),0)","v":0},{"$f":"IF(ISNUMBER(SEARCH(Анкета!$C$52,C27)),MAX(B$1:$B26)+1,0)","v":26},"27 - Производство электрического оборудования",26,"27 - Производство электрического оборудования",{"$f":"IFERROR(IF(EXACT(Анкета!$C$54,J27),1,0),0)","v":0},{"$f":"IF(ISNUMBER(SEARCH(Анкета!$C$54,H27)),MAX($G$1:G26)+1,0)","v":26},"27 - Производство электрического оборудования",26,"27 - Производство электрического оборудования",{"$f":"IFERROR(IF(EXACT(Анкета!$C$56,O27),1,0),0)","v":0},{"$f":"IF(ISNUMBER(SEARCH(Анкета!$C$56,M27)),MAX($L$1:L26)+1,0)","v":26},"27 - Производство электрического оборудования",26,"27 - Производство электрического оборудования",{"$f":"IFERROR(IF(EXACT(Анкета!$C$58,T27),1,0),0)","v":0},{"$f":"IF(ISNUMBER(SEARCH(Анкета!$C$58,R27)),MAX($Q$1:Q26)+1,0)","v":26},"27 - Производство электрического оборудования",26,"27 - Производство электрического оборудования",{"$f":"IFERROR(IF(EXACT(Анкета!$C$60,Y27),1,0),0)","v":0},{"$f":"IF(ISNUMBER(SEARCH(Анкета!$C$60,W27)),MAX($V$1:V26)+1,0)","v":26},"27 - Производство электрического оборудования",26,"27 - Производство электрического оборудования"]
[{"$f":"IFERROR(IF(EXACT(Анкета!$C$52,E28),1,0),0)","v":0},{"$f":"IF(ISNUMBER(SEARCH(Анкета!$C$52,C28)),MAX(B$1:$B27)+1,0)","v":27},"28 - Производство машин и оборудования, не включенных в другие группировки",27,"28 - Производство машин и оборудования, не включенных в другие группировки",{"$f":"IFERROR(IF(EXACT(Анкета!$C$54,J28),1,0),0)","v":0},{"$f":"IF(ISNUMBER(SEARCH(Анкета!$C$54,H28)),MAX($G$1:G27)+1,0)","v":27},"28 - Производство машин и оборудования, не включенных в другие группировки",27,"28 - Производство машин и оборудования, не включенных в другие группировки",{"$f":"IFERROR(IF(EXACT(Анкета!$C$56,O28),1,0),0)","v":0},{"$f":"IF(ISNUMBER(SEARCH(Анкета!$C$56,M28)),MAX($L$1:L27)+1,0)","v":27},"28 - Производство машин и оборудования, не включенных в другие группировки",27,"28 - Производство машин и оборудования, не включенных в другие группировки",{"$f":"IFERROR(IF(EXACT(Анкета!$C$58,T28),1,0),0)","v":0},{"$f":"IF(ISNUMBER(SEARCH(Анкета!$C$58,R28)),MAX($Q$1:Q27)+1,0)","v":27},"28 - Производство машин и оборудования, не включенных в другие группировки",27,"28 - Производство машин и оборудования, не включенных в другие группировки",{"$f":"IFERROR(IF(EXACT(Анкета!$C$60,Y28),1,0),0)","v":0},{"$f":"IF(ISNUMBER(SEARCH(Анкета!$C$60,W28)),MAX($V$1:V27)+1,0)","v":27},"28 - Производство машин и оборудования, не включенных в другие группировки",27,"28 - Производство машин и оборудования, не включенных в другие группировки"]
[{"$f":"IFERROR(IF(EXACT(Анкета!$C$52,E29),1,0),0)","v":0},{"$f":"IF(ISNUMBER(SEARCH(Анкета!$C$52,C29)),MAX(B$1:$B28)+1,0)","v":28},"29 - Производство автотранспортных средств, прицепов и полуприцепов",28,"29 - Производство автотранспортных средств, прицепов и полуприцепов",{"$f":"IFERROR(IF(EXACT(Анкета!$C$54,J29),1,0),0)","v":0},{"$f":"IF(ISNUMBER(SEARCH(Анкета!$C$54,H29)),MAX($G$1:G28)+1,0)","v":28},"29 - Производство автотранспортных средств, прицепов и полуприцепов",28,"29 - Производство автотранспортных средств, прицепов и полуприцепов",{"$f":"IFERROR(IF(EXACT(Анкета!$C$56,O29),1,0),0)","v":0},{"$f":"IF(ISNUMBER(SEARCH(Анкета!$C$56,M29)),MAX($L$1:L28)+1,0)","v":28},"29 - Производство автотранспортных средств, прицепов и полуприцепов",28,"29 - Производство автотранспортных средств, прицепов и полуприцепов",{"$f":"IFERROR(IF(EXACT(Анкета!$C$58,T29),1,0),0)","v":0},{"$f":"IF(ISNUMBER(SEARCH(Анкета!$C$58,R29)),MAX($Q$1:Q28)+1,0)","v":28},"29 - Производство автотранспортных средств, прицепов и полуприцепов",28,"29 - Производство автотранспортных средств, прицепов и полуприцепов",{"$f":"IFERROR(IF(EXACT(Анкета!$C$60,Y29),1,0),0)","v":0},{"$f":"IF(ISNUMBER(SEARCH(Анкета!$C$60,W29)),MAX($V$1:V28)+1,0)","v":28},"29 - Производство автотранспортных средств, прицепов и полуприцепов",28,"29 - Производство автотранспортных средств, прицепов и полуприцепов"]
[{"$f":"IFERROR(IF(EXACT(Анкета!$C$52,E30),1,0),0)","v":0},{"$f":"IF(ISNUMBER(SEARCH(Анкета!$C$52,C30)),MAX(B$1:$B29)+1,0)","v":29},"30 - Производство прочих транспортных средств и оборудования",29,"30 - Производство прочих транспортных средств и оборудования",{"$f":"IFERROR(IF(EXACT(Анкета!$C$54,J30),1,0),0)","v":0},{"$f":"IF(ISNUMBER(SEARCH(Анкета!$C$54,H30)),MAX($G$1:G29)+1,0)","v":29},"30 - Производство прочих транспортных средств и оборудования",29,"30 - Производство прочих транспортных средств и оборудования",{"$f":"IFERROR(IF(EXACT(Анкета!$C$56,O30),1,0),0)","v":0},{"$f":"IF(ISNUMBER(SEARCH(Анкета!$C$56,M30)),MAX($L$1:L29)+1,0)","v":29},"30 - Производство прочих транспортных средств и оборудования",29,"30 - Производство прочих транспортных средств и оборудования",{"$f":"IFERROR(IF(EXACT(Анкета!$C$58,T30),1,0),0)","v":0},{"$f":"IF(ISNUMBER(SEARCH(Анкета!$C$58,R30)),MAX($Q$1:Q29)+1,0)","v":29},"30 - Производство прочих транспортных средств и оборудования",29,"30 - Производство прочих транспортных средств и оборудования",{"$f":"IFERROR(IF(EXACT(Анкета!$C$60,Y30),1,0),0)","v":0},{"$f":"IF(ISNUMBER(SEARCH(Анкета!$C$60,W30)),MAX($V$1:V29)+1,0)","v":29},"30 - Производство прочих транспортных средств и оборудования",29,"30 - Производство прочих транспортных средств и оборудования"]
[{"$f":"IFERROR(IF(EXACT(Анкета!$C$52,E31),1,0),0)","v":0},{"$f":"IF(ISNUMBER(SEARCH(Анкета!$C$52,C31)),MAX(B$1:$B30)+1,0)","v":30},"31 - Производство мебели",30,"31 - Производство мебели",{"$f":"IFERROR(IF(EXACT(Анкета!$C$54,J31),1,0),0)","v":0},{"$f":"IF(ISNUMBER(SEARCH(Анкета!$C$54,H31)),MAX($G$1:G30)+1,0)","v":30},"31 - Производство мебели",30,"31 - Производство мебели",{"$f":"IFERROR(IF(EXACT(Анкета!$C$56,O31),1,0),0)","v":0},{"$f":"IF(ISNUMBER(SEARCH(Анкета!$C$56,M31)),MAX($L$1:L30)+1,0)","v":30},"31 - Производство мебели",30,"31 - Производство мебели",{"$f":"IFERROR(IF(EXACT(Анкета!$C$58,T31),1,0),0)","v":0},{"$f":"IF(ISNUMBER(SEARCH(Анкета!$C$58,R31)),MAX($Q$1:Q30)+1,0)","v":30},"31 - Производство мебели",30,"31 - Производство мебели",{"$f":"IFERROR(IF(EXACT(Анкета!$C$60,Y31),1,0),0)","v":0},{"$f":"IF(ISNUMBER(SEARCH(Анкета!$C$60,W31)),MAX($V$1:V30)+1,0)","v":30},"31 - Производство мебели",30,"31 - Производство мебели"]
[{"$f":"IFERROR(IF(EXACT(Анкета!$C$52,E32),1,0),0)","v":0},{"$f":"IF(ISNUMBER(SEARCH(Анкета!$C$52,C32)),MAX(B$1:$B31)+1,0)","v":31},"32 - Производство прочих готовых изделий",31,"32 - Производство прочих готовых изделий",{"$f":"IFERROR(IF(EXACT(Анкета!$C$54,J32),1,0),0)","v":0},{"$f":"IF(ISNUMBER(SEARCH(Анкета!$C$54,H32)),MAX($G$1:G31)+1,0)","v":31},"32 - Производство прочих готовых изделий",31,"32 - Производство прочих готовых изделий",{"$f":"IFERROR(IF(EXACT(Анкета!$C$56,O32),1,0),0)","v":0},{"$f":"IF(ISNUMBER(SEARCH(Анкета!$C$56,M32)),MAX($L$1:L31)+1,0)","v":31},"32 - Производство прочих готовых изделий",31,"32 - Производство прочих готовых изделий",{"$f":"IFERROR(IF(EXACT(Анкета!$C$58,T32),1,0),0)","v":0},{"$f":"IF(ISNUMBER(SEARCH(Анкета!$C$58,R32)),MAX($Q$1:Q31)+1,0)","v":31},"32 - Производство прочих готовых изделий",31,"32 - Производство прочих готовых изделий",{"$f":"IFERROR(IF(EXACT(Анкета!$C$60,Y32),1,0),0)","v":0},{"$f":"IF(ISNUMBER(SEARCH(Анкета!$C$60,W32)),MAX($V$1:V31)+1,0)","v":31},"32 - Производство прочих готовых изделий",31,"32 - Производство прочих готовых изделий"]
[{"$f":"IFERROR(IF(EXACT(Анкета!$C$52,E33),1,0),0)","v":0},{"$f":"IF(ISNUMBER(SEARCH(Анкета!$C$52,C33)),MAX(B$1:$B32)+1,0)","v":32},"33 - Ремонт и монтаж машин и оборудования",32,"33 - Ремонт и монтаж машин и оборудования",{"$f":"IFERROR(IF(EXACT(Анкета!$C$54,J33),1,0),0)","v":0},{"$f":"IF(ISNUMBER(SEARCH(Анкета!$C$54,H33)),MAX($G$1:G32)+1,0)","v":32},"33 - Ремонт и монтаж машин и оборудования",32,"33 - Ремонт и монтаж машин и оборудования",{"$f":"IFERROR(IF(EXACT(Анкета!$C$56,O33),1,0),0)","v":0},{"$f":"IF(ISNUMBER(SEARCH(Анкета!$C$56,M33)),MAX($L$1:L32)+1,0)","v":32},"33 - Ремонт и монтаж машин и оборудования",32,"33 - Ремонт и монтаж машин и оборудования",{"$f":"IFERROR(IF(EXACT(Анкета!$C$58,T33),1,0),0)","v":0},{"$f":"IF(ISNUMBER(SEARCH(Анкета!$C$58,R33)),MAX($Q$1:Q32)+1,0)","v":32},"33 - Ремонт и монтаж машин и оборудования",32,"33 - Ремонт и монтаж машин и оборудования",{"$f":"IFERROR(IF(EXACT(Анкета!$C$60,Y33),1,0),0)","v":0},{"$f":"IF(ISNUMBER(SEARCH(Анкета!$C$60,W33)),MAX($V$1:V32)+1,0)","v":32},"33 - Ремонт и монтаж машин и оборудования",32,"33 - Ремонт и монтаж машин и оборудования"]
[{"$f":"IFERROR(IF(EXACT(Анкета!$C$52,E34),1,0),0)","v":0},{"$f":"IF(ISNUMBER(SEARCH(Анкета!$C$52,C34)),MAX(B$1:$B33)+1,0)","v":33},"35 - Обеспечение электрической энергией, газом и паром; кондиционирование воздуха",33,{"$f":"VLOOKUP(D34,B:C,2,0)","v":"35 - Обеспечение электрической энергией, газом и паром; кондиционирование воздуха"},{"$f":"IFERROR(IF(EXACT(Анкета!$C$54,J34),1,0),0)","v":0},{"$f":"IF(ISNUMBER(SEARCH(Анкета!$C$54,H34)),MAX($G$1:G33)+1,0)","v":33},"35 - Обеспечение электрической энергией, газом и паром; кондиционирование воздуха",33,{"$f":"VLOOKUP(I34,G:H,2,0)","v":"35 - Обеспечение электрической энергией, газом и паром; кондиционирование воздуха"},{"$f":"IFERROR(IF(EXACT(Анкета!$C$56,O34),1,0),0)","v":0},{"$f":"IF(ISNUMBER(SEARCH(Анкета!$C$56,M34)),MAX($L$1:L33)+1,0)","v":33},"35 - Обеспечение электрической энергией, газом и паром; кондиционирование воздуха",33,"35 - Обеспечение электрической энергией, газом и паром; кондиционирование воздуха",{"$f":"IFERROR(IF(EXACT(Анкета!$C$58,T34),1,0),0)","v":0},{"$f":"IF(ISNUMBER(SEARCH(Анкета!$C$58,R34)),MAX($Q$1:Q33)+1,0)","v":33},"35 - Обеспечение электрической энергией, газом и паром; кондиционирование воздуха",33,"35 - Обеспечение электрической энергией, газом и паром; кондиционирование воздуха",{"$f":"IFERROR(IF(EXACT(Анкета!$C$60,Y34),1,0),0)","v":0},{"$f":"IF(ISNUMBER(SEARCH(Анкета!$C$60,W34)),MAX($V$1:V33)+1,0)","v":33},"35 - Обеспечение электрической энергией, газом и паром; кондиционирование воздуха",33,"35 - Обеспечение электрической энергией, газом и паром; кондиционирование воздуха"]
[{"$f":"IFERROR(IF(EXACT(Анкета!$C$52,E35),1,0),0)","v":0},{"$f":"IF(ISNUMBER(SEARCH(Анкета!$C$52,C35)),MAX(B$1:$B34)+1,0)","v":34},"36 - Забор, очистка и распределение воды",34,"36 - Забор, очистка и распределение воды",{"$f":"IFERROR(IF(EXACT(Анкета!$C$54,J35),1,0),0)","v":0},{"$f":"IF(ISNUMBER(SEARCH(Анкета!$C$54,H35)),MAX($G$1:G34)+1,0)","v":34},"36 - Забор, очистка и распределение воды",34,"36 - Забор, очистка и распределение воды",{"$f":"IFERROR(IF(EXACT(Анкета!$C$56,O35),1,0),0)","v":0},{"$f":"IF(ISNUMBER(SEARCH(Анкета!$C$56,M35)),MAX($L$1:L34)+1,0)","v":34},"36 - Забор, очистка и распределение воды",34,"36 - Забор, очистка и распределение воды",{"$f":"IFERROR(IF(EXACT(Анкета!$C$58,T35),1,0),0)","v":0},{"$f":"IF(ISNUMBER(SEARCH(Анкета!$C$58,R35)),MAX($Q$1:Q34)+1,0)","v":34},"36 - Забор, очистка и распределение воды",34,"36 - Забор, очистка и распределение воды",{"$f":"IFERROR(IF(EXACT(Анкета!$C$60,Y35),1,0),0)","v":0},{"$f":"IF(ISNUMBER(SEARCH(Анкета!$C$60,W35)),MAX($V$1:V34)+1,0)","v":34},"36 - Забор, очистка и распределение воды",34,"36 - Забор, очистка и распределение воды"]
[{"$f":"IFERROR(IF(EXACT(Анкета!$C$52,E36),1,0),0)","v":0},{"$f":"IF(ISNUMBER(SEARCH(Анкета!$C$52,C36)),MAX(B$1:$B35)+1,0)","v":35},"37 - Сбор и обработка сточных вод",35,"37 - Сбор и обработка сточных вод",{"$f":"IFERROR(IF(EXACT(Анкета!$C$54,J36),1,0),0)","v":0},{"$f":"IF(ISNUMBER(SEARCH(Анкета!$C$54,H36)),MAX($G$1:G35)+1,0)","v":35},"37 - Сбор и обработка сточных вод",35,"37 - Сбор и обработка сточных вод",{"$f":"IFERROR(IF(EXACT(Анкета!$C$56,O36),1,0),0)","v":0},{"$f":"IF(ISNUMBER(SEARCH(Анкета!$C$56,M36)),MAX($L$1:L35)+1,0)","v":35},"37 - Сбор и обработка сточных вод",35,"37 - Сбор и обработка сточных вод",{"$f":"IFERROR(IF(EXACT(Анкета!$C$58,T36),1,0),0)","v":0},{"$f":"IF(ISNUMBER(SEARCH(Анкета!$C$58,R36)),MAX($Q$1:Q35)+1,0)","v":35},"37 - Сбор и обработка сточных вод",35,"37 - Сбор и обработка сточных вод",{"$f":"IFERROR(IF(EXACT(Анкета!$C$60,Y36),1,0),0)","v":0},{"$f":"IF(ISNUMBER(SEARCH(Анкета!$C$60,W36)),MAX($V$1:V35)+1,0)","v":35},"37 - Сбор и обработка сточных вод",35,"37 - Сбор и обработка сточных вод"]
[{"$f":"IFERROR(IF(EXACT(Анкета!$C$52,E37),1,0),0)","v":0},{"$f":"IF(ISNUMBER(SEARCH(Анкета!$C$52,C37)),MAX(B$1:$B36)+1,0)","v":36},"38 - Сбор, обработка и утилизация отходов; обработка вторичного сырья",36,"38 - Сбор, обработка и утилизация отходов; обработка вторичного сырья",{"$f":"IFERROR(IF(EXACT(Анкета!$C$54,J37),1,0),0)","v":0},{"$f":"IF(ISNUMBER(SEARCH(Анкета!$C$54,H37)),MAX($G$1:G36)+1,0)","v":36},"38 - Сбор, обработка и утилизация отходов; обработка вторичного сырья",36,"38 - Сбор, обработка и утилизация отходов; обработка вторичного сырья",{"$f":"IFERROR(IF(EXACT(Анкета!$C$56,O37),1,0),0)","v":0},{"$f":"IF(ISNUMBER(SEARCH(Анкета!$C$56,M37)),MAX($L$1:L36)+1,0)","v":36},"38 - Сбор, обработка и утилизация отходов; обработка вторичного сырья",36,"38 - Сбор, обработка и утилизация отходов; обработка вторичного сырья",{"$f":"IFERROR(IF(EXACT(Анкета!$C$58,T37),1,0),0)","v":0},{"$f":"IF(ISNUMBER(SEARCH(Анкета!$C$58,R37)),MAX($Q$1:Q36)+1,0)","v":36},"38 - Сбор, обработка и утилизация отходов; обработка вторичного сырья",36,"38 - Сбор, обработка и утилизация отходов; обработка вторичного сырья",{"$f":"IFERROR(IF(EXACT(Анкета!$C$60,Y37),1,0),0)","v":0},{"$f":"IF(ISNUMBER(SEARCH(Анкета!$C$60,W37)),MAX($V$1:V36)+1,0)","v":36},"38 - Сбор, обработка и утилизация отходов; обработка вторичного сырья",36,"38 - Сбор, обработка и утилизация отходов; обработка вторичного сырья"]
[{"$f":"IFERROR(IF(EXACT(Анкета!$C$52,E38),1,0),0)","v":0},{"$f":"IF(ISNUMBER(SEARCH(Анкета!$C$52,C38)),MAX(B$1:$B37)+1,0)","v":37},"39 - Предоставление услуг в области ликвидации последствий загрязнений и прочих услуг, связанных с удалением отходов",37,"39 - Предоставление услуг в области ликвидации последствий загрязнений и прочих услуг, связанных с удалением отходов",{"$f":"IFERROR(IF(EXACT(Анкета!$C$54,J38),1,0),0)","v":0},{"$f":"IF(ISNUMBER(SEARCH(Анкета!$C$54,H38)),MAX($G$1:G37)+1,0)","v":37},"39 - Предоставление услуг в области ликвидации последствий загрязнений и прочих услуг, связанных с удалением отходов",37,"39 - Предоставление услуг в области ликвидации последствий загрязнений и прочих услуг, связанных с удалением отходов",{"$f":"IFERROR(IF(EXACT(Анкета!$C$56,O38),1,0),0)","v":0},{"$f":"IF(ISNUMBER(SEARCH(Анкета!$C$56,M38)),MAX($L$1:L37)+1,0)","v":37},"39 - Предоставление услуг в области ликвидации последствий загрязнений и прочих услуг, связанных с удалением отходов",37,"39 - Предоставление услуг в области ликвидации последствий загрязнений и прочих услуг, связанных с удалением отходов",{"$f":"IFERROR(IF(EXACT(Анкета!$C$58,T38),1,0),0)","v":0},{"$f":"IF(ISNUMBER(SEARCH(Анкета!$C$58,R38)),MAX($Q$1:Q37)+1,0)","v":37},"39 - Предоставление услуг в области ликвидации последствий загрязнений и прочих услуг, связанных с удалением отходов",37,"39 - Предоставление услуг в области ликвидации последствий загрязнений и прочих услуг, связанных с удалением отходов",{"$f":"IFERROR(IF(EXACT(Анкета!$C$60,Y38),1,0),0)","v":0},{"$f":"IF(ISNUMBER(SEARCH(Анкета!$C$60,W38)),MAX($V$1:V37)+1,0)","v":37},"39 - Предоставление услуг в области ликвидации последствий загрязнений и прочих услуг, связанных с удалением отходов",37,"39 - Предоставление услуг в области ликвидации последствий загрязнений и прочих услуг, связанных с удалением отходов"]
[{"$f":"IFERROR(IF(EXACT(Анкета!$C$52,E39),1,0),0)","v":0},{"$f":"IF(ISNUMBER(SEARCH(Анкета!$C$52,C39)),MAX(B$1:$B38)+1,0)","v":38},"41 - Строительство зданий",38,"41 - Строительство зданий",{"$f":"IFERROR(IF(EXACT(Анкета!$C$54,J39),1,0),0)","v":0},{"$f":"IF(ISNUMBER(SEARCH(Анкета!$C$54,H39)),MAX($G$1:G38)+1,0)","v":38},"41 - Строительство зданий",38,"41 - Строительство зданий",{"$f":"IFERROR(IF(EXACT(Анкета!$C$56,O39),1,0),0)","v":0},{"$f":"IF(ISNUMBER(SEARCH(Анкета!$C$56,M39)),MAX($L$1:L38)+1,0)","v":38},"41 - Строительство зданий",38,"41 - Строительство зданий",{"$f":"IFERROR(IF(EXACT(Анкета!$C$58,T39),1,0),0)","v":0},{"$f":"IF(ISNUMBER(SEARCH(Анкета!$C$58,R39)),MAX($Q$1:Q38)+1,0)","v":38},"41 - Строительство зданий",38,"41 - Строительство зданий",{"$f":"IFERROR(IF(EXACT(Анкета!$C$60,Y39),1,0),0)","v":0},{"$f":"IF(ISNUMBER(SEARCH(Анкета!$C$60,W39)),MAX($V$1:V38)+1,0)","v":38},"41 - Строительство зданий",38,"41 - Строительство зданий"]
[{"$f":"IFERROR(IF(EXACT(Анкета!$C$52,E40),1,0),0)","v":0},{"$f":"IF(ISNUMBER(SEARCH(Анкета!$C$52,C40)),MAX(B$1:$B39)+1,0)","v":39},"42 - Строительство инженерных сооружений",39,"42 - Строительство инженерных сооружений",{"$f":"IFERROR(IF(EXACT(Анкета!$C$54,J40),1,0),0)","v":0},{"$f":"IF(ISNUMBER(SEARCH(Анкета!$C$54,H40)),MAX($G$1:G39)+1,0)","v":39},"42 - Строительство инженерных сооружений",39,"42 - Строительство инженерных сооружений",{"$f":"IFERROR(IF(EXACT(Анкета!$C$56,O40),1,0),0)","v":0},{"$f":"IF(ISNUMBER(SEARCH(Анкета!$C$56,M40)),MAX($L$1:L39)+1,0)","v":39},"42 - Строительство инженерных сооружений",39,"42 - Строительство инженерных сооружений",{"$f":"IFERROR(IF(EXACT(Анкета!$C$58,T40),1,0),0)","v":0},{"$f":"IF(ISNUMBER(SEARCH(Анкета!$C$58,R40)),MAX($Q$1:Q39)+1,0)","v":39},"42 - Строительство инженерных сооружений",39,"42 - Строительство инженерных сооружений",{"$f":"IFERROR(IF(EXACT(Анкета!$C$60,Y40),1,0),0)","v":0},{"$f":"IF(ISNUMBER(SEARCH(Анкета!$C$60,W40)),MAX($V$1:V39)+1,0)","v":39},"42 - Строительство инженерных сооружений",39,"42 - Строительство инженерных сооружений"]
[{"$f":"IFERROR(IF(EXACT(Анкета!$C$52,E41),1,0),0)","v":0},{"$f":"IF(ISNUMBER(SEARCH(Анкета!$C$52,C41)),MAX(B$1:$B40)+1,0)","v":40},"43 - Работы строительные специализированные",40,"43 - Работы строительные специализированные",{"$f":"IFERROR(IF(EXACT(Анкета!$C$54,J41),1,0),0)","v":0},{"$f":"IF(ISNUMBER(SEARCH(Анкета!$C$54,H41)),MAX($G$1:G40)+1,0)","v":40},"43 - Работы строительные специализированные",40,"43 - Работы строительные специализированные",{"$f":"IFERROR(IF(EXACT(Анкета!$C$56,O41),1,0),0)","v":0},{"$f":"IF(ISNUMBER(SEARCH(Анкета!$C$56,M41)),MAX($L$1:L40)+1,0)","v":40},"43 - Работы строительные специализированные",40,"43 - Работы строительные специализированные",{"$f":"IFERROR(IF(EXACT(Анкета!$C$58,T41),1,0),0)","v":0},{"$f":"IF(ISNUMBER(SEARCH(Анкета!$C$58,R41)),MAX($Q$1:Q40)+1,0)","v":40},"43 - Работы строительные специализированные",40,"43 - Работы строительные специализированные",{"$f":"IFERROR(IF(EXACT(Анкета!$C$60,Y41),1,0),0)","v":0},{"$f":"IF(ISNUMBER(SEARCH(Анкета!$C$60,W41)),MAX($V$1:V40)+1,0)","v":40},"43 - Работы строительные специализированные",40,"43 - Работы строительные специализированные"]
[{"$f":"IFERROR(IF(EXACT(Анкета!$C$52,E42),1,0),0)","v":0},{"$f":"IF(ISNUMBER(SEARCH(Анкета!$C$52,C42)),MAX(B$1:$B41)+1,0)","v":41},"45 - Торговля оптовая и розничная автотранспортными средствами и мотоциклами и их ремонт",41,"45 - Торговля оптовая и розничная автотранспортными средствами и мотоциклами и их ремонт",{"$f":"IFERROR(IF(EXACT(Анкета!$C$54,J42),1,0),0)","v":0},{"$f":"IF(ISNUMBER(SEARCH(Анкета!$C$54,H42)),MAX($G$1:G41)+1,0)","v":41},"45 - Торговля оптовая и розничная автотранспортными средствами и мотоциклами и их ремонт",41,"45 - Торговля оптовая и розничная автотранспортными средствами и мотоциклами и их ремонт",{"$f":"IFERROR(IF(EXACT(Анкета!$C$56,O42),1,0),0)","v":0},{"$f":"IF(ISNUMBER(SEARCH(Анкета!$C$56,M42)),MAX($L$1:L41)+1,0)","v":41},"45 - Торговля оптовая и розничная автотранспортными средствами и мотоциклами и их ремонт",41,"45 - Торговля оптовая и розничная автотранспортными средствами и мотоциклами и их ремонт",{"$f":"IFERROR(IF(EXACT(Анкета!$C$58,T42),1,0),0)","v":0},{"$f":"IF(ISNUMBER(SEARCH(Анкета!$C$58,R42)),MAX($Q$1:Q41)+1,0)","v":41},"45 - Торговля оптовая и розничная автотранспортными средствами и мотоциклами и их ремонт",41,"45 - Торговля оптовая и розничная автотранспортными средствами и мотоциклами и их ремонт",{"$f":"IFERROR(IF(EXACT(Анкета!$C$60,Y42),1,0),0)","v":0},{"$f":"IF(ISNUMBER(SEARCH(Анкета!$C$60,W42)),MAX($V$1:V41)+1,0)","v":41},"45 - Торговля оптовая и розничная автотранспортными средствами и мотоциклами и их ремонт",41,"45 - Торговля оптовая и розничная автотранспортными средствами и мотоциклами и их ремонт"]
[{"$f":"IFERROR(IF(EXACT(Анкета!$C$52,E43),1,0),0)","v":0},{"$f":"IF(ISNUMBER(SEARCH(Анкета!$C$52,C43)),MAX(B$1:$B42)+1,0)","v":42},"46 - Торговля оптовая, кроме оптовой торговли автотранспортными средствами и мотоциклами",42,"46 - Торговля оптовая, кроме оптовой торговли автотранспортными средствами и мотоциклами",{"$f":"IFERROR(IF(EXACT(Анкета!$C$54,J43),1,0),0)","v":0},{"$f":"IF(ISNUMBER(SEARCH(Анкета!$C$54,H43)),MAX($G$1:G42)+1,0)","v":42},"46 - Торговля оптовая, кроме оптовой торговли автотранспортными средствами и мотоциклами",42,"46 - Торговля оптовая, кроме оптовой торговли автотранспортными средствами и мотоциклами",{"$f":"IFERROR(IF(EXACT(Анкета!$C$56,O43),1,0),0)","v":0},{"$f":"IF(ISNUMBER(SEARCH(Анкета!$C$56,M43)),MAX($L$1:L42)+1,0)","v":42},"46 - Торговля оптовая, кроме оптовой торговли автотранспортными средствами и мотоциклами",42,"46 - Торговля оптовая, кроме оптовой торговли автотранспортными средствами и мотоциклами",{"$f":"IFERROR(IF(EXACT(Анкета!$C$58,T43),1,0),0)","v":0},{"$f":"IF(ISNUMBER(SEARCH(Анкета!$C$58,R43)),MAX($Q$1:Q42)+1,0)","v":42},"46 - Торговля оптовая, кроме оптовой торговли автотранспортными средствами и мотоциклами",42,"46 - Торговля оптовая, кроме оптовой торговли автотранспортными средствами и мотоциклами",{"$f":"IFERROR(IF(EXACT(Анкета!$C$60,Y43),1,0),0)","v":0},{"$f":"IF(ISNUMBER(SEARCH(Анкета!$C$60,W43)),MAX($V$1:V42)+1,0)","v":42},"46 - Торговля оптовая, кроме оптовой торговли автотранспортными средствами и мотоциклами",42,"46 - Торговля оптовая, кроме оптовой торговли автотранспортными средствами и мотоциклами"]
[{"$f":"IFERROR(IF(EXACT(Анкета!$C$52,E44),1,0),0)","v":0},{"$f":"IF(ISNUMBER(SEARCH(Анкета!$C$52,C44)),MAX(B$1:$B43)+1,0)","v":43},"47 - Торговля розничная, кроме торговли автотранспортными средствами и мотоциклами",43,"47 - Торговля розничная, кроме торговли автотранспортными средствами и мотоциклами",{"$f":"IFERROR(IF(EXACT(Анкета!$C$54,J44),1,0),0)","v":0},{"$f":"IF(ISNUMBER(SEARCH(Анкета!$C$54,H44)),MAX($G$1:G43)+1,0)","v":43},"47 - Торговля розничная, кроме торговли автотранспортными средствами и мотоциклами",43,"47 - Торговля розничная, кроме торговли автотранспортными средствами и мотоциклами",{"$f":"IFERROR(IF(EXACT(Анкета!$C$56,O44),1,0),0)","v":0},{"$f":"IF(ISNUMBER(SEARCH(Анкета!$C$56,M44)),MAX($L$1:L43)+1,0)","v":43},"47 - Торговля розничная, кроме торговли автотранспортными средствами и мотоциклами",43,"47 - Торговля розничная, кроме торговли автотранспортными средствами и мотоциклами",{"$f":"IFERROR(IF(EXACT(Анкета!$C$58,T44),1,0),0)","v":0},{"$f":"IF(ISNUMBER(SEARCH(Анкета!$C$58,R44)),MAX($Q$1:Q43)+1,0)","v":43},"47 - Торговля розничная, кроме торговли автотранспортными средствами и мотоциклами",43,"47 - Торговля розничная, кроме торговли автотранспортными средствами и мотоциклами",{"$f":"IFERROR(IF(EXACT(Анкета!$C$60,Y44),1,0),0)","v":0},{"$f":"IF(ISNUMBER(SEARCH(Анкета!$C$60,W44)),MAX($V$1:V43)+1,0)","v":43},"47 - Торговля розничная, кроме торговли автотранспортными средствами и мотоциклами",43,"47 - Торговля розничная, кроме торговли автотранспортными средствами и мотоциклами"]
[{"$f":"IFERROR(IF(EXACT(Анкета!$C$52,E45),1,0),0)","v":0},{"$f":"IF(ISNUMBER(SEARCH(Анкета!$C$52,C45)),MAX(B$1:$B44)+1,0)","v":44},"49 - Деятельность сухопутного и трубопроводного транспорта",44,"49 - Деятельность сухопутного и трубопроводного транспорта",{"$f":"IFERROR(IF(EXACT(Анкета!$C$54,J45),1,0),0)","v":0},{"$f":"IF(ISNUMBER(SEARCH(Анкета!$C$54,H45)),MAX($G$1:G44)+1,0)","v":44},"49 - Деятельность сухопутного и трубопроводного транспорта",44,"49 - Деятельность сухопутного и трубопроводного транспорта",{"$f":"IFERROR(IF(EXACT(Анкета!$C$56,O45),1,0),0)","v":0},{"$f":"IF(ISNUMBER(SEARCH(Анкета!$C$56,M45)),MAX($L$1:L44)+1,0)","v":44},"49 - Деятельность сухопутного и трубопроводного транспорта",44,"49 - Деятельность сухопутного и трубопроводного транспорта",{"$f":"IFERROR(IF(EXACT(Анкета!$C$58,T45),1,0),0)","v":0},{"$f":"IF(ISNUMBER(SEARCH(Анкета!$C$58,R45)),MAX($Q$1:Q44)+1,0)","v":44},"49 - Деятельность сухопутного и трубопроводного транспорта",44,"49 - Деятельность сухопутного и трубопроводного транспорта",{"$f":"IFERROR(IF(EXACT(Анкета!$C$60,Y45),1,0),0)","v":0},{"$f":"IF(ISNUMBER(SEARCH(Анкета!$C$60,W45)),MAX($V$1:V44)+1,0)","v":44},"49 - Деятельность сухопутного и трубопроводного транспорта",44,"49 - Деятельность сухопутного и трубопроводного транспорта"]
[{"$f":"IFERROR(IF(EXACT(Анкета!$C$52,E46),1,0),0)","v":0},{"$f":"IF(ISNUMBER(SEARCH(Анкета!$C$52,C46)),MAX(B$1:$B45)+1,0)","v":45},"50 - Деятельность водного транспорта",45,"50 - Деятельность водного транспорта",{"$f":"IFERROR(IF(EXACT(Анкета!$C$54,J46),1,0),0)","v":0},{"$f":"IF(ISNUMBER(SEARCH(Анкета!$C$54,H46)),MAX($G$1:G45)+1,0)","v":45},"50 - Деятельность водного транспорта",45,"50 - Деятельность водного транспорта",{"$f":"IFERROR(IF(EXACT(Анкета!$C$56,O46),1,0),0)","v":0},{"$f":"IF(ISNUMBER(SEARCH(Анкета!$C$56,M46)),MAX($L$1:L45)+1,0)","v":45},"50 - Деятельность водного транспорта",45,"50 - Деятельность водного транспорта",{"$f":"IFERROR(IF(EXACT(Анкета!$C$58,T46),1,0),0)","v":0},{"$f":"IF(ISNUMBER(SEARCH(Анкета!$C$58,R46)),MAX($Q$1:Q45)+1,0)","v":45},"50 - Деятельность водного транспорта",45,"50 - Деятельность водного транспорта",{"$f":"IFERROR(IF(EXACT(Анкета!$C$60,Y46),1,0),0)","v":0},{"$f":"IF(ISNUMBER(SEARCH(Анкета!$C$60,W46)),MAX($V$1:V45)+1,0)","v":45},"50 - Деятельность водного транспорта",45,"50 - Деятельность водного транспорта"]
[{"$f":"IFERROR(IF(EXACT(Анкета!$C$52,E47),1,0),0)","v":0},{"$f":"IF(ISNUMBER(SEARCH(Анкета!$C$52,C47)),MAX(B$1:$B46)+1,0)","v":46},"51 - Деятельность воздушного и космического транспорта",46,"51 - Деятельность воздушного и космического транспорта",{"$f":"IFERROR(IF(EXACT(Анкета!$C$54,J47),1,0),0)","v":0},{"$f":"IF(ISNUMBER(SEARCH(Анкета!$C$54,H47)),MAX($G$1:G46)+1,0)","v":46},"51 - Деятельность воздушного и космического транспорта",46,"51 - Деятельность воздушного и космического транспорта",{"$f":"IFERROR(IF(EXACT(Анкета!$C$56,O47),1,0),0)","v":0},{"$f":"IF(ISNUMBER(SEARCH(Анкета!$C$56,M47)),MAX($L$1:L46)+1,0)","v":46},"51 - Деятельность воздушного и космического транспорта",46,"51 - Деятельность воздушного и космического транспорта",{"$f":"IFERROR(IF(EXACT(Анкета!$C$58,T47),1,0),0)","v":0},{"$f":"IF(ISNUMBER(SEARCH(Анкета!$C$58,R47)),MAX($Q$1:Q46)+1,0)","v":46},"51 - Деятельность воздушного и космического транспорта",46,"51 - Деятельность воздушного и космического транспорта",{"$f":"IFERROR(IF(EXACT(Анкета!$C$60,Y47),1,0),0)","v":0},{"$f":"IF(ISNUMBER(SEARCH(Анкета!$C$60,W47)),MAX($V$1:V46)+1,0)","v":46},"51 - Деятельность воздушного и космического транспорта",46,"51 - Деятельность воздушного и космического транспорта"]
[{"$f":"IFERROR(IF(EXACT(Анкета!$C$52,E48),1,0),0)","v":0},{"$f":"IF(ISNUMBER(SEARCH(Анкета!$C$52,C48)),MAX(B$1:$B47)+1,0)","v":47},"52 - Складское хозяйство и вспомогательная транспортная деятельность",47,"52 - Складское хозяйство и вспомогательная транспортная деятельность",{"$f":"IFERROR(IF(EXACT(Анкета!$C$54,J48),1,0),0)","v":0},{"$f":"IF(ISNUMBER(SEARCH(Анкета!$C$54,H48)),MAX($G$1:G47)+1,0)","v":47},"52 - Складское хозяйство и вспомогательная транспортная деятельность",47,"52 - Складское хозяйство и вспомогательная транспортная деятельность",{"$f":"IFERROR(IF(EXACT(Анкета!$C$56,O48),1,0),0)","v":0},{"$f":"IF(ISNUMBER(SEARCH(Анкета!$C$56,M48)),MAX($L$1:L47)+1,0)","v":47},"52 - Складское хозяйство и вспомогательная транспортная деятельность",47,"52 - Складское хозяйство и вспомогательная транспортная деятельность",{"$f":"IFERROR(IF(EXACT(Анкета!$C$58,T48),1,0),0)","v":0},{"$f":"IF(ISNUMBER(SEARCH(Анкета!$C$58,R48)),MAX($Q$1:Q47)+1,0)","v":47},"52 - Складское хозяйство и вспомогательная транспортная деятельность",47,"52 - Складское хозяйство и вспомогательная транспортная деятельность",{"$f":"IFERROR(IF(EXACT(Анкета!$C$60,Y48),1,0),0)","v":0},{"$f":"IF(ISNUMBER(SEARCH(Анкета!$C$60,W48)),MAX($V$1:V47)+1,0)","v":47},"52 - Складское хозяйство и вспомогательная транспортная деятельность",47,"52 - Складское хозяйство и вспомогательная транспортная деятельность"]
[{"$f":"IFERROR(IF(EXACT(Анкета!$C$52,E49),1,0),0)","v":0},{"$f":"IF(ISNUMBER(SEARCH(Анкета!$C$52,C49)),MAX(B$1:$B48)+1,0)","v":48},"53 - Деятельность почтовой связи и курьерская деятельность",48,"53 - Деятельность почтовой связи и курьерская деятельность",{"$f":"IFERROR(IF(EXACT(Анкета!$C$54,J49),1,0),0)","v":0},{"$f":"IF(ISNUMBER(SEARCH(Анкета!$C$54,H49)),MAX($G$1:G48)+1,0)","v":48},"53 - Деятельность почтовой связи и курьерская деятельность",48,"53 - Деятельность почтовой связи и курьерская деятельность",{"$f":"IFERROR(IF(EXACT(Анкета!$C$56,O49),1,0),0)","v":0},{"$f":"IF(ISNUMBER(SEARCH(Анкета!$C$56,M49)),MAX($L$1:L48)+1,0)","v":48},"53 - Деятельность почтовой связи и курьерская деятельность",48,"53 - Деятельность почтовой связи и курьерская деятельность",{"$f":"IFERROR(IF(EXACT(Анкета!$C$58,T49),1,0),0)","v":0},{"$f":"IF(ISNUMBER(SEARCH(Анкета!$C$58,R49)),MAX($Q$1:Q48)+1,0)","v":48},"53 - Деятельность почтовой связи и курьерская деятельность",48,"53 - Деятельность почтовой связи и курьерская деятельность",{"$f":"IFERROR(IF(EXACT(Анкета!$C$60,Y49),1,0),0)","v":0},{"$f":"IF(ISNUMBER(SEARCH(Анкета!$C$60,W49)),MAX($V$1:V48)+1,0)","v":48},"53 - Деятельность почтовой связи и курьерская деятельность",48,"53 - Деятельность почтовой связи и курьерская деятельность"]
[{"$f":"IFERROR(IF(EXACT(Анкета!$C$52,E50),1,0),0)","v":0},{"$f":"IF(ISNUMBER(SEARCH(Анкета!$C$52,C50)),MAX(B$1:$B49)+1,0)","v":49},"55 - Деятельность по предоставлению мест для временного проживания",49,"55 - Деятельность по предоставлению мест для временного проживания",{"$f":"IFERROR(IF(EXACT(Анкета!$C$54,J50),1,0),0)","v":0},{"$f":"IF(ISNUMBER(SEARCH(Анкета!$C$54,H50)),MAX($G$1:G49)+1,0)","v":49},"55 - Деятельность по предоставлению мест для временного проживания",49,"55 - Деятельность по предоставлению мест для временного проживания",{"$f":"IFERROR(IF(EXACT(Анкета!$C$56,O50),1,0),0)","v":0},{"$f":"IF(ISNUMBER(SEARCH(Анкета!$C$56,M50)),MAX($L$1:L49)+1,0)","v":49},"55 - Деятельность по предоставлению мест для временного проживания",49,"55 - Деятельность по предоставлению мест для временного проживания",{"$f":"IFERROR(IF(EXACT(Анкета!$C$58,T50),1,0),0)","v":0},{"$f":"IF(ISNUMBER(SEARCH(Анкета!$C$58,R50)),MAX($Q$1:Q49)+1,0)","v":49},"55 - Деятельность по предоставлению мест для временного проживания",49,"55 - Деятельность по предоставлению мест для временного проживания",{"$f":"IFERROR(IF(EXACT(Анкета!$C$60,Y50),1,0),0)","v":0},{"$f":"IF(ISNUMBER(SEARCH(Анкета!$C$60,W50)),MAX($V$1:V49)+1,0)","v":49},"55 - Деятельность по предоставлению мест для временного проживания",49,"55 - Деятельность по предоставлению мест для временного проживания"]
[{"$f":"IFERROR(IF(EXACT(Анкета!$C$52,E51),1,0),0)","v":0},{"$f":"IF(ISNUMBER(SEARCH(Анкета!$C$52,C51)),MAX(B$1:$B50)+1,0)","v":50},"56 - Деятельность по предоставлению продуктов питания и напитков",50,"56 - Деятельность по предоставлению продуктов питания и напитков",{"$f":"IFERROR(IF(EXACT(Анкета!$C$54,J51),1,0),0)","v":0},{"$f":"IF(ISNUMBER(SEARCH(Анкета!$C$54,H51)),MAX($G$1:G50)+1,0)","v":50},"56 - Деятельность по предоставлению продуктов питания и напитков",50,"56 - Деятельность по предоставлению продуктов питания и напитков",{"$f":"IFERROR(IF(EXACT(Анкета!$C$56,O51),1,0),0)","v":0},{"$f":"IF(ISNUMBER(SEARCH(Анкета!$C$56,M51)),MAX($L$1:L50)+1,0)","v":50},"56 - Деятельность по предоставлению продуктов питания и напитков",50,"56 - Деятельность по предоставлению продуктов питания и напитков",{"$f":"IFERROR(IF(EXACT(Анкета!$C$58,T51),1,0),0)","v":0},{"$f":"IF(ISNUMBER(SEARCH(Анкета!$C$58,R51)),MAX($Q$1:Q50)+1,0)","v":50},"56 - Деятельность по предоставлению продуктов питания и напитков",50,"56 - Деятельность по предоставлению продуктов питания и напитков",{"$f":"IFERROR(IF(EXACT(Анкета!$C$60,Y51),1,0),0)","v":0},{"$f":"IF(ISNUMBER(SEARCH(Анкета!$C$60,W51)),MAX($V$1:V50)+1,0)","v":50},"56 - Деятельность по предоставлению продуктов питания и напитков",50,"56 - Деятельность по предоставлению продуктов питания и напитков"]
[{"$f":"IFERROR(IF(EXACT(Анкета!$C$52,E52),1,0),0)","v":0},{"$f":"IF(ISNUMBER(SEARCH(Анкета!$C$52,C52)),MAX(B$1:$B51)+1,0)","v":51},"58 - Деятельность издательская",51,"58 - Деятельность издательская",{"$f":"IFERROR(IF(EXACT(Анкета!$C$54,J52),1,0),0)","v":0},{"$f":"IF(ISNUMBER(SEARCH(Анкета!$C$54,H52)),MAX($G$1:G51)+1,0)","v":51},"58 - Деятельность издательская",51,"58 - Деятельность издательская",{"$f":"IFERROR(IF(EXACT(Анкета!$C$56,O52),1,0),0)","v":0},{"$f":"IF(ISNUMBER(SEARCH(Анкета!$C$56,M52)),MAX($L$1:L51)+1,0)","v":51},"58 - Деятельность издательская",51,"58 - Деятельность издательская",{"$f":"IFERROR(IF(EXACT(Анкета!$C$58,T52),1,0),0)","v":0},{"$f":"IF(ISNUMBER(SEARCH(Анкета!$C$58,R52)),MAX($Q$1:Q51)+1,0)","v":51},"58 - Деятельность издательская",51,"58 - Деятельность издательская",{"$f":"IFERROR(IF(EXACT(Анкета!$C$60,Y52),1,0),0)","v":0},{"$f":"IF(ISNUMBER(SEARCH(Анкета!$C$60,W52)),MAX($V$1:V51)+1,0)","v":51},"58 - Деятельность издательская",51,"58 - Деятельность издательская"]
[{"$f":"IFERROR(IF(EXACT(Анкета!$C$52,E53),1,0),0)","v":0},{"$f":"IF(ISNUMBER(SEARCH(Анкета!$C$52,C53)),MAX(B$1:$B52)+1,0)","v":52},"59 - Производство кинофильмов, видеофильмов и телевизионных программ, издание звукозаписей и нот",52,"59 - Производство кинофильмов, видеофильмов и телевизионных программ, издание звукозаписей и нот",{"$f":"IFERROR(IF(EXACT(Анкета!$C$54,J53),1,0),0)","v":0},{"$f":"IF(ISNUMBER(SEARCH(Анкета!$C$54,H53)),MAX($G$1:G52)+1,0)","v":52},"59 - Производство кинофильмов, видеофильмов и телевизионных программ, издание звукозаписей и нот",52,"59 - Производство кинофильмов, видеофильмов и телевизионных программ, издание звукозаписей и нот",{"$f":"IFERROR(IF(EXACT(Анкета!$C$56,O53),1,0),0)","v":0},{"$f":"IF(ISNUMBER(SEARCH(Анкета!$C$56,M53)),MAX($L$1:L52)+1,0)","v":52},"59 - Производство кинофильмов, видеофильмов и телевизионных программ, издание звукозаписей и нот",52,"59 - Производство кинофильмов, видеофильмов и телевизионных программ, издание звукозаписей и нот",{"$f":"IFERROR(IF(EXACT(Анкета!$C$58,T53),1,0),0)","v":0},{"$f":"IF(ISNUMBER(SEARCH(Анкета!$C$58,R53)),MAX($Q$1:Q52)+1,0)","v":52},"59 - Производство кинофильмов, видеофильмов и телевизионных программ, издание звукозаписей и нот",52,"59 - Производство кинофильмов, видеофильмов и телевизионных программ, издание звукозаписей и нот",{"$f":"IFERROR(IF(EXACT(Анкета!$C$60,Y53),1,0),0)","v":0},{"$f":"IF(ISNUMBER(SEARCH(Анкета!$C$60,W53)),MAX($V$1:V52)+1,0)","v":52},"59 - Производство кинофильмов, видеофильмов и телевизионных программ, издание звукозаписей и нот",52,"59 - Производство кинофильмов, видеофильмов и телевизионных программ, издание звукозаписей и нот"]
[{"$f":"IFERROR(IF(EXACT(Анкета!$C$52,E54),1,0),0)","v":0},{"$f":"IF(ISNUMBER(SEARCH(Анкета!$C$52,C54)),MAX(B$1:$B53)+1,0)","v":53},"60 - Деятельность в области телевизионного и радиовещания",53,"60 - Деятельность в области телевизионного и радиовещания",{"$f":"IFERROR(IF(EXACT(Анкета!$C$54,J54),1,0),0)","v":0},{"$f":"IF(ISNUMBER(SEARCH(Анкета!$C$54,H54)),MAX($G$1:G53)+1,0)","v":53},"60 - Деятельность в области телевизионного и радиовещания",53,"60 - Деятельность в области телевизионного и радиовещания",{"$f":"IFERROR(IF(EXACT(Анкета!$C$56,O54),1,0),0)","v":0},{"$f":"IF(ISNUMBER(SEARCH(Анкета!$C$56,M54)),MAX($L$1:L53)+1,0)","v":53},"60 - Деятельность в области телевизионного и радиовещания",53,"60 - Деятельность в области телевизионного и радиовещания",{"$f":"IFERROR(IF(EXACT(Анкета!$C$58,T54),1,0),0)","v":0},{"$f":"IF(ISNUMBER(SEARCH(Анкета!$C$58,R54)),MAX($Q$1:Q53)+1,0)","v":53},"60 - Деятельность в области телевизионного и радиовещания",53,"60 - Деятельность в области телевизионного и радиовещания",{"$f":"IFERROR(IF(EXACT(Анкета!$C$60,Y54),1,0),0)","v":0},{"$f":"IF(ISNUMBER(SEARCH(Анкета!$C$60,W54)),MAX($V$1:V53)+1,0)","v":53},"60 - Деятельность в области телевизионного и радиовещания",53,"60 - Деятельность в области телевизионного и радиовещания"]
[{"$f":"IFERROR(IF(EXACT(Анкета!$C$52,E55),1,0),0)","v":0},{"$f":"IF(ISNUMBER(SEARCH(Анкета!$C$52,C55)),MAX(B$1:$B54)+1,0)","v":54},"61 - Деятельность в сфере телекоммуникаций",54,"61 - Деятельность в сфере телекоммуникаций",{"$f":"IFERROR(IF(EXACT(Анкета!$C$54,J55),1,0),0)","v":0},{"$f":"IF(ISNUMBER(SEARCH(Анкета!$C$54,H55)),MAX($G$1:G54)+1,0)","v":54},"61 - Деятельность в сфере телекоммуникаций",54,"61 - Деятельность в сфере телекоммуникаций",{"$f":"IFERROR(IF(EXACT(Анкета!$C$56,O55),1,0),0)","v":0},{"$f":"IF(ISNUMBER(SEARCH(Анкета!$C$56,M55)),MAX($L$1:L54)+1,0)","v":54},"61 - Деятельность в сфере телекоммуникаций",54,"61 - Деятельность в сфере телекоммуникаций",{"$f":"IFERROR(IF(EXACT(Анкета!$C$58,T55),1,0),0)","v":0},{"$f":"IF(ISNUMBER(SEARCH(Анкета!$C$58,R55)),MAX($Q$1:Q54)+1,0)","v":54},"61 - Деятельность в сфере телекоммуникаций",54,"61 - Деятельность в сфере телекоммуникаций",{"$f":"IFERROR(IF(EXACT(Анкета!$C$60,Y55),1,0),0)","v":0},{"$f":"IF(ISNUMBER(SEARCH(Анкета!$C$60,W55)),MAX($V$1:V54)+1,0)","v":54},"61 - Деятельность в сфере телекоммуникаций",54,"61 - Деятельность в сфере телекоммуникаций"]
[{"$f":"IFERROR(IF(EXACT(Анкета!$C$52,E56),1,0),0)","v":0},{"$f":"IF(ISNUMBER(SEARCH(Анкета!$C$52,C56)),MAX(B$1:$B55)+1,0)","v":55},"62 - Разработка компьютерного программного обеспечения, консультационные услуги в данной области и другие сопутствующие услуги",55,"62 - Разработка компьютерного программного обеспечения, консультационные услуги в данной области и другие сопутствующие услуги",{"$f":"IFERROR(IF(EXACT(Анкета!$C$54,J56),1,0),0)","v":0},{"$f":"IF(ISNUMBER(SEARCH(Анкета!$C$54,H56)),MAX($G$1:G55)+1,0)","v":55},"62 - Разработка компьютерного программного обеспечения, консультационные услуги в данной области и другие сопутствующие услуги",55,"62 - Разработка компьютерного программного обеспечения, консультационные услуги в данной области и другие сопутствующие услуги",{"$f":"IFERROR(IF(EXACT(Анкета!$C$56,O56),1,0),0)","v":0},{"$f":"IF(ISNUMBER(SEARCH(Анкета!$C$56,M56)),MAX($L$1:L55)+1,0)","v":55},"62 - Разработка компьютерного программного обеспечения, консультационные услуги в данной области и другие сопутствующие услуги",55,"62 - Разработка компьютерного программного обеспечения, консультационные услуги в данной области и другие сопутствующие услуги",{"$f":"IFERROR(IF(EXACT(Анкета!$C$58,T56),1,0),0)","v":0},{"$f":"IF(ISNUMBER(SEARCH(Анкета!$C$58,R56)),MAX($Q$1:Q55)+1,0)","v":55},"62 - Разработка компьютерного программного обеспечения, консультационные услуги в данной области и другие сопутствующие услуги",55,"62 - Разработка компьютерного программного обеспечения, консультационные услуги в данной области и другие сопутствующие услуги",{"$f":"IFERROR(IF(EXACT(Анкета!$C$60,Y56),1,0),0)","v":0},{"$f":"IF(ISNUMBER(SEARCH(Анкета!$C$60,W56)),MAX($V$1:V55)+1,0)","v":55},"62 - Разработка компьютерного программного обеспечения, консультационные услуги в данной области и другие сопутствующие услуги",55,"62 - Разработка компьютерного программного обеспечения, консультационные услуги в данной области и другие сопутствующие услуги"]
[{"$f":"IFERROR(IF(EXACT(Анкета!$C$52,E57),1,0),0)","v":0},{"$f":"IF(ISNUMBER(SEARCH(Анкета!$C$52,C57)),MAX(B$1:$B56)+1,0)","v":56},"63 - Деятельность в области информационных технологий",56,"63 - Деятельность в области информационных технологий",{"$f":"IFERROR(IF(EXACT(Анкета!$C$54,J57),1,0),0)","v":0},{"$f":"IF(ISNUMBER(SEARCH(Анкета!$C$54,H57)),MAX($G$1:G56)+1,0)","v":56},"63 - Деятельность в области информационных технологий",56,"63 - Деятельность в области информационных технологий",{"$f":"IFERROR(IF(EXACT(Анкета!$C$56,O57),1,0),0)","v":0},{"$f":"IF(ISNUMBER(SEARCH(Анкета!$C$56,M57)),MAX($L$1:L56)+1,0)","v":56},"63 - Деятельность в области информационных технологий",56,"63 - Деятельность в области информационных технологий",{"$f":"IFERROR(IF(EXACT(Анкета!$C$58,T57),1,0),0)","v":0},{"$f":"IF(ISNUMBER(SEARCH(Анкета!$C$58,R57)),MAX($Q$1:Q56)+1,0)","v":56},"63 - Деятельность в области информационных технологий",56,"63 - Деятельность в области информационных технологий",{"$f":"IFERROR(IF(EXACT(Анкета!$C$60,Y57),1,0),0)","v":0},{"$f":"IF(ISNUMBER(SEARCH(Анкета!$C$60,W57)),MAX($V$1:V56)+1,0)","v":56},"63 - Деятельность в области информационных технологий",56,"63 - Деятельность в области информационных технологий"]
[{"$f":"IFERROR(IF(EXACT(Анкета!$C$52,E58),1,0),0)","v":0},{"$f":"IF(ISNUMBER(SEARCH(Анкета!$C$52,C58)),MAX(B$1:$B57)+1,0)","v":57},"64 - Деятельность по предоставлению финансовых услуг, кроме услуг по страхованию и пенсионному обеспечению",57,"64 - Деятельность по предоставлению финансовых услуг, кроме услуг по страхованию и пенсионному обеспечению",{"$f":"IFERROR(IF(EXACT(Анкета!$C$54,J58),1,0),0)","v":0},{"$f":"IF(ISNUMBER(SEARCH(Анкета!$C$54,H58)),MAX($G$1:G57)+1,0)","v":57},"64 - Деятельность по предоставлению финансовых услуг, кроме услуг по страхованию и пенсионному обеспечению",57,"64 - Деятельность по предоставлению финансовых услуг, кроме услуг по страхованию и пенсионному обеспечению",{"$f":"IFERROR(IF(EXACT(Анкета!$C$56,O58),1,0),0)","v":0},{"$f":"IF(ISNUMBER(SEARCH(Анкета!$C$56,M58)),MAX($L$1:L57)+1,0)","v":57},"64 - Деятельность по предоставлению финансовых услуг, кроме услуг по страхованию и пенсионному обеспечению",57,"64 - Деятельность по предоставлению финансовых услуг, кроме услуг по страхованию и пенсионному обеспечению",{"$f":"IFERROR(IF(EXACT(Анкета!$C$58,T58),1,0),0)","v":0},{"$f":"IF(ISNUMBER(SEARCH(Анкета!$C$58,R58)),MAX($Q$1:Q57)+1,0)","v":57},"64 - Деятельность по предоставлению финансовых услуг, кроме услуг по страхованию и пенсионному обеспечению",57,"64 - Деятельность по предоставлению финансовых услуг, кроме услуг по страхованию и пенсионному обеспечению",{"$f":"IFERROR(IF(EXACT(Анкета!$C$60,Y58),1,0),0)","v":0},{"$f":"IF(ISNUMBER(SEARCH(Анкета!$C$60,W58)),MAX($V$1:V57)+1,0)","v":57},"64 - Деятельность по предоставлению финансовых услуг, кроме услуг по страхованию и пенсионному обеспечению",57,"64 - Деятельность по предоставлению финансовых услуг, кроме услуг по страхованию и пенсионному обеспечению"]
[{"$f":"IFERROR(IF(EXACT(Анкета!$C$52,E59),1,0),0)","v":0},{"$f":"IF(ISNUMBER(SEARCH(Анкета!$C$52,C59)),MAX(B$1:$B58)+1,0)","v":58},"65 - Страхование, перестрахование, деятельность негосударственных пенсионных фондов, кроме обязательного социального обеспечения",58,"65 - Страхование, перестрахование, деятельность негосударственных пенсионных фондов, кроме обязательного социального обеспечения",{"$f":"IFERROR(IF(EXACT(Анкета!$C$54,J59),1,0),0)","v":0},{"$f":"IF(ISNUMBER(SEARCH(Анкета!$C$54,H59)),MAX($G$1:G58)+1,0)","v":58},"65 - Страхование, перестрахование, деятельность негосударственных пенсионных фондов, кроме обязательного социального обеспечения",58,"65 - Страхование, перестрахование, деятельность негосударственных пенсионных фондов, кроме обязательного социального обеспечения",{"$f":"IFERROR(IF(EXACT(Анкета!$C$56,O59),1,0),0)","v":0},{"$f":"IF(ISNUMBER(SEARCH(Анкета!$C$56,M59)),MAX($L$1:L58)+1,0)","v":58},"65 - Страхование, перестрахование, деятельность негосударственных пенсионных фондов, кроме обязательного социального обеспечения",58,"65 - Страхование, перестрахование, деятельность негосударственных пенсионных фондов, кроме обязательного социального обеспечения",{"$f":"IFERROR(IF(EXACT(Анкета!$C$58,T59),1,0),0)","v":0},{"$f":"IF(ISNUMBER(SEARCH(Анкета!$C$58,R59)),MAX($Q$1:Q58)+1,0)","v":58},"65 - Страхование, перестрахование, деятельность негосударственных пенсионных фондов, кроме обязательного социального обеспечения",58,"65 - Страхование, перестрахование, деятельность негосударственных пенсионных фондов, кроме обязательного социального обеспечения",{"$f":"IFERROR(IF(EXACT(Анкета!$C$60,Y59),1,0),0)","v":0},{"$f":"IF(ISNUMBER(SEARCH(Анкета!$C$60,W59)),MAX($V$1:V58)+1,0)","v":58},"65 - Страхование, перестрахование, деятельность негосударственных пенсионных фондов, кроме обязательного социального обеспечения",58,"65 - Страхование, перестрахование, деятельность негосударственных пенсионных фондов, кроме обязательного социального обеспечения"]
[{"$f":"IFERROR(IF(EXACT(Анкета!$C$52,E60),1,0),0)","v":0},{"$f":"IF(ISNUMBER(SEARCH(Анкета!$C$52,C60)),MAX(B$1:$B59)+1,0)","v":59},"66 - Деятельность вспомогательная в сфере финансовых услуг и страхования",59,"66 - Деятельность вспомогательная в сфере финансовых услуг и страхования",{"$f":"IFERROR(IF(EXACT(Анкета!$C$54,J60),1,0),0)","v":0},{"$f":"IF(ISNUMBER(SEARCH(Анкета!$C$54,H60)),MAX($G$1:G59)+1,0)","v":59},"66 - Деятельность вспомогательная в сфере финансовых услуг и страхования",59,"66 - Деятельность вспомогательная в сфере финансовых услуг и страхования",{"$f":"IFERROR(IF(EXACT(Анкета!$C$56,O60),1,0),0)","v":0},{"$f":"IF(ISNUMBER(SEARCH(Анкета!$C$56,M60)),MAX($L$1:L59)+1,0)","v":59},"66 - Деятельность вспомогательная в сфере финансовых услуг и страхования",59,"66 - Деятельность вспомогательная в сфере финансовых услуг и страхования",{"$f":"IFERROR(IF(EXACT(Анкета!$C$58,T60),1,0),0)","v":0},{"$f":"IF(ISNUMBER(SEARCH(Анкета!$C$58,R60)),MAX($Q$1:Q59)+1,0)","v":59},"66 - Деятельность вспомогательная в сфере финансовых услуг и страхования",59,"66 - Деятельность вспомогательная в сфере финансовых услуг и страхования",{"$f":"IFERROR(IF(EXACT(Анкета!$C$60,Y60),1,0),0)","v":0},{"$f":"IF(ISNUMBER(SEARCH(Анкета!$C$60,W60)),MAX($V$1:V59)+1,0)","v":59},"66 - Деятельность вспомогательная в сфере финансовых услуг и страхования",59,"66 - Деятельность вспомогательная в сфере финансовых услуг и страхования"]
[{"$f":"IFERROR(IF(EXACT(Анкета!$C$52,E61),1,0),0)","v":0},{"$f":"IF(ISNUMBER(SEARCH(Анкета!$C$52,C61)),MAX(B$1:$B60)+1,0)","v":60},"68 - Операции с недвижимым имуществом",60,"68 - Операции с недвижимым имуществом",{"$f":"IFERROR(IF(EXACT(Анкета!$C$54,J61),1,0),0)","v":0},{"$f":"IF(ISNUMBER(SEARCH(Анкета!$C$54,H61)),MAX($G$1:G60)+1,0)","v":60},"68 - Операции с недвижимым имуществом",60,"68 - Операции с недвижимым имуществом",{"$f":"IFERROR(IF(EXACT(Анкета!$C$56,O61),1,0),0)","v":0},{"$f":"IF(ISNUMBER(SEARCH(Анкета!$C$56,M61)),MAX($L$1:L60)+1,0)","v":60},"68 - Операции с недвижимым имуществом",60,"68 - Операции с недвижимым имуществом",{"$f":"IFERROR(IF(EXACT(Анкета!$C$58,T61),1,0),0)","v":0},{"$f":"IF(ISNUMBER(SEARCH(Анкета!$C$58,R61)),MAX($Q$1:Q60)+1,0)","v":60},"68 - Операции с недвижимым имуществом",60,"68 - Операции с недвижимым имуществом",{"$f":"IFERROR(IF(EXACT(Анкета!$C$60,Y61),1,0),0)","v":0},{"$f":"IF(ISNUMBER(SEARCH(Анкета!$C$60,W61)),MAX($V$1:V60)+1,0)","v":60},"68 - Операции с недвижимым имуществом",60,"68 - Операции с недвижимым имуществом"]
[{"$f":"IFERROR(IF(EXACT(Анкета!$C$52,E62),1,0),0)","v":0},{"$f":"IF(ISNUMBER(SEARCH(Анкета!$C$52,C62)),MAX(B$1:$B61)+1,0)","v":61},"69 - Деятельность в области права и бухгалтерского учета",61,"69 - Деятельность в области права и бухгалтерского учета",{"$f":"IFERROR(IF(EXACT(Анкета!$C$54,J62),1,0),0)","v":0},{"$f":"IF(ISNUMBER(SEARCH(Анкета!$C$54,H62)),MAX($G$1:G61)+1,0)","v":61},"69 - Деятельность в области права и бухгалтерского учета",61,"69 - Деятельность в области права и бухгалтерского учета",{"$f":"IFERROR(IF(EXACT(Анкета!$C$56,O62),1,0),0)","v":0},{"$f":"IF(ISNUMBER(SEARCH(Анкета!$C$56,M62)),MAX($L$1:L61)+1,0)","v":61},"69 - Деятельность в области права и бухгалтерского учета",61,"69 - Деятельность в области права и бухгалтерского учета",{"$f":"IFERROR(IF(EXACT(Анкета!$C$58,T62),1,0),0)","v":0},{"$f":"IF(ISNUMBER(SEARCH(Анкета!$C$58,R62)),MAX($Q$1:Q61)+1,0)","v":61},"69 - Деятельность в области права и бухгалтерского учета",61,"69 - Деятельность в области права и бухгалтерского учета",{"$f":"IFERROR(IF(EXACT(Анкета!$C$60,Y62),1,0),0)","v":0},{"$f":"IF(ISNUMBER(SEARCH(Анкета!$C$60,W62)),MAX($V$1:V61)+1,0)","v":61},"69 - Деятельность в области права и бухгалтерского учета",61,"69 - Деятельность в области права и бухгалтерского учета"]
[{"$f":"IFERROR(IF(EXACT(Анкета!$C$52,E63),1,0),0)","v":0},{"$f":"IF(ISNUMBER(SEARCH(Анкета!$C$52,C63)),MAX(B$1:$B62)+1,0)","v":62},"70 - Деятельность головных офисов; консультирование по вопросам управления",62,"70 - Деятельность головных офисов; консультирование по вопросам управления",{"$f":"IFERROR(IF(EXACT(Анкета!$C$54,J63),1,0),0)","v":0},{"$f":"IF(ISNUMBER(SEARCH(Анкета!$C$54,H63)),MAX($G$1:G62)+1,0)","v":62},"70 - Деятельность головных офисов; консультирование по вопросам управления",62,"70 - Деятельность головных офисов; консультирование по вопросам управления",{"$f":"IFERROR(IF(EXACT(Анкета!$C$56,O63),1,0),0)","v":0},{"$f":"IF(ISNUMBER(SEARCH(Анкета!$C$56,M63)),MAX($L$1:L62)+1,0)","v":62},"70 - Деятельность головных офисов; консультирование по вопросам управления",62,"70 - Деятельность головных офисов; консультирование по вопросам управления",{"$f":"IFERROR(IF(EXACT(Анкета!$C$58,T63),1,0),0)","v":0},{"$f":"IF(ISNUMBER(SEARCH(Анкета!$C$58,R63)),MAX($Q$1:Q62)+1,0)","v":62},"70 - Деятельность головных офисов; консультирование по вопросам управления",62,"70 - Деятельность головных офисов; консультирование по вопросам управления",{"$f":"IFERROR(IF(EXACT(Анкета!$C$60,Y63),1,0),0)","v":0},{"$f":"IF(ISNUMBER(SEARCH(Анкета!$C$60,W63)),MAX($V$1:V62)+1,0)","v":62},"70 - Деятельность головных офисов; консультирование по вопросам управления",62,"70 - Деятельность головных офисов; консультирование по вопросам управления"]
[{"$f":"IFERROR(IF(EXACT(Анкета!$C$52,E64),1,0),0)","v":0},{"$f":"IF(ISNUMBER(SEARCH(Анкета!$C$52,C64)),MAX(B$1:$B63)+1,0)","v":63},"71 - Деятельность в области архитектуры и инженерно-технического проектирования; технических испытаний, исследований и анализа",63,"71 - Деятельность в области архитектуры и инженерно-технического проектирования; технических испытаний, исследований и анализа",{"$f":"IFERROR(IF(EXACT(Анкета!$C$54,J64),1,0),0)","v":0},{"$f":"IF(ISNUMBER(SEARCH(Анкета!$C$54,H64)),MAX($G$1:G63)+1,0)","v":63},"71 - Деятельность в области архитектуры и инженерно-технического проектирования; технических испытаний, исследований и анализа",63,"71 - Деятельность в области архитектуры и инженерно-технического проектирования; технических испытаний, исследований и анализа",{"$f":"IFERROR(IF(EXACT(Анкета!$C$56,O64),1,0),0)","v":0},{"$f":"IF(ISNUMBER(SEARCH(Анкета!$C$56,M64)),MAX($L$1:L63)+1,0)","v":63},"71 - Деятельность в области архитектуры и инженерно-технического проектирования; технических испытаний, исследований и анализа",63,"71 - Деятельность в области архитектуры и инженерно-технического проектирования; технических испытаний, исследований и анализа",{"$f":"IFERROR(IF(EXACT(Анкета!$C$58,T64),1,0),0)","v":0},{"$f":"IF(ISNUMBER(SEARCH(Анкета!$C$58,R64)),MAX($Q$1:Q63)+1,0)","v":63},"71 - Деятельность в области архитектуры и инженерно-технического проектирования; технических испытаний, исследований и анализа",63,"71 - Деятельность в области архитектуры и инженерно-технического проектирования; технических испытаний, исследований и анализа",{"$f":"IFERROR(IF(EXACT(Анкета!$C$60,Y64),1,0),0)","v":0},{"$f":"IF(ISNUMBER(SEARCH(Анкета!$C$60,W64)),MAX($V$1:V63)+1,0)","v":63},"71 - Деятельность в области архитектуры и инженерно-технического проектирования; технических испытаний, исследований и анализа",63,"71 - Деятельность в области архитектуры и инженерно-технического проектирования; технических испытаний, исследований и анализа"]
[{"$f":"IFERROR(IF(EXACT(Анкета!$C$52,E65),1,0),0)","v":0},{"$f":"IF(ISNUMBER(SEARCH(Анкета!$C$52,C65)),MAX(B$1:$B64)+1,0)","v":64},"72 - Научные исследования и разработки",64,"72 - Научные исследования и разработки",{"$f":"IFERROR(IF(EXACT(Анкета!$C$54,J65),1,0),0)","v":0},{"$f":"IF(ISNUMBER(SEARCH(Анкета!$C$54,H65)),MAX($G$1:G64)+1,0)","v":64},"72 - Научные исследования и разработки",64,"72 - Научные исследования и разработки",{"$f":"IFERROR(IF(EXACT(Анкета!$C$56,O65),1,0),0)","v":0},{"$f":"IF(ISNUMBER(SEARCH(Анкета!$C$56,M65)),MAX($L$1:L64)+1,0)","v":64},"72 - Научные исследования и разработки",64,"72 - Научные исследования и разработки",{"$f":"IFERROR(IF(EXACT(Анкета!$C$58,T65),1,0),0)","v":0},{"$f":"IF(ISNUMBER(SEARCH(Анкета!$C$58,R65)),MAX($Q$1:Q64)+1,0)","v":64},"72 - Научные исследования и разработки",64,"72 - Научные исследования и разработки",{"$f":"IFERROR(IF(EXACT(Анкета!$C$60,Y65),1,0),0)","v":0},{"$f":"IF(ISNUMBER(SEARCH(Анкета!$C$60,W65)),MAX($V$1:V64)+1,0)","v":64},"72 - Научные исследования и разработки",64,"72 - Научные исследования и разработки"]
[{"$f":"IFERROR(IF(EXACT(Анкета!$C$52,E66),1,0),0)","v":0},{"$f":"IF(ISNUMBER(SEARCH(Анкета!$C$52,C66)),MAX(B$1:$B65)+1,0)","v":65},"73 - Деятельность рекламная и исследование конъюнктуры рынка",65,{"$f":"VLOOKUP(D66,B:C,2,0)","v":"73 - Деятельность рекламная и исследование конъюнктуры рынка"},{"$f":"IFERROR(IF(EXACT(Анкета!$C$54,J66),1,0),0)","v":0},{"$f":"IF(ISNUMBER(SEARCH(Анкета!$C$54,H66)),MAX($G$1:G65)+1,0)","v":65},"73 - Деятельность рекламная и исследование конъюнктуры рынка",65,{"$f":"VLOOKUP(I66,G:H,2,0)","v":"73 - Деятельность рекламная и исследование конъюнктуры рынка"},{"$f":"IFERROR(IF(EXACT(Анкета!$C$56,O66),1,0),0)","v":0},{"$f":"IF(ISNUMBER(SEARCH(Анкета!$C$56,M66)),MAX($L$1:L65)+1,0)","v":65},"73 - Деятельность рекламная и исследование конъюнктуры рынка",65,{"$f":"VLOOKUP(N66,L:M,2,0)","v":"73 - Деятельность рекламная и исследование конъюнктуры рынка"},{"$f":"IFERROR(IF(EXACT(Анкета!$C$58,T66),1,0),0)","v":0},{"$f":"IF(ISNUMBER(SEARCH(Анкета!$C$58,R66)),MAX($Q$1:Q65)+1,0)","v":65},"73 - Деятельность рекламная и исследование конъюнктуры рынка",65,{"$f":"VLOOKUP(S66,Q:R,2,0)","v":"73 - Деятельность рекламная и исследование конъюнктуры рынка"},{"$f":"IFERROR(IF(EXACT(Анкета!$C$60,Y66),1,0),0)","v":0},{"$f":"IF(ISNUMBER(SEARCH(Анкета!$C$60,W66)),MAX($V$1:V65)+1,0)","v":65},"73 - Деятельность рекламная и исследование конъюнктуры рынка",65,{"$f":"VLOOKUP(X66,V:W,2,0)","v":"73 - Деятельность рекламная и исследование конъюнктуры рынка"}]
[{"$f":"IFERROR(IF(EXACT(Анкета!$C$52,E67),1,0),0)","v":0},{"$f":"IF(ISNUMBER(SEARCH(Анкета!$C$52,C67)),MAX(B$1:$B66)+1,0)","v":66},"74 - Деятельность профессиональная научная и техническая прочая",66,"74 - Деятельность профессиональная научная и техническая прочая",{"$f":"IFERROR(IF(EXACT(Анкета!$C$54,J67),1,0),0)","v":0},{"$f":"IF(ISNUMBER(SEARCH(Анкета!$C$54,H67)),MAX($G$1:G66)+1,0)","v":66},"74 - Деятельность профессиональная научная и техническая прочая",66,"74 - Деятельность профессиональная научная и техническая прочая",{"$f":"IFERROR(IF(EXACT(Анкета!$C$56,O67),1,0),0)","v":0},{"$f":"IF(ISNUMBER(SEARCH(Анкета!$C$56,M67)),MAX($L$1:L66)+1,0)","v":66},"74 - Деятельность профессиональная научная и техническая прочая",66,"74 - Деятельность профессиональная научная и техническая прочая",{"$f":"IFERROR(IF(EXACT(Анкета!$C$58,T67),1,0),0)","v":0},{"$f":"IF(ISNUMBER(SEARCH(Анкета!$C$58,R67)),MAX($Q$1:Q66)+1,0)","v":66},"74 - Деятельность профессиональная научная и техническая прочая",66,"74 - Деятельность профессиональная научная и техническая прочая",{"$f":"IFERROR(IF(EXACT(Анкета!$C$60,Y67),1,0),0)","v":0},{"$f":"IF(ISNUMBER(SEARCH(Анкета!$C$60,W67)),MAX($V$1:V66)+1,0)","v":66},"74 - Деятельность профессиональная научная и техническая прочая",66,"74 - Деятельность профессиональная научная и техническая прочая"]
[{"$f":"IFERROR(IF(EXACT(Анкета!$C$52,E68),1,0),0)","v":0},{"$f":"IF(ISNUMBER(SEARCH(Анкета!$C$52,C68)),MAX(B$1:$B67)+1,0)","v":67},"75 - Деятельность ветеринарная",67,"75 - Деятельность ветеринарная",{"$f":"IFERROR(IF(EXACT(Анкета!$C$54,J68),1,0),0)","v":0},{"$f":"IF(ISNUMBER(SEARCH(Анкета!$C$54,H68)),MAX($G$1:G67)+1,0)","v":67},"75 - Деятельность ветеринарная",67,"75 - Деятельность ветеринарная",{"$f":"IFERROR(IF(EXACT(Анкета!$C$56,O68),1,0),0)","v":0},{"$f":"IF(ISNUMBER(SEARCH(Анкета!$C$56,M68)),MAX($L$1:L67)+1,0)","v":67},"75 - Деятельность ветеринарная",67,"75 - Деятельность ветеринарная",{"$f":"IFERROR(IF(EXACT(Анкета!$C$58,T68),1,0),0)","v":0},{"$f":"IF(ISNUMBER(SEARCH(Анкета!$C$58,R68)),MAX($Q$1:Q67)+1,0)","v":67},"75 - Деятельность ветеринарная",67,"75 - Деятельность ветеринарная",{"$f":"IFERROR(IF(EXACT(Анкета!$C$60,Y68),1,0),0)","v":0},{"$f":"IF(ISNUMBER(SEARCH(Анкета!$C$60,W68)),MAX($V$1:V67)+1,0)","v":67},"75 - Деятельность ветеринарная",67,"75 - Деятельность ветеринарная"]
[{"$f":"IFERROR(IF(EXACT(Анкета!$C$52,E69),1,0),0)","v":0},{"$f":"IF(ISNUMBER(SEARCH(Анкета!$C$52,C69)),MAX(B$1:$B68)+1,0)","v":68},"77 - Аренда и лизинг",68,"77 - Аренда и лизинг",{"$f":"IFERROR(IF(EXACT(Анкета!$C$54,J69),1,0),0)","v":0},{"$f":"IF(ISNUMBER(SEARCH(Анкета!$C$54,H69)),MAX($G$1:G68)+1,0)","v":68},"77 - Аренда и лизинг",68,"77 - Аренда и лизинг",{"$f":"IFERROR(IF(EXACT(Анкета!$C$56,O69),1,0),0)","v":0},{"$f":"IF(ISNUMBER(SEARCH(Анкета!$C$56,M69)),MAX($L$1:L68)+1,0)","v":68},"77 - Аренда и лизинг",68,"77 - Аренда и лизинг",{"$f":"IFERROR(IF(EXACT(Анкета!$C$58,T69),1,0),0)","v":0},{"$f":"IF(ISNUMBER(SEARCH(Анкета!$C$58,R69)),MAX($Q$1:Q68)+1,0)","v":68},"77 - Аренда и лизинг",68,"77 - Аренда и лизинг",{"$f":"IFERROR(IF(EXACT(Анкета!$C$60,Y69),1,0),0)","v":0},{"$f":"IF(ISNUMBER(SEARCH(Анкета!$C$60,W69)),MAX($V$1:V68)+1,0)","v":68},"77 - Аренда и лизинг",68,"77 - Аренда и лизинг"]
[{"$f":"IFERROR(IF(EXACT(Анкета!$C$52,E70),1,0),0)","v":0},{"$f":"IF(ISNUMBER(SEARCH(Анкета!$C$52,C70)),MAX(B$1:$B69)+1,0)","v":69},"78 - Деятельность по трудоустройству и подбору персонала",69,"78 - Деятельность по трудоустройству и подбору персонала",{"$f":"IFERROR(IF(EXACT(Анкета!$C$54,J70),1,0),0)","v":0},{"$f":"IF(ISNUMBER(SEARCH(Анкета!$C$54,H70)),MAX($G$1:G69)+1,0)","v":69},"78 - Деятельность по трудоустройству и подбору персонала",69,"78 - Деятельность по трудоустройству и подбору персонала",{"$f":"IFERROR(IF(EXACT(Анкета!$C$56,O70),1,0),0)","v":0},{"$f":"IF(ISNUMBER(SEARCH(Анкета!$C$56,M70)),MAX($L$1:L69)+1,0)","v":69},"78 - Деятельность по трудоустройству и подбору персонала",69,"78 - Деятельность по трудоустройству и подбору персонала",{"$f":"IFERROR(IF(EXACT(Анкета!$C$58,T70),1,0),0)","v":0},{"$f":"IF(ISNUMBER(SEARCH(Анкета!$C$58,R70)),MAX($Q$1:Q69)+1,0)","v":69},"78 - Деятельность по трудоустройству и подбору персонала",69,"78 - Деятельность по трудоустройству и подбору персонала",{"$f":"IFERROR(IF(EXACT(Анкета!$C$60,Y70),1,0),0)","v":0},{"$f":"IF(ISNUMBER(SEARCH(Анкета!$C$60,W70)),MAX($V$1:V69)+1,0)","v":69},"78 - Деятельность по трудоустройству и подбору персонала",69,"78 - Деятельность по трудоустройству и подбору персонала"]
[{"$f":"IFERROR(IF(EXACT(Анкета!$C$52,E71),1,0),0)","v":0},{"$f":"IF(ISNUMBER(SEARCH(Анкета!$C$52,C71)),MAX(B$1:$B70)+1,0)","v":70},"79 - Деятельность туристических агентств и прочих организаций, предоставляющих услуги в сфере туризма",70,"79 - Деятельность туристических агентств и прочих организаций, предоставляющих услуги в сфере туризма",{"$f":"IFERROR(IF(EXACT(Анкета!$C$54,J71),1,0),0)","v":0},{"$f":"IF(ISNUMBER(SEARCH(Анкета!$C$54,H71)),MAX($G$1:G70)+1,0)","v":70},"79 - Деятельность туристических агентств и прочих организаций, предоставляющих услуги в сфере туризма",70,"79 - Деятельность туристических агентств и прочих организаций, предоставляющих услуги в сфере туризма",{"$f":"IFERROR(IF(EXACT(Анкета!$C$56,O71),1,0),0)","v":0},{"$f":"IF(ISNUMBER(SEARCH(Анкета!$C$56,M71)),MAX($L$1:L70)+1,0)","v":70},"79 - Деятельность туристических агентств и прочих организаций, предоставляющих услуги в сфере туризма",70,"79 - Деятельность туристических агентств и прочих организаций, предоставляющих услуги в сфере туризма",{"$f":"IFERROR(IF(EXACT(Анкета!$C$58,T71),1,0),0)","v":0},{"$f":"IF(ISNUMBER(SEARCH(Анкета!$C$58,R71)),MAX($Q$1:Q70)+1,0)","v":70},"79 - Деятельность туристических агентств и прочих организаций, предоставляющих услуги в сфере туризма",70,"79 - Деятельность туристических агентств и прочих организаций, предоставляющих услуги в сфере туризма",{"$f":"IFERROR(IF(EXACT(Анкета!$C$60,Y71),1,0),0)","v":0},{"$f":"IF(ISNUMBER(SEARCH(Анкета!$C$60,W71)),MAX($V$1:V70)+1,0)","v":70},"79 - Деятельность туристических агентств и прочих организаций, предоставляющих услуги в сфере туризма",70,"79 - Деятельность туристических агентств и прочих организаций, предоставляющих услуги в сфере туризма"]
[{"$f":"IFERROR(IF(EXACT(Анкета!$C$52,E72),1,0),0)","v":0},{"$f":"IF(ISNUMBER(SEARCH(Анкета!$C$52,C72)),MAX(B$1:$B71)+1,0)","v":71},"80 - Деятельность по обеспечению безопасности и проведению расследований",71,"80 - Деятельность по обеспечению безопасности и проведению расследований",{"$f":"IFERROR(IF(EXACT(Анкета!$C$54,J72),1,0),0)","v":0},{"$f":"IF(ISNUMBER(SEARCH(Анкета!$C$54,H72)),MAX($G$1:G71)+1,0)","v":71},"80 - Деятельность по обеспечению безопасности и проведению расследований",71,"80 - Деятельность по обеспечению безопасности и проведению расследований",{"$f":"IFERROR(IF(EXACT(Анкета!$C$56,O72),1,0),0)","v":0},{"$f":"IF(ISNUMBER(SEARCH(Анкета!$C$56,M72)),MAX($L$1:L71)+1,0)","v":71},"80 - Деятельность по обеспечению безопасности и проведению расследований",71,"80 - Деятельность по обеспечению безопасности и проведению расследований",{"$f":"IFERROR(IF(EXACT(Анкета!$C$58,T72),1,0),0)","v":0},{"$f":"IF(ISNUMBER(SEARCH(Анкета!$C$58,R72)),MAX($Q$1:Q71)+1,0)","v":71},"80 - Деятельность по обеспечению безопасности и проведению расследований",71,"80 - Деятельность по обеспечению безопасности и проведению расследований",{"$f":"IFERROR(IF(EXACT(Анкета!$C$60,Y72),1,0),0)","v":0},{"$f":"IF(ISNUMBER(SEARCH(Анкета!$C$60,W72)),MAX($V$1:V71)+1,0)","v":71},"80 - Деятельность по обеспечению безопасности и проведению расследований",71,"80 - Деятельность по обеспечению безопасности и проведению расследований"]
[{"$f":"IFERROR(IF(EXACT(Анкета!$C$52,E73),1,0),0)","v":0},{"$f":"IF(ISNUMBER(SEARCH(Анкета!$C$52,C73)),MAX(B$1:$B72)+1,0)","v":72},"81 - Деятельность по обслуживанию зданий и территорий",72,"81 - Деятельность по обслуживанию зданий и территорий",{"$f":"IFERROR(IF(EXACT(Анкета!$C$54,J73),1,0),0)","v":0},{"$f":"IF(ISNUMBER(SEARCH(Анкета!$C$54,H73)),MAX($G$1:G72)+1,0)","v":72},"81 - Деятельность по обслуживанию зданий и территорий",72,"81 - Деятельность по обслуживанию зданий и территорий",{"$f":"IFERROR(IF(EXACT(Анкета!$C$56,O73),1,0),0)","v":0},{"$f":"IF(ISNUMBER(SEARCH(Анкета!$C$56,M73)),MAX($L$1:L72)+1,0)","v":72},"81 - Деятельность по обслуживанию зданий и территорий",72,"81 - Деятельность по обслуживанию зданий и территорий",{"$f":"IFERROR(IF(EXACT(Анкета!$C$58,T73),1,0),0)","v":0},{"$f":"IF(ISNUMBER(SEARCH(Анкета!$C$58,R73)),MAX($Q$1:Q72)+1,0)","v":72},"81 - Деятельность по обслуживанию зданий и территорий",72,"81 - Деятельность по обслуживанию зданий и территорий",{"$f":"IFERROR(IF(EXACT(Анкета!$C$60,Y73),1,0),0)","v":0},{"$f":"IF(ISNUMBER(SEARCH(Анкета!$C$60,W73)),MAX($V$1:V72)+1,0)","v":72},"81 - Деятельность по обслуживанию зданий и территорий",72,"81 - Деятельность по обслуживанию зданий и территорий"]
[{"$f":"IFERROR(IF(EXACT(Анкета!$C$52,E74),1,0),0)","v":0},{"$f":"IF(ISNUMBER(SEARCH(Анкета!$C$52,C74)),MAX(B$1:$B73)+1,0)","v":73},"82 - Деятельность административно-хозяйственная, вспомогательная деятельность по обеспечению функционирования организации, деятельность по предоставлению прочих вспомогательных услуг для бизнеса",73,"82 - Деятельность административно-хозяйственная, вспомогательная деятельность по обеспечению функционирования организации, деятельность по предоставлению прочих вспомогательных услуг для бизнеса",{"$f":"IFERROR(IF(EXACT(Анкета!$C$54,J74),1,0),0)","v":0},{"$f":"IF(ISNUMBER(SEARCH(Анкета!$C$54,H74)),MAX($G$1:G73)+1,0)","v":73},"82 - Деятельность административно-хозяйственная, вспомогательная деятельность по обеспечению функционирования организации, деятельность по предоставлению прочих вспомогательных услуг для бизнеса",73,"82 - Деятельность административно-хозяйственная, вспомогательная деятельность по обеспечению функционирования организации, деятельность по предоставлению прочих вспомогательных услуг для бизнеса",{"$f":"IFERROR(IF(EXACT(Анкета!$C$56,O74),1,0),0)","v":0},{"$f":"IF(ISNUMBER(SEARCH(Анкета!$C$56,M74)),MAX($L$1:L73)+1,0)","v":73},"82 - Деятельность административно-хозяйственная, вспомогательная деятельность по обеспечению функционирования организации, деятельность по предоставлению прочих вспомогательных услуг для бизнеса",73,"82 - Деятельность административно-хозяйственная, вспомогательная деятельность по обеспечению функционирования организации, деятельность по предоставлению прочих вспомогательных услуг для бизнеса",{"$f":"IFERROR(IF(EXACT(Анкета!$C$58,T74),1,0),0)","v":0},{"$f":"IF(ISNUMBER(SEARCH(Анкета!$C$58,R74)),MAX($Q$1:Q73)+1,0)","v":73},"82 - Деятельность административно-хозяйственная, вспомогательная деятельность по обеспечению функционирования организации, деятельность по предоставлению прочих вспомогательных услуг для бизнеса",73,"82 - Деятельность административно-хозяйственная, вспомогательная деятельность по обеспечению функционирования организации, деятельность по предоставлению прочих вспомогательных услуг для бизнеса",{"$f":"IFERROR(IF(EXACT(Анкета!$C$60,Y74),1,0),0)","v":0},{"$f":"IF(ISNUMBER(SEARCH(Анкета!$C$60,W74)),MAX($V$1:V73)+1,0)","v":73},"82 - Деятельность административно-хозяйственная, вспомогательная деятельность по обеспечению функционирования организации, деятельность по предоставлению прочих вспомогательных услуг для бизнеса",73,"82 - Деятельность административно-хозяйственная, вспомогательная деятельность по обеспечению функционирования организации, деятельность по предоставлению прочих вспомогательных услуг для бизнеса"]
[{"$f":"IFERROR(IF(EXACT(Анкета!$C$52,E75),1,0),0)","v":0},{"$f":"IF(ISNUMBER(SEARCH(Анкета!$C$52,C75)),MAX(B$1:$B74)+1,0)","v":74},"84 - Деятельность органов государственного управления по обеспечению военной безопасности, обязательному социальному обеспечению",74,"84 - Деятельность органов государственного управления по обеспечению военной безопасности, обязательному социальному обеспечению",{"$f":"IFERROR(IF(EXACT(Анкета!$C$54,J75),1,0),0)","v":0},{"$f":"IF(ISNUMBER(SEARCH(Анкета!$C$54,H75)),MAX($G$1:G74)+1,0)","v":74},"84 - Деятельность органов государственного управления по обеспечению военной безопасности, обязательному социальному обеспечению",74,"84 - Деятельность органов государственного управления по обеспечению военной безопасности, обязательному социальному обеспечению",{"$f":"IFERROR(IF(EXACT(Анкета!$C$56,O75),1,0),0)","v":0},{"$f":"IF(ISNUMBER(SEARCH(Анкета!$C$56,M75)),MAX($L$1:L74)+1,0)","v":74},"84 - Деятельность органов государственного управления по обеспечению военной безопасности, обязательному социальному обеспечению",74,"84 - Деятельность органов государственного управления по обеспечению военной безопасности, обязательному социальному обеспечению",{"$f":"IFERROR(IF(EXACT(Анкета!$C$58,T75),1,0),0)","v":0},{"$f":"IF(ISNUMBER(SEARCH(Анкета!$C$58,R75)),MAX($Q$1:Q74)+1,0)","v":74},"84 - Деятельность органов государственного управления по обеспечению военной безопасности, обязательному социальному обеспечению",74,"84 - Деятельность органов государственного управления по обеспечению военной безопасности, обязательному социальному обеспечению",{"$f":"IFERROR(IF(EXACT(Анкета!$C$60,Y75),1,0),0)","v":0},{"$f":"IF(ISNUMBER(SEARCH(Анкета!$C$60,W75)),MAX($V$1:V74)+1,0)","v":74},"84 - Деятельность органов государственного управления по обеспечению военной безопасности, обязательному социальному обеспечению",74,"84 - Деятельность органов государственного управления по обеспечению военной безопасности, обязательному социальному обеспечению"]
[{"$f":"IFERROR(IF(EXACT(Анкета!$C$52,E76),1,0),0)","v":0},{"$f":"IF(ISNUMBER(SEARCH(Анкета!$C$52,C76)),MAX(B$1:$B75)+1,0)","v":75},"85 - Образование",75,"85 - Образование",{"$f":"IFERROR(IF(EXACT(Анкета!$C$54,J76),1,0),0)","v":0},{"$f":"IF(ISNUMBER(SEARCH(Анкета!$C$54,H76)),MAX($G$1:G75)+1,0)","v":75},"85 - Образование",75,"85 - Образование",{"$f":"IFERROR(IF(EXACT(Анкета!$C$56,O76),1,0),0)","v":0},{"$f":"IF(ISNUMBER(SEARCH(Анкета!$C$56,M76)),MAX($L$1:L75)+1,0)","v":75},"85 - Образование",75,"85 - Образование",{"$f":"IFERROR(IF(EXACT(Анкета!$C$58,T76),1,0),0)","v":0},{"$f":"IF(ISNUMBER(SEARCH(Анкета!$C$58,R76)),MAX($Q$1:Q75)+1,0)","v":75},"85 - Образование",75,"85 - Образование",{"$f":"IFERROR(IF(EXACT(Анкета!$C$60,Y76),1,0),0)","v":0},{"$f":"IF(ISNUMBER(SEARCH(Анкета!$C$60,W76)),MAX($V$1:V75)+1,0)","v":75},"85 - Образование",75,"85 - Образование"]
[{"$f":"IFERROR(IF(EXACT(Анкета!$C$52,E77),1,0),0)","v":0},{"$f":"IF(ISNUMBER(SEARCH(Анкета!$C$52,C77)),MAX(B$1:$B76)+1,0)","v":76},"86 - Деятельность в области здравоохранения",76,"86 - Деятельность в области здравоохранения",{"$f":"IFERROR(IF(EXACT(Анкета!$C$54,J77),1,0),0)","v":0},{"$f":"IF(ISNUMBER(SEARCH(Анкета!$C$54,H77)),MAX($G$1:G76)+1,0)","v":76},"86 - Деятельность в области здравоохранения",76,"86 - Деятельность в области здравоохранения",{"$f":"IFERROR(IF(EXACT(Анкета!$C$56,O77),1,0),0)","v":0},{"$f":"IF(ISNUMBER(SEARCH(Анкета!$C$56,M77)),MAX($L$1:L76)+1,0)","v":76},"86 - Деятельность в области здравоохранения",76,"86 - Деятельность в области здравоохранения",{"$f":"IFERROR(IF(EXACT(Анкета!$C$58,T77),1,0),0)","v":0},{"$f":"IF(ISNUMBER(SEARCH(Анкета!$C$58,R77)),MAX($Q$1:Q76)+1,0)","v":76},"86 - Деятельность в области здравоохранения",76,"86 - Деятельность в области здравоохранения",{"$f":"IFERROR(IF(EXACT(Анкета!$C$60,Y77),1,0),0)","v":0},{"$f":"IF(ISNUMBER(SEARCH(Анкета!$C$60,W77)),MAX($V$1:V76)+1,0)","v":76},"86 - Деятельность в области здравоохранения",76,"86 - Деятельность в области здравоохранения"]
[{"$f":"IFERROR(IF(EXACT(Анкета!$C$52,E78),1,0),0)","v":0},{"$f":"IF(ISNUMBER(SEARCH(Анкета!$C$52,C78)),MAX(B$1:$B77)+1,0)","v":77},"87 - Деятельность по уходу с обеспечением проживания",77,"87 - Деятельность по уходу с обеспечением проживания",{"$f":"IFERROR(IF(EXACT(Анкета!$C$54,J78),1,0),0)","v":0},{"$f":"IF(ISNUMBER(SEARCH(Анкета!$C$54,H78)),MAX($G$1:G77)+1,0)","v":77},"87 - Деятельность по уходу с обеспечением проживания",77,"87 - Деятельность по уходу с обеспечением проживания",{"$f":"IFERROR(IF(EXACT(Анкета!$C$56,O78),1,0),0)","v":0},{"$f":"IF(ISNUMBER(SEARCH(Анкета!$C$56,M78)),MAX($L$1:L77)+1,0)","v":77},"87 - Деятельность по уходу с обеспечением проживания",77,"87 - Деятельность по уходу с обеспечением проживания",{"$f":"IFERROR(IF(EXACT(Анкета!$C$58,T78),1,0),0)","v":0},{"$f":"IF(ISNUMBER(SEARCH(Анкета!$C$58,R78)),MAX($Q$1:Q77)+1,0)","v":77},"87 - Деятельность по уходу с обеспечением проживания",77,"87 - Деятельность по уходу с обеспечением проживания",{"$f":"IFERROR(IF(EXACT(Анкета!$C$60,Y78),1,0),0)","v":0},{"$f":"IF(ISNUMBER(SEARCH(Анкета!$C$60,W78)),MAX($V$1:V77)+1,0)","v":77},"87 - Деятельность по уходу с обеспечением проживания",77,"87 - Деятельность по уходу с обеспечением проживания"]
[{"$f":"IFERROR(IF(EXACT(Анкета!$C$52,E79),1,0),0)","v":0},{"$f":"IF(ISNUMBER(SEARCH(Анкета!$C$52,C79)),MAX(B$1:$B78)+1,0)","v":78},"88 - Предоставление социальных услуг без обеспечения проживания",78,"88 - Предоставление социальных услуг без обеспечения проживания",{"$f":"IFERROR(IF(EXACT(Анкета!$C$54,J79),1,0),0)","v":0},{"$f":"IF(ISNUMBER(SEARCH(Анкета!$C$54,H79)),MAX($G$1:G78)+1,0)","v":78},"88 - Предоставление социальных услуг без обеспечения проживания",78,"88 - Предоставление социальных услуг без обеспечения проживания",{"$f":"IFERROR(IF(EXACT(Анкета!$C$56,O79),1,0),0)","v":0},{"$f":"IF(ISNUMBER(SEARCH(Анкета!$C$56,M79)),MAX($L$1:L78)+1,0)","v":78},"88 - Предоставление социальных услуг без обеспечения проживания",78,"88 - Предоставление социальных услуг без обеспечения проживания",{"$f":"IFERROR(IF(EXACT(Анкета!$C$58,T79),1,0),0)","v":0},{"$f":"IF(ISNUMBER(SEARCH(Анкета!$C$58,R79)),MAX($Q$1:Q78)+1,0)","v":78},"88 - Предоставление социальных услуг без обеспечения проживания",78,"88 - Предоставление социальных услуг без обеспечения проживания",{"$f":"IFERROR(IF(EXACT(Анкета!$C$60,Y79),1,0),0)","v":0},{"$f":"IF(ISNUMBER(SEARCH(Анкета!$C$60,W79)),MAX($V$1:V78)+1,0)","v":78},"88 - Предоставление социальных услуг без обеспечения проживания",78,"88 - Предоставление социальных услуг без обеспечения проживания"]
[{"$f":"IFERROR(IF(EXACT(Анкета!$C$52,E80),1,0),0)","v":0},{"$f":"IF(ISNUMBER(SEARCH(Анкета!$C$52,C80)),MAX(B$1:$B79)+1,0)","v":79},"90 - Деятельность творческая, деятельность в области искусства и организации развлечений",79,"90 - Деятельность творческая, деятельность в области искусства и организации развлечений",{"$f":"IFERROR(IF(EXACT(Анкета!$C$54,J80),1,0),0)","v":0},{"$f":"IF(ISNUMBER(SEARCH(Анкета!$C$54,H80)),MAX($G$1:G79)+1,0)","v":79},"90 - Деятельность творческая, деятельность в области искусства и организации развлечений",79,"90 - Деятельность творческая, деятельность в области искусства и организации развлечений",{"$f":"IFERROR(IF(EXACT(Анкета!$C$56,O80),1,0),0)","v":0},{"$f":"IF(ISNUMBER(SEARCH(Анкета!$C$56,M80)),MAX($L$1:L79)+1,0)","v":79},"90 - Деятельность творческая, деятельность в области искусства и организации развлечений",79,"90 - Деятельность творческая, деятельность в области искусства и организации развлечений",{"$f":"IFERROR(IF(EXACT(Анкета!$C$58,T80),1,0),0)","v":0},{"$f":"IF(ISNUMBER(SEARCH(Анкета!$C$58,R80)),MAX($Q$1:Q79)+1,0)","v":79},"90 - Деятельность творческая, деятельность в области искусства и организации развлечений",79,"90 - Деятельность творческая, деятельность в области искусства и организации развлечений",{"$f":"IFERROR(IF(EXACT(Анкета!$C$60,Y80),1,0),0)","v":0},{"$f":"IF(ISNUMBER(SEARCH(Анкета!$C$60,W80)),MAX($V$1:V79)+1,0)","v":79},"90 - Деятельность творческая, деятельность в области искусства и организации развлечений",79,"90 - Деятельность творческая, деятельность в области искусства и организации развлечений"]
[{"$f":"IFERROR(IF(EXACT(Анкета!$C$52,E81),1,0),0)","v":0},{"$f":"IF(ISNUMBER(SEARCH(Анкета!$C$52,C81)),MAX(B$1:$B80)+1,0)","v":80},"91- Деятельность библиотек, архивов, музеев и прочих объектов культуры",80,"91- Деятельность библиотек, архивов, музеев и прочих объектов культуры",{"$f":"IFERROR(IF(EXACT(Анкета!$C$54,J81),1,0),0)","v":0},{"$f":"IF(ISNUMBER(SEARCH(Анкета!$C$54,H81)),MAX($G$1:G80)+1,0)","v":80},"91- Деятельность библиотек, архивов, музеев и прочих объектов культуры",80,"91- Деятельность библиотек, архивов, музеев и прочих объектов культуры",{"$f":"IFERROR(IF(EXACT(Анкета!$C$56,O81),1,0),0)","v":0},{"$f":"IF(ISNUMBER(SEARCH(Анкета!$C$56,M81)),MAX($L$1:L80)+1,0)","v":80},"91- Деятельность библиотек, архивов, музеев и прочих объектов культуры",80,"91- Деятельность библиотек, архивов, музеев и прочих объектов культуры",{"$f":"IFERROR(IF(EXACT(Анкета!$C$58,T81),1,0),0)","v":0},{"$f":"IF(ISNUMBER(SEARCH(Анкета!$C$58,R81)),MAX($Q$1:Q80)+1,0)","v":80},"91- Деятельность библиотек, архивов, музеев и прочих объектов культуры",80,"91- Деятельность библиотек, архивов, музеев и прочих объектов культуры",{"$f":"IFERROR(IF(EXACT(Анкета!$C$60,Y81),1,0),0)","v":0},{"$f":"IF(ISNUMBER(SEARCH(Анкета!$C$60,W81)),MAX($V$1:V80)+1,0)","v":80},"91- Деятельность библиотек, архивов, музеев и прочих объектов культуры",80,"91- Деятельность библиотек, архивов, музеев и прочих объектов культуры"]
[{"$f":"IFERROR(IF(EXACT(Анкета!$C$52,E82),1,0),0)","v":0},{"$f":"IF(ISNUMBER(SEARCH(Анкета!$C$52,C82)),MAX(B$1:$B81)+1,0)","v":81},"92 - Деятельность по организации и проведению азартных игр и заключению пари, по организации и проведению лотерей",81,"92 - Деятельность по организации и проведению азартных игр и заключению пари, по организации и проведению лотерей",{"$f":"IFERROR(IF(EXACT(Анкета!$C$54,J82),1,0),0)","v":0},{"$f":"IF(ISNUMBER(SEARCH(Анкета!$C$54,H82)),MAX($G$1:G81)+1,0)","v":81},"92 - Деятельность по организации и проведению азартных игр и заключению пари, по организации и проведению лотерей",81,"92 - Деятельность по организации и проведению азартных игр и заключению пари, по организации и проведению лотерей",{"$f":"IFERROR(IF(EXACT(Анкета!$C$56,O82),1,0),0)","v":0},{"$f":"IF(ISNUMBER(SEARCH(Анкета!$C$56,M82)),MAX($L$1:L81)+1,0)","v":81},"92 - Деятельность по организации и проведению азартных игр и заключению пари, по организации и проведению лотерей",81,"92 - Деятельность по организации и проведению азартных игр и заключению пари, по организации и проведению лотерей",{"$f":"IFERROR(IF(EXACT(Анкета!$C$58,T82),1,0),0)","v":0},{"$f":"IF(ISNUMBER(SEARCH(Анкета!$C$58,R82)),MAX($Q$1:Q81)+1,0)","v":81},"92 - Деятельность по организации и проведению азартных игр и заключению пари, по организации и проведению лотерей",81,"92 - Деятельность по организации и проведению азартных игр и заключению пари, по организации и проведению лотерей",{"$f":"IFERROR(IF(EXACT(Анкета!$C$60,Y82),1,0),0)","v":0},{"$f":"IF(ISNUMBER(SEARCH(Анкета!$C$60,W82)),MAX($V$1:V81)+1,0)","v":81},"92 - Деятельность по организации и проведению азартных игр и заключению пари, по организации и проведению лотерей",81,"92 - Деятельность по организации и проведению азартных игр и заключению пари, по организации и проведению лотерей"]
[{"$f":"IFERROR(IF(EXACT(Анкета!$C$52,E83),1,0),0)","v":0},{"$f":"IF(ISNUMBER(SEARCH(Анкета!$C$52,C83)),MAX(B$1:$B82)+1,0)","v":82},"93 - Деятельность в области спорта, отдыха и развлечений",82,"93 - Деятельность в области спорта, отдыха и развлечений",{"$f":"IFERROR(IF(EXACT(Анкета!$C$54,J83),1,0),0)","v":0},{"$f":"IF(ISNUMBER(SEARCH(Анкета!$C$54,H83)),MAX($G$1:G82)+1,0)","v":82},"93 - Деятельность в области спорта, отдыха и развлечений",82,"93 - Деятельность в области спорта, отдыха и развлечений",{"$f":"IFERROR(IF(EXACT(Анкета!$C$56,O83),1,0),0)","v":0},{"$f":"IF(ISNUMBER(SEARCH(Анкета!$C$56,M83)),MAX($L$1:L82)+1,0)","v":82},"93 - Деятельность в области спорта, отдыха и развлечений",82,"93 - Деятельность в области спорта, отдыха и развлечений",{"$f":"IFERROR(IF(EXACT(Анкета!$C$58,T83),1,0),0)","v":0},{"$f":"IF(ISNUMBER(SEARCH(Анкета!$C$58,R83)),MAX($Q$1:Q82)+1,0)","v":82},"93 - Деятельность в области спорта, отдыха и развлечений",82,"93 - Деятельность в области спорта, отдыха и развлечений",{"$f":"IFERROR(IF(EXACT(Анкета!$C$60,Y83),1,0),0)","v":0},{"$f":"IF(ISNUMBER(SEARCH(Анкета!$C$60,W83)),MAX($V$1:V82)+1,0)","v":82},"93 - Деятельность в области спорта, отдыха и развлечений",82,"93 - Деятельность в области спорта, отдыха и развлечений"]
[{"$f":"IFERROR(IF(EXACT(Анкета!$C$52,E84),1,0),0)","v":0},{"$f":"IF(ISNUMBER(SEARCH(Анкета!$C$52,C84)),MAX(B$1:$B83)+1,0)","v":83},"94 - Деятельность общественных организаций",83,"94 - Деятельность общественных организаций",{"$f":"IFERROR(IF(EXACT(Анкета!$C$54,J84),1,0),0)","v":0},{"$f":"IF(ISNUMBER(SEARCH(Анкета!$C$54,H84)),MAX($G$1:G83)+1,0)","v":83},"94 - Деятельность общественных организаций",83,"94 - Деятельность общественных организаций",{"$f":"IFERROR(IF(EXACT(Анкета!$C$56,O84),1,0),0)","v":0},{"$f":"IF(ISNUMBER(SEARCH(Анкета!$C$56,M84)),MAX($L$1:L83)+1,0)","v":83},"94 - Деятельность общественных организаций",83,"94 - Деятельность общественных организаций",{"$f":"IFERROR(IF(EXACT(Анкета!$C$58,T84),1,0),0)","v":0},{"$f":"IF(ISNUMBER(SEARCH(Анкета!$C$58,R84)),MAX($Q$1:Q83)+1,0)","v":83},"94 - Деятельность общественных организаций",83,"94 - Деятельность общественных организаций",{"$f":"IFERROR(IF(EXACT(Анкета!$C$60,Y84),1,0),0)","v":0},{"$f":"IF(ISNUMBER(SEARCH(Анкета!$C$60,W84)),MAX($V$1:V83)+1,0)","v":83},"94 - Деятельность общественных организаций",83,"94 - Деятельность общественных организаций"]
[{"$f":"IFERROR(IF(EXACT(Анкета!$C$52,E85),1,0),0)","v":0},{"$f":"IF(ISNUMBER(SEARCH(Анкета!$C$52,C85)),MAX(B$1:$B84)+1,0)","v":84},"95 - Ремонт компьютеров, предметов личного потребления и хозяйственно-бытового назначения",84,"95 - Ремонт компьютеров, предметов личного потребления и хозяйственно-бытового назначения",{"$f":"IFERROR(IF(EXACT(Анкета!$C$54,J85),1,0),0)","v":0},{"$f":"IF(ISNUMBER(SEARCH(Анкета!$C$54,H85)),MAX($G$1:G84)+1,0)","v":84},"95 - Ремонт компьютеров, предметов личного потребления и хозяйственно-бытового назначения",84,"95 - Ремонт компьютеров, предметов личного потребления и хозяйственно-бытового назначения",{"$f":"IFERROR(IF(EXACT(Анкета!$C$56,O85),1,0),0)","v":0},{"$f":"IF(ISNUMBER(SEARCH(Анкета!$C$56,M85)),MAX($L$1:L84)+1,0)","v":84},"95 - Ремонт компьютеров, предметов личного потребления и хозяйственно-бытового назначения",84,"95 - Ремонт компьютеров, предметов личного потребления и хозяйственно-бытового назначения",{"$f":"IFERROR(IF(EXACT(Анкета!$C$58,T85),1,0),0)","v":0},{"$f":"IF(ISNUMBER(SEARCH(Анкета!$C$58,R85)),MAX($Q$1:Q84)+1,0)","v":84},"95 - Ремонт компьютеров, предметов личного потребления и хозяйственно-бытового назначения",84,"95 - Ремонт компьютеров, предметов личного потребления и хозяйственно-бытового назначения",{"$f":"IFERROR(IF(EXACT(Анкета!$C$60,Y85),1,0),0)","v":0},{"$f":"IF(ISNUMBER(SEARCH(Анкета!$C$60,W85)),MAX($V$1:V84)+1,0)","v":84},"95 - Ремонт компьютеров, предметов личного потребления и хозяйственно-бытового назначения",84,"95 - Ремонт компьютеров, предметов личного потребления и хозяйственно-бытового назначения"]
[{"$f":"IFERROR(IF(EXACT(Анкета!$C$52,E86),1,0),0)","v":0},{"$f":"IF(ISNUMBER(SEARCH(Анкета!$C$52,C86)),MAX(B$1:$B85)+1,0)","v":85},"96 - Деятельность по предоставлению прочих персональных услуг",85,"96 - Деятельность по предоставлению прочих персональных услуг",{"$f":"IFERROR(IF(EXACT(Анкета!$C$54,J86),1,0),0)","v":0},{"$f":"IF(ISNUMBER(SEARCH(Анкета!$C$54,H86)),MAX($G$1:G85)+1,0)","v":85},"96 - Деятельность по предоставлению прочих персональных услуг",85,"96 - Деятельность по предоставлению прочих персональных услуг",{"$f":"IFERROR(IF(EXACT(Анкета!$C$56,O86),1,0),0)","v":0},{"$f":"IF(ISNUMBER(SEARCH(Анкета!$C$56,M86)),MAX($L$1:L85)+1,0)","v":85},"96 - Деятельность по предоставлению прочих персональных услуг",85,"96 - Деятельность по предоставлению прочих персональных услуг",{"$f":"IFERROR(IF(EXACT(Анкета!$C$58,T86),1,0),0)","v":0},{"$f":"IF(ISNUMBER(SEARCH(Анкета!$C$58,R86)),MAX($Q$1:Q85)+1,0)","v":85},"96 - Деятельность по предоставлению прочих персональных услуг",85,"96 - Деятельность по предоставлению прочих персональных услуг",{"$f":"IFERROR(IF(EXACT(Анкета!$C$60,Y86),1,0),0)","v":0},{"$f":"IF(ISNUMBER(SEARCH(Анкета!$C$60,W86)),MAX($V$1:V85)+1,0)","v":85},"96 - Деятельность по предоставлению прочих персональных услуг",85,"96 - Деятельность по предоставлению прочих персональных услуг"]
[{"$f":"IFERROR(IF(EXACT(Анкета!$C$52,E87),1,0),0)","v":0},{"$f":"IF(ISNUMBER(SEARCH(Анкета!$C$52,C87)),MAX(B$1:$B86)+1,0)","v":86},"97 - Деятельность домашних хозяйств с наемными работниками",86,"97 - Деятельность домашних хозяйств с наемными работниками",{"$f":"IFERROR(IF(EXACT(Анкета!$C$54,J87),1,0),0)","v":0},{"$f":"IF(ISNUMBER(SEARCH(Анкета!$C$54,H87)),MAX($G$1:G86)+1,0)","v":86},"97 - Деятельность домашних хозяйств с наемными работниками",86,"97 - Деятельность домашних хозяйств с наемными работниками",{"$f":"IFERROR(IF(EXACT(Анкета!$C$56,O87),1,0),0)","v":0},{"$f":"IF(ISNUMBER(SEARCH(Анкета!$C$56,M87)),MAX($L$1:L86)+1,0)","v":86},"97 - Деятельность домашних хозяйств с наемными работниками",86,"97 - Деятельность домашних хозяйств с наемными работниками",{"$f":"IFERROR(IF(EXACT(Анкета!$C$58,T87),1,0),0)","v":0},{"$f":"IF(ISNUMBER(SEARCH(Анкета!$C$58,R87)),MAX($Q$1:Q86)+1,0)","v":86},"97 - Деятельность домашних хозяйств с наемными работниками",86,"97 - Деятельность домашних хозяйств с наемными работниками",{"$f":"IFERROR(IF(EXACT(Анкета!$C$60,Y87),1,0),0)","v":0},{"$f":"IF(ISNUMBER(SEARCH(Анкета!$C$60,W87)),MAX($V$1:V86)+1,0)","v":86},"97 - Деятельность домашних хозяйств с наемными работниками",86,"97 - Деятельность домашних хозяйств с наемными работниками"]
[{"$f":"IFERROR(IF(EXACT(Анкета!$C$52,E88),1,0),0)","v":0},{"$f":"IF(ISNUMBER(SEARCH(Анкета!$C$52,C88)),MAX(B$1:$B87)+1,0)","v":87},"98 - Деятельность недифференцированная частных домашних хозяйств по производству товаров и предоставлению услуг для собственного потребления",87,"98 - Деятельность недифференцированная частных домашних хозяйств по производству товаров и предоставлению услуг для собственного потребления",{"$f":"IFERROR(IF(EXACT(Анкета!$C$54,J88),1,0),0)","v":0},{"$f":"IF(ISNUMBER(SEARCH(Анкета!$C$54,H88)),MAX($G$1:G87)+1,0)","v":87},"98 - Деятельность недифференцированная частных домашних хозяйств по производству товаров и предоставлению услуг для собственного потребления",87,"98 - Деятельность недифференцированная частных домашних хозяйств по производству товаров и предоставлению услуг для собственного потребления",{"$f":"IFERROR(IF(EXACT(Анкета!$C$56,O88),1,0),0)","v":0},{"$f":"IF(ISNUMBER(SEARCH(Анкета!$C$56,M88)),MAX($L$1:L87)+1,0)","v":87},"98 - Деятельность недифференцированная частных домашних хозяйств по производству товаров и предоставлению услуг для собственного потребления",87,"98 - Деятельность недифференцированная частных домашних хозяйств по производству товаров и предоставлению услуг для собственного потребления",{"$f":"IFERROR(IF(EXACT(Анкета!$C$58,T88),1,0),0)","v":0},{"$f":"IF(ISNUMBER(SEARCH(Анкета!$C$58,R88)),MAX($Q$1:Q87)+1,0)","v":87},"98 - Деятельность недифференцированная частных домашних хозяйств по производству товаров и предоставлению услуг для собственного потребления",87,"98 - Деятельность недифференцированная частных домашних хозяйств по производству товаров и предоставлению услуг для собственного потребления",{"$f":"IFERROR(IF(EXACT(Анкета!$C$60,Y88),1,0),0)","v":0},{"$f":"IF(ISNUMBER(SEARCH(Анкета!$C$60,W88)),MAX($V$1:V87)+1,0)","v":87},"98 - Деятельность недифференцированная частных домашних хозяйств по производству товаров и предоставлению услуг для собственного потребления",87,"98 - Деятельность недифференцированная частных домашних хозяйств по производству товаров и предоставлению услуг для собственного потребления"]
[{"$f":"IFERROR(IF(EXACT(Анкета!$C$52,E89),1,0),0)","v":0},{"$f":"IF(ISNUMBER(SEARCH(Анкета!$C$52,C89)),MAX(B$1:$B88)+1,0)","v":88},"99 - Деятельность экстерриториальных организаций и органов",88,"99 - Деятельность экстерриториальных организаций и органов",{"$f":"IFERROR(IF(EXACT(Анкета!$C$54,J89),1,0),0)","v":0},{"$f":"IF(ISNUMBER(SEARCH(Анкета!$C$54,H89)),MAX($G$1:G88)+1,0)","v":88},"99 - Деятельность экстерриториальных организаций и органов",88,"99 - Деятельность экстерриториальных организаций и органов",{"$f":"IFERROR(IF(EXACT(Анкета!$C$56,O89),1,0),0)","v":0},{"$f":"IF(ISNUMBER(SEARCH(Анкета!$C$56,M89)),MAX($L$1:L88)+1,0)","v":88},"99 - Деятельность экстерриториальных организаций и органов",88,"99 - Деятельность экстерриториальных организаций и органов",{"$f":"IFERROR(IF(EXACT(Анкета!$C$58,T89),1,0),0)","v":0},{"$f":"IF(ISNUMBER(SEARCH(Анкета!$C$58,R89)),MAX($Q$1:Q88)+1,0)","v":88},"99 - Деятельность экстерриториальных организаций и органов",88,"99 - Деятельность экстерриториальных организаций и органов",{"$f":"IFERROR(IF(EXACT(Анкета!$C$60,Y89),1,0),0)","v":0},{"$f":"IF(ISNUMBER(SEARCH(Анкета!$C$60,W89)),MAX($V$1:V88)+1,0)","v":88},"99 - Деятельность экстерриториальных организаций и органов",88,"99 - Деятельность экстерриториальных организаций и органов"]